Workbook

Sheet DESIGN INPUTS AND CALCULATIONS
A1: UCC28180 DESIGN CALCULATOR TOOL
A2: TI Literature Number: | B2: SLUC506 | C2: Rev C
A3: UCC28180 CONTINUOUS CURRENT CONDUCTION MODE PFC CONTROLLER WITH PROGRAMMABLE SWITCHING FREQUENCY
A4: Please enter design parameters into the | B4: shaded | C4: cells;
A5: Calculated results will be in RED
A6: Be sure to ENABLE EDITING before attempting to use this design calculator
A7: This spreadsheet guides the user through the design process of a CONTINUOUS CONDUCTION MODE PFC BOOST CONVERTER using the UCC28180. User interaction is required in order to get the best possible results. Enter the desired specification where prompted, the highlighted cells are for user inputs; calculations for the design are based upon the inputs.
A12: WHERE APPLICABLE, A RECOMMENDED VALUE IS GIVEN THAT WILL BE THE BEST CHOICE TO MEET THE GIVEN SPECIFICATION. IT IS IN THE BEST INTEREST OF THE USER TO USE A VALUE AS CLOSE AS POSSIBLE TO THE SUGGESTED RECOMMENDED VALUE. FOR ACCURATE RESULTS, THE USER MUST ENTER THE ACTUAL VALUE USED IN THE APPROPRIATE CELL.
A17: Disclaimer
A18: This product is designed as an aid for customers of Texas Instruments. No warranties, either expressed or implied, with respect to this software or its fitness for any particular purpose, are claimed by Texas Instruments or the author. The software is licensed solely on an "as is" basis. The entire risk as to its quality and performance is with the customer.
A22: INPUT:
A23: Minimum Input Voltage from AC Line: | B23: VACIN(min) | C23: 210 | D23: VRMS
A24: Maximum Input Voltage from AC Line: | B24: VACIN(max) | C24: 240 | D24: VRMS
A25: Minimum Line Frequency: | B25: fLINE(min): | C25: 60 | D25: Hz
A26: Maximum Line Frequency: | B26: fLINE(max): | C26: 60 | D26: Hz
A27: Minimum Rectified AC Line Voltage: | B27: VIN_PEAK(min) | C27: =SQRT(2)*Vacin_min -> 296.9848481 | D27: V
A28: Maximum Rectified AC Line Voltage: | B28: VIN_PEAK(max) | C28: =SQRT(2)*Vacin_max -> 339.411255 | D28: V
A31: OUTPUT:
A32: Maximum Output Power of PFC Stage: | B32: POUT(max) | C32: 3800 | D32: W
A33: Output Voltage (Note: Must be > VIN_RECTIFIED(max)): | B33: VOUT | C33: 475 | D33: V | E33: =IF(Vout<=Vin_peak_max,"OUTPUT VOLTAGE MUST BE GREATER THAN RECTIFIED MAXIMUM INPUT VOLTAGE"," ") -> 
A34: Target Power Factor, VIN(nom), Full Load: | B34: PF | C34: 0.99 | E34: =IF(PF>=0.999,"ENTER VALUE LESS THAN 0.999"," ") -> 
A35: Predicted Efficiency: | B35: h | C35: 0.95 | E35: =IF(eff>=0.97,"ENTER VALUE LESS THAN 0.97"," ") -> 
A36: Maximum Ambient Temperature: | B36: TAMB(max) | C36: 50 | D36: °C
A37: Maximum Average Output Current of PFC Stage: | B37: IOUT | C37: =Pout/Vout -> 8 | D37: A
A38: Desired Switching Frequency: | B38: fSW(target) | C38: 45 | D38: kHz | E38: =IF(fSW_target<18,"fsw must not be less than 18 kHz",IF(fSW_target>250,"fsw must not be greater than 250 kHz","")) -> 
A39: Recommended Resistor value on FREQ to Set the Switching Frequency, fSW: | B39: RFREQ(recommended) | C39: =data!F233 -> 48.7 | D39: kΩ
A40: Actual Value For RFREQ Used: | B40: RFREQ = | C40: 47 | D40: kΩ
A41: Resultant Switching Frequency, fSW: | B41: fSW | C41: =((32.7*kOhms*65*kHz*(1*MegOhm+Rfreq*kOhms))/(Rfreq*kOhms*(1*MegOhm+32.7*kOhms)))/kHz -> 45.84962163 | D41: kHz
A42: =IF(Vout>=Vin_peak_max,IF(PF<1,IF(eff<0.97,"","DO NOT PROCEED. ENTER EFFICIENCY LESS < 0.97"),"DO NOT PROCEED. ENTER PF < 1"),"DO NOT PROCEED. OUTPUT VOLTAGE MUST BE > RECTIFIED MAXIMUM INPUT VOLTAGE") -> 
A44: Line Current:
A45: Maximum Input Power Drawn from the Line: | B45: PIN(max) | C45: =Pout/eff -> 4000 | D45: W
A46: Maximum RMS AC Line Current: | B46: IIN_RMS(max) | C46: =Pout/(eff*Vacin_min*PF) -> 19.24001924 | D46: A
A47: Maximum Peak AC Line Current, assuming sinusoidal: | B47: IIN_PEAK(max) | C47: =SQRT(2)*Iin_rms_max -> 27.20949615 | D47: A
A48: Maximum Average AC Line Current, assuming sinusoidal: | B48: IIN_AVG(max) | C48: =(2*Iin_peak_max)/PI() -> 17.32210324 | D48: A
A49: Minimum Input Fuse Rating: | B49: IFUSE | C49: =1.5*Iin_rms_max -> 28.86002886 | D49: A
A52: BRIDGE RECTIFIER:
A53: Bridge Rectifier Forward Voltage, at IIN_PEAK(max): | B53: VF_BRIDGE | C53: 1.05 | D53: V
A54: Bridge Rectifier Thermal Resistance, Junction to Case: | B54: RqJC(Bridge) | C54: 0.6 | D54: °C/W
A55: Case to Heatsink Thermal Resistance: | B55: RθCHS(Bridge) | C55: 0.7 | D55: °C/W
A56: Bridge Rectifier Maximum Junction Temperature: | B56: TJ(max) | C56: 125 | D56: °C
A57: Bridge Rectifier Minimum Average Current Rating: | B57: IBRIDGE(rated) | C57: =1.5*Iin_avg_max -> 25.98315487 | D57: A
A58: Bridge Rectifier Minimum DC Blocking Voltage Rating: | B58: VDC_BLOCKING(rated) | C58: =Vin_peak_max*1.1 -> 373.3523805 | D58: V
A59: Bridge Rectifier Power Dissipation: | B59: PBRIDGE | C59: =2*Vf_bridge*Iin_avg_max -> 36.37641681 | D59: W
A60: Required Heat Sink Thermal Impedance: | B60: RqHS_AMB(Bridge) | C60: =((Tj_bridge-Tamb)/Pbridge)-Rjc_bridge-Rchs_bridge -> 0.7617753635 | D60: °C/W
A63: INPUT CAPACITOR:
A64: Inductor Peak-to-Peak Current Ripple Factor (i.e. 0.2 for 20%, 0.3 for 30%). Percentage of minimum input, maximum load, inductor current at 50% duty cycle operating point, not recommended to be > 0.4: | B64: LI_ripple_factor(target) | C64: 0.2 | D64: =IF(L_I_ripple_factor>0.4,"Lower ripple current factor is recommended","") -> 
A65: Maximum High Frequency Voltage Ripple Factor (i.e. 0.03 for 3%, 0.09 for 9%): | B65: VCin_ripple_factor | C65: 0.05
A66: Target Maximum Allowable Inductor Current Ripple: | B66: IRIPPLE(target) | C66: =L_I_ripple_factor*Iin_peak_max -> 5.44189923 | D66: A
A67: Maximum Inductor Voltage Ripple: | B67: VIN_RIPPLE | C67: =V_ripplefactor*Vin_peak_min -> 14.8492424 | D67: V
A68: Recommended Input Capacitor Value: | B68: CIN(recommended) | C68: =data!F228 -> 1 | D68: mF
A69: Actual Value of Input Capacitor Used: | B69: CIN | C69: 1 | D69: =data!G228 -> µF
A70: Required Minimum Voltage Rating for CIN: | B70: VCIN(rating) | C70: =Vrated -> 373.3523805 | D70: V
A73: BOOST INDUCTOR DESIGN:
A74: Maximum Duty Cycle: | B74: DUTY(max) | C74: =(Vout-Vin_peak_min)/Vout -> 0.3747687408
A75: Maximum Inductor Peak Current: | B75: IL_PEAK(max) | C75: =Iin_peak_max+(Iripple/2) -> 29.93044576 | D75: A
A76: Minimum Recommended Boost Inductor Value: | B76: LBST(recommended) | C76: =((Vout*0.5*(1-0.5))/(fsw*kHz*Iripple))/mH -> 0.4759346965 | D76: mH
A77: Actual Boost Inductor Value Used: | B77: LBST(actual) = | C77: 0.79 | D77: mH
A78: Actual Maximum Inductor Ripple Current: | B78: IRIPPLE(actual) | C78: =(Vout*0.5*(1-0.5))/((fsw*kHz)*(Lbst*mH)) -> 3.278466656 | D78: A
A79: Actual Maximum Inductor Peak Current: | B79: IL_PEAK(actual) | C79: =Iin_peak_max+(Iripple_actual/2) -> 28.84872948 | D79: A
A80: Resultant Inductor Current Ripple Factor: | B80: LI_ripple_factor(actual) | C80: =Iripple_actual/(SQRT(2)*Iin_rms_max) -> 0.1204897966
A83: BOOST DIODE:
A84: Forward Voltage Drop, at IL_PEAK(max),125°C: | B84: VF | C84: 1.8 | D84: V
A85: Reverse Recovery Charge: | B85: QRR | C85: 23 | D85: nC
A86: Boost Diode Maximum Junction Temperature: | B86: TJ(max) | C86: 125 | D86: °C
A87: Boost Diode Thermal Resistance, Junction to Case: | B87: RqJC(Diode) | C87: 1.2 | D87: °C/W
A88: Boost Diode Thermal Resistance, Case to Heatsink: | B88: RqCHS(Diode) | C88: 0.7 | D88: °C/W
A89: Boost Diode Conduction Losses: | B89: PDIODE(cond) | C89: =Vf*Iout -> 14.4 | D89: W
A90: Reverse Recovery Losses: | B90: PREVERSE | C90: =(65*10^3)*Vout*(Qrr*10^-9) -> 0.710125 | D90: W
A91: Total Boost Diode Losses: | B91: PDIODE(total) | C91: =Pdiode_cond+(Pdiode_reverse/2) -> 14.7550625 | D91: W
A92: Required Heat Sink Thermal Impedance: | B92: RqHS_AMB(Diode) | C92: =((Tj_diode-Tamb)/Pdiode)-Rth_diode-Rth_case_hs -> 3.183001173 | D92: °C/W
A93: Required Diode Blocking Voltage: | B93: VBLOCKING | C93: =Vout*1.1 -> 522.5 | D93: V
A96: SWITCHING ELEMENT:
A97: VCC Bias Voltage to the UCC28180: | B97: VCC | C97: 15 | D97: V | E97: =IF(VCC<12,"Bias voltage should be >12V","") -> 
A98: Gate-Source Voltage: | B98: VGS | C98: =IF(VCC>=15.2,15.2,VCC-1.25) -> 13.75 | D98: V
A99: Drain-Source RMS Current: | B99: IDS_RMS | C99: =(Pout/Vin_peak_min)*SQRT((2-(16*Vin_peak_min/(3*PI()*Vout)))) -> 12.39605994 | D99: A
A100: FET On-Resistance at TJ = 125°C: | B100: RDSon | C100: 0.65 | D100: W
A101: FET Gate Charge at VGS: | B101: Qg | C101: 192 | D101: nC
A102: FET Rise Time: | B102: tr | C102: 15 | D102: ns
A103: FET Fall Time: | B103: tf | C103: 10 | D103: ns
A104: FET Output Capacitance: | B104: COSS | C104: 48 | D104: pF
A105: FET Maximum Junction Temperature: | B105: TJ(max) | C105: 125 | D105: °C
A106: FET Thermal Resistance, Junction to Case: | B106: RqJC(FET) | C106: 0.73 | D106: °C/W
A107: FET Thermal Resistance, Case to Heatsink: | B107: RqCHS(FET) | C107: 0.7 | D107: °C/W
A108: Gate Drive Losses (actually dissipated in the gate drive circuitry): | B108: PGATE | C108: =Vgs*Qg*(nC)*fsw*kHz -> 0.1210430011 | D108: W
A109: FET Conduction Losses: | B109: PCOND | C109: =(Ids_rms^2)*(Rds_on) -> 99.88049628 | D109: W
A110: FET Switching Losses: | B110: PSW | C110: =((fsw*kHz)/2)*(((tr_FET+tf_FET)*ns*Vout*Iin_peak_max)+(Coss*picoF*Vout^2)) -> 7.655574751 | D110: W
A111: FET Losses, Total: | B111: PFET | C111: =P_FETcond+P_FETsw -> 107.536071 | D111: W
A112: Required Heat Sink Thermal Impedance: | B112: RqHS_AMB(FET) | C112: =((Tj_FET-Tamb)/P_FET)-Rth_jc_FET-Rth_CHS_FET -> -0.7325596037 | D112: °C/W
A115: CURRENT SENSE RESISTOR:
A116: Ideal Value for RSENSE, for 110% Inductor SOC Threshold: | B116: RSENSE(ideal) | C116: =0.259/(Il_peak_actual*1.1) -> 0.008161695496 | D116: W
A117: Actual Value for RSENSE: Current Sense Resistor: | B117: RSENSE | C117: 0.003 | D117: W | E117: =IF(Rsense>0.259/I_Lpeak,"DECREASE Rsense","") -> 
A118: ICOMP Voltage at Vin_Min, ICOMP to be <5.7V to avoid ICOMP amp saturation | B118: ICOMP | C118: =VCOMP!Z7 -> 4.295986802 | D118: V | E118: =IF(C118>5.7,"DECREASE Rsense","") -> 
A119: Inductor Current at Soft Over-Current Threshold: | B119: IOVERCURRENT_SOC | C119: =0.259/Rsense -> 86.33333333 | D119: A
A120: Power Dissipated in RSENSE: | B120: PRsense | C120: =(Iin_rms_max^2)*Rsense -> 1.110535021 | D120: W
A121: Theoretical Output Over-Current Inception Point: | B121: IOUT_OVERCURRENT | C121: =(((Isoc-((Vout*Dmax*(1-Dmax))/(fsw*kHz*Lbst*mH)/2))*Vacin_min*PF)/(SQRT(2))*eff)/Vout -> 24.93156979 | D121: A
A122: Maximum ISENSE Peak Current Limit Threshold: | B122: IPCL | C122: =0.438/Rsense -> 146 | D122: A
A123: Resistance of Thermistor at 25°C: | B123: RTHERM | C123: 60 | D123: W
A124: Maximum Inrush Current: | B124: IINRUSH | C124: =Vin_peak_max/C123 -> 5.656854249 | D124: A
A125: Recommended ISENSE Series Resistor: | B125: RISENSE | C125: 220 | D125: W
A126: Recommended ISENSE Filter Capacitor: | B126: CISENSE | C126: =data!F276 -> 2200 | D126: =data!G276 -> pF
A129: OUTPUT CAPACITOR:
A130: Required Minimum Output Voltage: | B130: VOUT_HOLDUP(min) | C130: 400 | D130: V | E130: =IF(Vout_holdup>Vout,"ENTER A LOWER VALUE FOR THE MINIMUM HOLDUP VOLTAGE","") -> 
A131: Desired Number of Line Cycles For Output Holdup Time (typ one line cycle): | B131: NHOLD_UP | C131: 1
A132: Minimum Output Voltage Holdup Time: | B132: tHold_UP(min) | C132: =Nholdup*((1/fline_min)/ms) -> 16.66666667 | D132: ms
A133: Recommended Minimum Output Capacitor Value: | B133: COUT(recommended) | C133: =data!F236 -> 1800 | D133: =data!G236 -> µF
A134: Actual Output Capacitor Value: | B134: COUT | C134: 2000 | D134: =data!G236 -> µF | E134: =IF(Cout<C133,"INCREASE OUTPUT CAPACITANCE TO AT LEAST MINIMUM RECOMMENDED VALUE","") -> 
A135: Output Voltage Peak to Peak Ripple: | B135: VOUT_RIPPLEpp | C135: =Iout/(PI()*2*2*fline_min*Cout*uF) -> 5.30516477 | D135: V
A136: =IF(Vout_ripplepp>=0.04*Vout,"OUTPUT CAPACITOR must be sized larger so OVP/UVD is not triggered","Good! Output voltage peak-peak ripple is less than 5% VOUT") -> Good! Output voltage peak-peak ripple is less than 5% VOUT
A137: Output Capacitor Ripple Current at Twice Line Frequency: | B137: ICout_2fline | C137: =Iout/SQRT(2) -> 5.656854249 | D137: ARMS
A138: Output Capacitor High Frequency Ripple Current: | B138: ICout_HF | C138: =Iout*SQRT(((16*Vout)/(3*PI()*Vin_peak_min))-1.5) -> 8.819032813 | D138: ARMS
A139: Total Output Capacitor Ripple Current: | B139: ICout_RMS(total) | C139: =SQRT((Icout_2fline^2)+(Icout_HF^2)) -> 10.47737275 | D139: ARMS
A140: =IF(Vout_ripplepp>0.04*Vout,"OUTPUT CAPACITOR MUST BE INCREASED TO PREVENT OVP DURING NORMAL OPERATING RANGE","") -> 
A142: OUTPUT VOLTAGE SET POINT:
A143: Recommended Value for the Top Divider Resistor: | B143: RFB1(recommended) | C143: 1 | D143: MW
A144: Actual Value of the Top Divider Resistor: | B144: RFB1(actual) | C144: 1 | D144: MW | E144: =IF(R_fb1<0.953,"RECOMMENDED VALUE IS GREATER THAN OR EQUAL TO 1M","") -> 
A145: Recommended Value for the Bottom Divider Resistor (E48 Series): | B145: RFB2(recommended) | C145: =data!F242 -> 10.5 | D145: kW
A146: Actual Value of the Bottom Divider Resistor: | B146: RFB2(actual) | C146: 10.5 | D146: kW
A147: Actual Nominal Output Voltage: | B147: VOUT | C147: =VREF*((R_fb1*MegOhm)+(R_fb2*kOhms))/(R_fb2*kOhms) -> 481.1904762 | D147: V | E147: =IF(Vout_min<Vin_peak_max,"DO NOT PROCEED WITHOUT ADJUSTING THE RESISTOR DIVIDER IN ORDER TO ACHIEVE THE DESIRED OUTPUT VOLTAGE",IF(Vout_nom>1.1*Vout,"ADJUST BOTTOM DIVIDER RESISTOR FOR DESIRED OUTPUT VOLTAGE","")) -> 
A148: Minimum Output Voltage with respect to VREF: | B148: VOUT(min) | C148: =VREFmin*((R_fb1*MegOhm)+(R_fb2*kOhms))/(R_fb2*kOhms) -> 474.4538095 | D148: V
A149: Maximum Output Voltage with respect to VREF: | B149: VOUT(max) | C149: =VREFmax*((R_fb1*MegOhm)+(R_fb2*kOhms))/(R_fb2*kOhms) -> 487.9271429 | D149: V
A150: OVP Set Point: Typical DC Output Voltage to Trigger OVP: | B150: VOVP | C150: =(VREF*1.09)*((R_fb1*MegOhm)+(R_fb2*kOhms))/(R_fb2*kOhms) -> 524.497619 | D150: V
A151: UVD Set Point: Typical DC Output Voltage to Trigger UVD: | B151: VUVD | C151: =(VREF*0.95)*((R_fb1*MegOhm)+(R_fb2*kOhms))/(R_fb2*kOhms) -> 457.1309524 | D151: V
A152: Recommended Value for Filter Capacitor on VSENSE: | B152: CVSENSE | C152: =data!F245 -> 1000 | D152: =data!G245 -> pF
A153: Power Dissipated in Voltage Divider: | B153: PRfB1+RFB2 | C153: =(Vout_nom^2)/((R_fb1*MegOhm)+(R_fb2*kOhms)) -> 0.229138322 | D153: W
A154: =IF(Vout_min<Vin_peak_max,"DO NOT PROCEED UNTIL RFB2 IS DECREASED SO MINIMUM OUTPUT VOLTAGE > MAXIMUM RECTIFIED INPUT VOLTAGE","") -> 
A156: COMPENSATION:
A180: The Loop will be Optimized at a Selected Specific Line Voltage. For a Wide Input Range, Optimization is Recommended at the Mean of Min and Max Input. For a Design with a Specific Nominal Line Voltage, Optimize at that Nominal Voltage. VCOMP at Any Line Voltage or as a Function of Load is Shown at Right | F180: To Determine VCOMP for a Specific Line Voltage at Full Load:
A181: Line Voltage for Optimized Loop Design: | B181: VINnom | C181: 220 | D181: V | G181: Enter Line Voltage for VCOMP calculation | I181: VLINE | J181: 220 | K181: VRMS
A182: Open Loop Transfer Function for Current Loop: | G182: Resultant VCOMP at Full Load | I182: VCOMP at VLINE | J182: =VCOMP!B44 -> 2.34089226 | K182: V
A183: Product of the Voltage Loop Variables: | B183: M1M2 | C183: =M1M2 -> 0.09697284244 | D183: V/ms | G183: Resultant ICOMP at Full Load | I183: VCOMP at VLINE | J183: =VCOMP!B45 -> 4.269038305 | K183: V | L183: =IF(J183>5.7,"DECREASE Rsense","") -> 
A184: VCOMP Voltage at VINnom: | B184: VCOMP | C184: =data!H69 -> 2.34089226 | D184: V | F184: To Determine VCOMP at Selected Line Voltage and at a Specific Load, enter a value from 1 to 100 for 1% to 100% load:
A185: Internal Current Loop Gain Factor M1: | B185: M1 | C185: =IF(Vcomp<1,(0.068),IF(Vcomp<2,(0.156*Vcomp-0.0088),IF(Vcomp<4.5,(0.313*Vcomp-0.401),IF(Vcomp<5,1.007,"VCOMP MUST BE <5")))) -> 0.3316992775
A186: Internal Voltage Loop PWM Ramp Slope M2: | B186: M2 | C186: =IF(Vcomp<=0.5,0,IF(Vcomp<4.6,(((fsw*kHz)/ftyp)*0.1223*(Vcomp-0.5)^2),IF(Vcomp<5,(((fsw*kHz)/ftyp)*2.056),"VCOMP MUST BE <5"))) -> 0.2923516842 | D186: V/ms | G186: Percentage of Full Load for VCOMP Calculation: | I186: % of Full Load: | J186: 100 | K186: %
A187: Non-Linear Gain Voltage Loop Variable M3: | B187: M3 | C187: =IF(Vcomp<0.5,(0),IF(Vcomp<1,((fsw*kHz)/ftyp)*(0.0166328*Vcomp-0.0083164),IF(Vcomp<2,((fsw*kHz)/ftyp)*(0.0572364*Vcomp^2-0.0596824*Vcomp+0.0155321),IF(Vcomp<4.5,((fsw*kHz)/ftyp)*(0.1148397*Vcomp^2-0.1746444*Vcomp+0.058612275),IF(Vcomp<4.6,((fsw*kHz)/ftyp)*(0.24631222*Vcomp-0.1231561),IF(Vcomp<5,0,"VCOMP MUST BE <5")))))) -> 0.1968602519 | D187: V/ms | G187: Resultant VCOMP at Selected Load | I187: VCOMP at %load selected | J187: =VCOMP!E45 -> 2.34089226 | K187: V
A188: Maximum Recommended ICOMP Capacitor Value: | B188: CICOMPmax(recommended) | C188: =data!F252 -> 6800 | D188: =data!G252 -> pF
A189: Minimum Recommended ICOMP Capacitor Value: | B189: CICOMPmin(recommended) | C189: =data!F257 -> 3300 | D189: =data!G257 -> pF
A190: Actual Value Used for ICOMP Capacitor: | B190: CICOMP(actual) | C190: 3300 | D190: pF
A191: Resultant Actual Current Averaging Pole Frequency: | B191: fIAVG(actual) | C191: =((gmi*M_1)/(K_1*2*PI()*Cicomp*picoF))/kHz -> 2.17108228 | D191: kHz
A256: Open Loop Transfer Function for Voltage Loop:
A257: PWM to Power Stage Pole: | B257: fPWM_PS(pole) | C257: =1/((2*PI()*K_1*2.5*Rsense*(Vout_nom^3)*(Cout*uF))/(K_FQ*(M1M2/us)*(Vacin_nom^2))) -> 1.456663269 | D257: Hz
A258: Desired Voltage Loop Crossover Frequency ( fV < 20Hz): | B258: fV | C258: 10 | D258: Hz
A259: Open Loop Voltage Gain at Desired fV: | B259: GVLdB(fV) | C259: =20*LOG(IMABS(IMPRODUCT((R_fb2*kOhms)/((R_fb1*MegOhm)+(R_fb2*kOhms)),IMDIV((M_3*Vout_nom)/(M1M2),COMPLEX(1,(2*PI()*fv)/(2*PI()*fPWM_PSpole)))))) -> 3.305554187 | D259: dB | E259: =IF(fv>20,"SET CROSSOVER FREQUENCY TO LESS THAN 20Hz","") -> 
A260: Recommended Value for the Voltage Compensation Capacitor: | B260: CVCOMP(recommended) | C260: =data!F262 -> 8.2 | D260: =data!G262 -> µF
A261: Actual Value Used for CVCOMP Capacitor: | B261: CVCOMP(actual) | C261: 8.2 | D261: mF
A262: Recommended Value for the Voltage Compensation Resistor: | B262: RVCOMP(recommended) | C262: =data!F267 -> 13.3 | D262: kW
A263: Actual Value Used for RVCOMP Resistor: | B263: RVCOMP(actual) | C263: 13 | D263: kW
A264: Resultant Value of Voltage Compensation Zero: | B264: fZERO | C264: =1/(2*PI()*(Rvcomp*kOhms)*(Cvcomp*uF)) -> 1.493010723 | D264: Hz | E264: =IF(Rvcomp>1.1*C262,"USE A SMALLER VALUE FOR VCOMP RESISTOR",IF(Rvcomp<0.9*C262,"USE A LARGER VALUE FOR VCOMP RESISTOR","")) -> 
A265: Desired Voltage Compensation Pole (fPole < 50Hz): | B265: fPOLE | C265: 40 | D265: Hz
A266: Recommended Value for the Parallel Voltage Compensation Capacitor: | B266: CVCOMP_P(recommended) | C266: =data!F271 -> 0.33 | D266: =data!G271 -> µF | E266: =IF(fpole>50,"POLE MUST BE < 50Hz","") -> 
A267: Actual Value for the Parallel Voltage Compensation Capacitor: | B267: CVCOMP_P(actual) | C267: 0.39 | D267: mF | E267: =IF(Cvcomp_p<C266*0.75,"USE LARGER PARALLEL CAPACITOR ON VCOMP",IF(Cvcomp_p>1.25*C266,"USE SMALLER PARALLEL CAPACITOR ON VCOMP","")) -> 

Sheet SCHEMATIC
A1: Typical Schematic for a PFC Continuous Conduction Mode Boost Converter Using the UCC28180
B38: RECOMMENDED BILL OF MATERIALS
B39: Reference Designator | C39: Description/Comments
B40: FUSE | C40: Type: | D40: Fast Acting
C41: Voltage Rating: | D41: =IF(Vacin_max<270,250,350) -> 250 | E41: ='DESIGN INPUTS AND CALCULATIONS'!D24 -> VRMS
C42: Current Rating: | D42: =Ifuse -> 28.86002886 | E42: ='DESIGN INPUTS AND CALCULATIONS'!D49 -> A
B43: BRIDGE | C43: DC Blocking Voltage: | D43: =Vrated -> 373.3523805 | E43: ='DESIGN INPUTS AND CALCULATIONS'!D58 -> V
C44: Current Rating: | D44: =Ibridge -> 25.98315487 | E44: ='DESIGN INPUTS AND CALCULATIONS'!D57 -> A
C45: Power Dissipation: | D45: =Pbridge -> 36.37641681 | E45: ='DESIGN INPUTS AND CALCULATIONS'!D59 -> W
B46: CIN | C46: Type: | D46: Film Capacitor, X2
C47: Value: | D47: =IF(Cin="",Cin_rcmd,Cin) -> 1 | E47: =data!G228 -> µF
C48: Volatge Rating: | D48: =Vacin_max -> 240 | E48: VRMS
B49: LBST | C49: Inductor Value: | D49: =IF(Lbst="",Lbst_rcmd,Lbst) -> 0.79 | E49: ='DESIGN INPUTS AND CALCULATIONS'!D77 -> mH
C50: Peak Current Rating: | D50: =Il_peak_actual -> 28.84872948 | E50: ='DESIGN INPUTS AND CALCULATIONS'!D79 -> A
C51: Ripple Current: | D51: =Iripple_actual -> 3.278466656 | E51: ='DESIGN INPUTS AND CALCULATIONS'!D78 -> A
C52: Maximum Duty Cycle: | D52: =Dmax -> 0.3747687408
B53: DBOOST | C53: Type: | D53: Diode, Low Reverse Recovery Charge, Schottky
C54: Average Current Rating: | D54: =Iin_avg_max -> 17.32210324 | E54: ='DESIGN INPUTS AND CALCULATIONS'!D48 -> A
C55: Volatge Rating: | D55: =Vdiode_blocking -> 522.5 | E55: ='DESIGN INPUTS AND CALCULATIONS'!D33 -> V
C56: Power Dissipation: | D56: =Pdiode -> 14.7550625 | E56: ='DESIGN INPUTS AND CALCULATIONS'!D91 -> W
B57: QFET | C57: Type: | D57: MOSFET, Nchannel
C58: RMS Drain Current Rating: | D58: =Ids_rms -> 12.39605994 | E58: ='DESIGN INPUTS AND CALCULATIONS'!D99 -> A
C59: Peak Current Rating: | D59: =Il_peak_actual -> 28.84872948 | E59: ='DESIGN INPUTS AND CALCULATIONS'!D79 -> A
C60: Voltage Rating: | D60: =Vin_peak_max -> 339.411255 | E60: ='DESIGN INPUTS AND CALCULATIONS'!D28 -> V
C61: Power Dissipation: | D61: =P_FET -> 107.536071 | E61: ='DESIGN INPUTS AND CALCULATIONS'!D111 -> W
B62: RSENSE | C62: Type: | D62: Resistor, Low Inductance
C63: Value: | D63: =IF(Rsense="",Rsense_ideal,Rsense) -> 0.003 | E63: W
C64: Power Dissipation: | D64: =P_Rsense -> 1.110535021 | E64: ='DESIGN INPUTS AND CALCULATIONS'!D120 -> W
B65: RISENSE | C65: Type: | D65: Resistor, Chip, 1/16W
C66: Value: | D66: =Risense -> 220 | E66: W
B67: CISENSE | C67: Type: | D67: Capacitor, Ceramic, 100V, X7R, ±10%
C68: Value: | D68: =Cisense -> 2200 | E68: ='DESIGN INPUTS AND CALCULATIONS'!D126 -> pF
B69: COUT | C69: Type: | D69: Capacitor, Aluminum, ±20%
C70: Value: | D70: =IF(Cout="",Cout_rcmd,Cout) -> 2000 | E70: ='DESIGN INPUTS AND CALCULATIONS'!D133 -> µF
C71: Voltage Rating: | D71: =Vovp -> 524.497619 | E71: V
C72: 2 x fLINE Ripple Current Rating: | D72: =Icout_2fline -> 5.656854249 | E72: ARMS
C73: HF Ripple Current Rating: | D73: =Icout_HF -> 8.819032813 | E73: ARMS
B74: RFB1 | C74: Type: | D74: Resistor, Chip, Total Voltage Rating 400V, ±1%
C75: Value: | D75: =IF(R_fb1="",Rfb1_rcmd,R_fb1) -> 1 | E75: MW
B76: RFB2 | C76: Type: | D76: Resistor, Chip, 1/10W, ±1%
C77: Value: | D77: =IF(R_fb2="",R_fb2_rcmd,R_fb2) -> 10.5 | E77: kW
B78: CVSENSE | C78: Type: | D78: Capacitor, Ceramic, 50V, X7R, ±10%
C79: Value: | D79: =Cvsense -> 1000 | E79: pF
B80: CICOMP | C80: Type: | D80: Capacitor, Ceramic, 50V, X7R, ±10%
C81: Recommended Values: | D81: =Cicomp_minrcmd -> 3300 | E81: pF min
D82: =Cicomp_maxrcmd -> 6800 | E82: pF min
B83: CVCOMP | C83: Type: | D83: Capacitor, Ceramic, 10V, X5R, ±10%
C84: Value: | D84: =IF(Cvcomp="",Cvcomp_rcmd,Cvcomp) -> 8.2 | E84: mF
B85: RVCOMP | C85: Type: | D85: Resistor, Chip, 1/10W, ±1%
C86: Value: | D86: =IF(Rvcomp="",Rvcomp_rcmd,Rvcomp) -> 13 | E86: kW
B87: CVCOMP_P | C87: Type: | D87: Capacitor, Ceramic, 10V, X5R, ±10%
C88: Value: | D88: =IF(Cvcomp_p="",Cvcomp_p_rcmd,Cvcomp_p) -> 0.39 | E88: mF
B89: RFREQ | C89: Type: | D89: Resistor, Chip, 1/10W, ±1%
C90: Value: | D90: =IF(Rfreq="",Rfreq_rcmd,Rfreq) -> 47 | E90: kΩ
B91: CVCC | C91: Type: | D91: Ceramic, Low ESR/ESL, placed close to the VCC and GND pins with short traces
C92: Values: | D92: 0.1 | E92: mF min
D93: 1 | E93: mF max
B94: DSTART | C94: Type: | D94: Diode, Switching
C95: Average Current Rating: | D95: =Iinrush -> 5.656854249 | E95: A
C96: Volatge Rating: | D96: =Vovp -> 524.497619 | E96: V
B97: DTURNOFF | C97: Type: | D97: Diode, Schottky
C98: Average Current Rating: | D98: 2 | E98: A
C99: Volatge Rating: | D99: 40 | E99: V
B100: RGATE | C100: Type: | D100: Resistor, Chip, 1/10W, ±1%
C101: Value: | D101: As Needed
B102: RGATE2 | C102: Type: | D102: Resistor, Chip, 1/10W, ±1%
C103: Value: | D103: 10 | E103: kΩ

Sheet data (hidden)
A2: Data for M1M2 vs VCOMP table
A4: VCOMP | B4: M1 | C4: M2 | D4: M1M2
A5: 0 | B5: =IF(A5<1,(0.068),IF(A5<2,(0.156*A5-0.088),IF(A5<4.5,(0.313*A5-0.401),IF(A5<=5,1.007,"VCOMP MUST BE < 5")))) -> 0.068 | C5: =IF(A5<=0.5,0,IF(A5<4.6,((fSW_target/65)*0.1223*(A5-0.5)^2),IF(A5<=5,((fSW_target/65)*2.056),"VCOMP MUST BE < 5"))) -> 0 | D5: =B5*C5 -> 0 | G5: mV factor | H5: =10^-3 -> 0.001
A6: =A5+0.05 -> 0.05 | B6: =IF(A6<1,(0.068),IF(A6<2,(0.156*A6-0.088),IF(A6<4.5,(0.313*A6-0.401),IF(A6<=5,1.007,"VCOMP MUST BE < 5")))) -> 0.068 | C6: 0 | D6: =B6*C6 -> 0 | G6: uF factor | H6: =(10^-6) -> 1e-06
A7: =A6+0.05 -> 0.1 | B7: 0.068 | C7: 0 | D7: 0 | G7: kHz factor | H7: =10^3 -> 1000
A8: 0.15 | B8: 0.068 | C8: 0 | D8: 0 | G8: mΩ factor | H8: =10^-3 -> 0.001
A9: 0.2 | B9: 0.068 | C9: 0 | D9: 0 | G9: ms factor | H9: =10^-3 -> 0.001
A10: 0.25 | B10: 0.068 | C10: 0 | D10: 0 | G10: mA factor | H10: =10^-3 -> 0.001
A11: 0.3 | B11: 0.068 | C11: 0 | D11: 0 | G11: us factor | H11: =10^-6 -> 1e-06
A12: 0.35 | B12: 0.068 | C12: 0 | D12: 0 | G12: uH factor | H12: =10^-6 -> 1e-06
A13: 0.4 | B13: 0.068 | C13: 0 | D13: 0 | G13: ns factor | H13: =10^-9 -> 1e-09
A14: 0.45 | B14: 0.068 | C14: 0 | D14: 0 | G14: mW factor | H14: =10^-3 -> 0.001
A15: 0.5 | B15: 0.068 | C15: 0 | D15: 0 | G15: pF factor | H15: =10^-12 -> 1e-12
A16: 0.55 | B16: 0.068 | C16: 0.0002116730769 | D16: 1.439376923e-05 | G16: MHz factor | H16: =10^6 -> 1000000
A17: 0.6 | B17: 0.068 | C17: 0.0008466923077 | D17: 5.757507692e-05 | G17: uA factor | H17: =10^-6 -> 1e-06
A18: 0.65 | B18: 0.068 | C18: 0.001905057692 | D18: 0.0001295439231 | G18: kΩ factor | H18: =10^3 -> 1000
A19: 0.7 | B19: 0.068 | C19: 0.003386769231 | D19: 0.0002303003077 | G19: nC factor | H19: =10^-9 -> 1e-09
A20: 0.75 | B20: 0.068 | C20: 0.005291826923 | D20: 0.0003598442308 | G20: nF factor | H20: =10^-9 -> 1e-09
A21: 0.8 | B21: 0.068 | C21: 0.007620230769 | D21: 0.0005181756923 | G21: uC factor | H21: =10^-6 -> 1e-06
A22: 0.85 | B22: 0.068 | C22: 0.01037198077 | D22: 0.0007052946923 | G22: MΩ factor | H22: =10^6 -> 1000000
A23: 0.9 | B23: 0.068 | C23: 0.01354707692 | D23: 0.0009212012308 | G23: mH factor | H23: =10^-3 -> 0.001
A24: 0.95 | B24: 0.068 | C24: 0.01714551923 | D24: 0.001165895308
A25: 1 | B25: 0.068 | C25: 0.02116730769 | D25: 0.001439376923
A26: 1.05 | B26: 0.0758 | C26: 0.02561244231 | D26: 0.001941423127
A27: 1.1 | B27: 0.0836 | C27: 0.03048092308 | D27: 0.002548205169
A28: 1.15 | B28: 0.0914 | C28: 0.03577275 | D28: 0.00326962935
A29: 1.2 | B29: 0.0992 | C29: 0.04148792308 | D29: 0.004115601969
A30: 1.25 | B30: 0.107 | C30: 0.04762644231 | D30: 0.005096029327
A31: 1.3 | B31: 0.1148 | C31: 0.05418830769 | D31: 0.006220817723 | G31: K1 | H31: 7
A32: 1.35 | B32: 0.1226 | C32: 0.06117351923 | D32: 0.007499873458 | G32: KFQ | H32: =1/(fsw*kHz) -> 2.181043081e-05
A33: 1.4 | B33: 0.1304 | C33: 0.06858207692 | D33: 0.008943102831 | G33: fTYP | H33: =65*kHz -> 65000 | J33: VINnom | K33: =(Vacin_min+Vacin_max)/2 -> 225
A34: =A33+0.05 -> 1.45 | B34: 0.1382 | C34: 0.07641398077 | D34: 0.01056041214
A35: 1.5 | B35: 0.146 | C35: 0.08466923077 | D35: 0.01236170769 | G35: M1M2 | H35: =(Iout*(Vout_nom^2)*2.5*Rsense*K_1)/(eff*(VINnom^2)*K_FQ)*us -> 0.09697284244 | J35: M1M2 | K35: =(Iout*(Vout_nom^2)*2.5*Rsense*K_1)/(eff*(Vacin_nom^2)*K_FQ)*us -> 0.09271082616
A36: 1.55 | B36: 0.1538 | C36: 0.09334782692 | D36: 0.01435689578
A37: 1.6 | B37: 0.1616 | C37: =IF(A37<=0.5,0,IF(A37<4.6,((fSW_target/65)*0.1223*(A37-0.5)^2),IF(A37<=5,((fSW_target/65)*2.056),"VCOMP MUST BE < 5"))) -> 0.1024497692 | D37: 0.01655588271 | G37: VCOMP1 | H37: =(1*10^-9*(5*10^8*SQRT(fsw*kHz)+(1.09655978*10^10)*SQRT(ftyp)*SQRT(M1M2)))/SQRT(fsw*kHz) -> 4.565801538 | J37: VCOMP1 | K37: =(1*10^-9*(5*10^8*SQRT(fsw*kHz)+(1.09655978*10^10)*SQRT(ftyp)*SQRT(M1M2)))/SQRT(fsw*kHz) -> 4.565801538
A38: 1.65 | B38: 0.1694 | C38: 0.1119750577 | D38: 0.01896857477
A39: 1.7 | B39: 0.1772 | C39: 0.1219236923 | D39: 0.02160487828 | G39: a1 | H39: 0.156 | J39: a1 | K39: 0.156
A40: 1.75 | B40: 0.185 | C40: 0.1322956731 | D40: 0.02447469952 | G40: b1 | H40: 0.088 | J40: b1 | K40: 0.088
A41: 1.8 | B41: 0.1928 | C41: 0.143091 | D41: 0.0275879448 | G41: c1 | H41: 0.1223 | J41: c1 | K41: 0.1223
A42: 1.85 | B42: 0.2006 | C42: 0.1543096731 | D42: 0.03095452042 | G42: d1 | H42: 0.5 | J42: d1 | K42: 0.5
A43: 1.9 | B43: 0.2084 | C43: 0.1659516923 | D43: 0.03458433268 | G43: K1V2 | H43: =(b_1^3/(27*a_1^3))-(d_1^3/27)+SQRT((ftyp)^2*M1M2^2/(4*a_1^2*c_1^2*(fsw*kHz)^2))+(b_1^3*(ftyp)*M1M2/(27*a_1^4*c_1*(fsw*kHz))-(d_1^3*(ftyp)*M1M2/(27*a_1*c_1*(fsw*kHz)))+(b_1*d_1^2*(ftyp)*M1M2/(9*a_1^2*c_1*(fsw*kHz)))-(b_1^2*d_1*(ftyp)*M1M2/(9*a_1^3*c_1*(fsw*kHz)))) -> 3.604943064 | J43: K1V2 | K43: =(b_1^3/(27*a_1^3))-(d_1^3/27)+SQRT((ftyp)^2*M1M2^2/(4*a_1^2*c_1^2*(fsw*kHz)^2))+(b_1^3*(ftyp)*M1M2/(27*a_1^4*c_1*(fsw*kHz))-(d_1^3*(ftyp)*M1M2/(27*a_1*c_1*(fsw*kHz)))+(b_1*d_1^2*(ftyp)*M1M2/(9*a_1^2*c_1*(fsw*kHz)))-(b_1^2*d_1*(ftyp)*M1M2/(9*a_1^3*c_1*(fsw*kHz)))) -> 3.604943064
A44: 1.95 | B44: 0.2162 | C44: 0.1780170577 | D44: 0.03848728787 | G44: K2V2 | H44: =(b_1*d_1^2/(9*a_1))-(b_1^2*d_1/(9*a_1^2))+(ftyp*M1M2/(2*a_1*c_1*fsw*kHz)) -> 3.600845187 | J44: K2V2 | K44: =(b_1*d_1^2/(9*a_1))-(b_1^2*d_1/(9*a_1^2))+(ftyp*M1M2/(2*a_1*c_1*fsw*kHz)) -> 3.600845187
A45: 2 | B45: 0.225 | C45: 0.1905057692 | D45: 0.04286379808 | G45: K3V2 | H45: =(d_1^2/9)+(b_1^2/(9*a_1^2))-(2*b_1*d_1/(9*a_1)) -> 0.0004565709694 | J45: K3V2 | K45: =(d_1^2/9)+(b_1^2/(9*a_1^2))-(2*b_1*d_1/(9*a_1)) -> 0.0004565709694
A46: 2.05 | B46: 0.24065 | C46: 0.2034178269 | D46: 0.04895250005 | G46: K4V2 | H46: =((b_1*c_1*fsw*kHz)+(2*a_1*c_1*d_1*fsw*kHz))/(3*a_1*c_1*fsw*kHz) -> 0.5213675214 | J46: K4V2 | K46: =((b_1*c_1*fsw*kHz)+(2*a_1*c_1*d_1*fsw*kHz))/(3*a_1*c_1*fsw*kHz) -> 0.5213675214
A47: 2.1 | B47: 0.2563 | C47: 0.2167532308 | D47: 0.05555385305 | G47: VCOMP2 | H47: =(K_1V2+K_2V2)^(1/3)+(K_3V2/(K_1V2^(1/3)))+K_4V2 -> 2.453161371 | J47: VCOMP2 | K47: =(K_1V2+K_2V2)^(1/3)+(K_3V2/(K_1V2^(1/3)))+K_4V2 -> 2.453161371
A48: 2.15 | B48: 0.27195 | C48: 0.2305119808 | D48: 0.06268773317
A49: 2.2 | B49: 0.2876 | C49: 0.2446940769 | D49: 0.07037401652 | G49: a2 | H49: 0.313 | J49: a2 | K49: 0.313
A50: 2.25 | B50: 0.30325 | C50: 0.2592995192 | D50: 0.07863257921 | G50: b2 | H50: 0.401 | J50: b2 | K50: 0.401
A51: 2.3 | B51: 0.3189 | C51: 0.2743283077 | D51: 0.08748329732 | G51: c2 | H51: 0.1223 | J51: c2 | K51: 0.1223
A52: 2.35 | B52: 0.33455 | C52: 0.2897804423 | D52: 0.09694604697 | G52: d2 | H52: 0.5 | J52: d2 | K52: 0.5
A53: 2.4 | B53: 0.3502 | C53: 0.3056559231 | D53: 0.1070407043 | G53: K1V3 | H53: =(b_2^3/(27*a_2^3))-(d_2^3/27) -> 0.07325223506 | J53: K1V3 | K53: =(b_2^3/(27*a_2^3))-(d_2^3/27) -> 0.07325223506
A54: 2.45 | B54: 0.36585 | C54: 0.32195475 | D54: 0.1177871453 | G54: K2V3 | H54: =(ftyp^2*M1M2^2/(4*a_2^2*c_2^2*(fsw*kHz)^2))+(b_2^3*ftyp*M1M2/(27*a_2^4*c_2*(fsw*kHz)))-(d_2^3*ftyp*M1M2/(27*a_2*c_2*(fsw*kHz)))+(b_2*d_2^2*ftyp*M1M2/(9*a_2^2*c_2*(fsw*kHz)))-(b_2^2*d_2*ftyp*M1M2/(9*a_2^3*c_2*(fsw*kHz))) -> 3.287837916 | J54: K2V3 | K54: =(ftyp^2*M1M2^2/(4*a_2^2*c_2^2*(fsw*kHz)^2))+(b_2^3*ftyp*M1M2/(27*a_2^4*c_2*(fsw*kHz)))-(d_2^3*ftyp*M1M2/(27*a_2*c_2*(fsw*kHz)))+(b_2*d_2^2*ftyp*M1M2/(9*a_2^2*c_2*(fsw*kHz)))-(b_2^2*d_2*ftyp*M1M2/(9*a_2^3*c_2*(fsw*kHz))) -> 3.287837916
A55: 2.5 | B55: 0.3815 | C55: 0.3386769231 | D55: 0.1292052462 | G55: K3V3 | H55: =(b_2*d_2^2/(9*a_2))-(b_2^2*d_2/(9*a_2^2))+(ftyp*M1M2/(2*a_2*c_2*(fsw*kHz))) -> 1.740073322 | J55: K3V3 | K55: =(b_2*d_2^2/(9*a_2))-(b_2^2*d_2/(9*a_2^2))+(ftyp*M1M2/(2*a_2*c_2*(fsw*kHz))) -> 1.740073322
A56: 2.55 | B56: 0.39715 | C56: 0.3558224423 | D56: 0.141314883 | G56: K4V3 | H56: =(d_2^2/9)+(b_2^2/(9*a_2^2))-(2*b_2*d_2/(9*a_2)) -> 0.06779950801 | J56: K4V3 | K56: =(d_2^2/9)+(b_2^2/(9*a_2^2))-(2*b_2*d_2/(9*a_2)) -> 0.06779950801
A57: 2.6 | B57: 0.4128 | C57: 0.3733913077 | D57: 0.1541359318 | G57: K5V3 | H57: =(b_2*c_2*(fsw*kHz)+2*a_2*c_2*d_2*(fsw*kHz))/(3*a_2*c_2*(fsw*kHz)) -> 0.7603833866 | J57: K5V3 | K57: =(b_2*c_2*(fsw*kHz)+2*a_2*c_2*d_2*(fsw*kHz))/(3*a_2*c_2*(fsw*kHz)) -> 0.7603833866
A58: 2.65 | B58: 0.42845 | C58: 0.3913835192 | D58: 0.1676882688 | G58: VCOMP3 | H58: =((K_1V3+SQRT(K_2V3)+K_3V3)^(1/3))+(K_4V3/((K_1V3+SQRT(K_2V3)+K_3V3)^(1/3)))+K_5V3 -> 2.34089226 | J58: VCOMP3 | K58: =((K_1V3+SQRT(K_2V3)+K_3V3)^(1/3))+(K_4V3/((K_1V3+SQRT(K_2V3)+K_3V3)^(1/3)))+K_5V3 -> 2.34089226
A59: 2.7 | B59: 0.4441 | C59: 0.4097990769 | D59: 0.1819917701
A60: 2.75 | B60: 0.45975 | C60: 0.4286379808 | D60: 0.1970663117 | G60: a3 | H60: 1.007 | J60: a3 | K60: 1.007
A61: =A60+0.05 -> 2.8 | B61: 0.4754 | C61: 0.4479002308 | D61: 0.2129317697 | G61: b3 | H61: 0.1223 | J61: b3 | K61: 0.1223
A62: 2.85 | B62: 0.49105 | C62: 0.4675858269 | D62: 0.2296080203 | G62: c3 | H62: 0.5 | J62: c3 | K62: 0.5
A63: 2.9 | B63: 0.5067 | C63: 0.4876947692 | D63: 0.2471149396 | G63: VCOMP4 | H63: =c_3+(SQRT(ftyp)*SQRT(M1M2)/(SQRT(a_3)*SQRT(b_3)*SQRT(fsw*kHz))) -> 1.556539892 | J63: VCOMP4 | K63: =c_3+(SQRT(ftyp)*SQRT(M1M2)/(SQRT(a_3)*SQRT(b_3)*SQRT(fsw*kHz))) -> 1.556539892
A64: 2.95 | B64: 0.52235 | C64: 0.5082270577 | D64: 0.2654724036
A65: 3 | B65: 0.538 | C65: 0.5291826923 | D65: 0.2847002885 | G65: a4 | H65: 1.007 | J65: a4 | K65: 1.007
A66: 3.05 | B66: 0.55365 | C66: 0.5505616731 | D66: 0.3048184703 | G66: b4 | H66: 2.056 | J66: b4 | K66: 2.056
A67: 3.1 | B67: 0.5693 | C67: 0.572364 | D67: 0.3258468252 | G67: VCOMP5 | H67: =(a_4*(fsw*kHz)*b_4/ftyp) -> 1.460410613 | J67: VCOMP5 | K67: =(a_4*(fsw*kHz)*b_4/ftyp) -> 1.460410613
A68: 3.15 | B68: 0.58495 | C68: 0.5945896731 | D68: 0.3478052293
A69: 3.2 | B69: 0.6006 | C69: =IF(A69<=0.5,0,IF(A69<4.6,((fSW_target/65)*0.1223*(A69-0.5)^2),IF(A69<=5,((fSW_target/65)*2.056),"VCOMP MUST BE < 5"))) -> 0.6172386923 | D69: 0.3707135586 | G69: VCOMP = | H69: =IF(VCOMP1>=0.5,IF(VCOMP1<1,VCOMP1,IF(VCOMP2>=1,IF(VCOMP2<2,VCOMP2,IF(VCOMP3>=2,IF(VCOMP3<4.5,VCOMP3,IF(VCOMP4>=4.5,IF(VCOMP4<4.6,VCOMP4,VCOMP5)))))))) -> 2.34089226 | J69: VCOMP = | K69: =IF(VCOMP1>=0.5,IF(VCOMP1<1,VCOMP1,IF(VCOMP2>=1,IF(VCOMP2<2,VCOMP2,IF(VCOMP3>=2,IF(VCOMP3<4.5,VCOMP3,IF(VCOMP4>=4.5,IF(VCOMP4<4.6,VCOMP4,VCOMP5)))))))) -> 2.34089226
A70: 3.25 | B70: =IF(A70<1,(0.068),IF(A70<2,(0.156*A70-0.088),IF(A70<4.5,(0.313*A70-0.401),IF(A70<=5,1.007,"VCOMP MUST BE < 5")))) -> 0.61625 | C70: 0.6403110577 | D70: =B70*C70 -> 0.3945916893
A71: =A70+0.05 -> 3.3 | B71: 0.6319 | C71: 0.6638067692 | D71: 0.4194594975
A72: 3.35 | B72: 0.64755 | C72: 0.6877258269 | D72: 0.4453368592
A73: 3.4 | B73: 0.6632 | C73: 0.7120682308 | D73: 0.4722436506
A74: 3.45 | B74: 0.67885 | C74: 0.7368339808 | D74: 0.5001997478
A75: 3.5 | B75: 0.6945 | C75: 0.7620230769 | D75: 0.5292250269
A76: 3.55 | B76: 0.71015 | C76: 0.7876355192 | D76: 0.559339364
A77: 3.6 | B77: 0.7258 | C77: 0.8136713077 | D77: 0.5905626351
A78: 3.65 | B78: 0.74145 | C78: 0.8401304423 | D78: 0.6229147164
A79: 3.7 | B79: 0.7571 | C79: 0.8670129231 | D79: 0.6564154841
A80: 3.75 | B80: 0.77275 | C80: 0.89431875 | D80: 0.6910848141
A81: 3.8 | B81: 0.7884 | C81: 0.9220479231 | D81: 0.7269425826
A82: 3.85 | B82: 0.80405 | C82: 0.9502004423 | D82: 0.7640086656
A83: 3.9 | B83: 0.8197 | C83: 0.9787763077 | D83: 0.8023029394
A84: 3.95 | B84: 0.83535 | C84: 1.007775519 | D84: 0.84184528
A85: 4 | B85: 0.851 | C85: 1.037198077 | D85: 0.8826555635
A86: 4.05 | B86: 0.86665 | C86: 1.067043981 | D86: 0.9247536659
A87: 4.1 | B87: 0.8823 | C87: 1.097313231 | D87: 0.9681594635
A88: =A87+0.05 -> 4.15 | B88: 0.89795 | C88: 1.128005827 | D88: 1.012892832
A89: =A88+0.05 -> 4.2 | B89: 0.9136 | C89: 1.159121769 | D89: 1.058973648
A90: 4.25 | B90: 0.92925 | C90: 1.190661058 | D90: 1.106421788
A91: 4.3 | B91: 0.9449 | C91: 1.222623692 | D91: 1.155257127
A92: 4.35 | B92: 0.96055 | C92: 1.255009673 | D92: 1.205499541
A93: 4.4 | B93: 0.9762 | C93: 1.287819 | D93: 1.257168908
A94: 4.45 | B94: 0.99185 | C94: 1.321051673 | D94: 1.310285102
A95: 4.5 | B95: 1.0075 | C95: 1.354707692 | D95: 1.364868
A96: 4.55 | B96: 1.007 | C96: 1.388787058 | D96: 1.398508567
A97: 4.6 | B97: 1.007 | C97: 1.423289769 | D97: 1.433252798
A98: 4.65 | B98: 1.007 | C98: 1.423384615 | D98: 1.433348308
A99: 4.7 | B99: 1.007 | C99: 1.423384615 | D99: 1.433348308
A100: 4.75 | B100: 1.007 | C100: 1.423384615 | D100: 1.433348308
A101: 4.8 | B101: 1.007 | C101: 1.423384615 | D101: 1.433348308
A102: 4.85 | B102: 1.007 | C102: 1.423384615 | D102: 1.433348308
A103: 4.9 | B103: 1.007 | C103: 1.423384615 | D103: 1.433348308
A104: 4.95 | B104: 1.007 | C104: 1.423384615 | D104: 1.433348308
A105: 5 | B105: 1.007 | C105: 1.423384615 | D105: 1.433348308
A110: Data For Current Averaging Bode Plot | G110: Data For Open Loop Voltage Bode Plot | P110: Data for Closed Loop Voltage Bode Plot
A111: Log scale converter | G111: Log scale converter | O111: Total Open Loop Phase | P111: EA Gain | R111: Total Closed Voltage Loop Bode Plot
B112: frequency | C112: w | D112: Gain | F112: Phase | H112: frequency | I112: w | J112: Voltage Feedback Gain | K112: PWM to Power Stage Gain | M112: Total Open Loop Gain | Q112: dB | S112: dB | T112: Phase Margin
B113: Hz | C113: rad | E113: dB | F113: degrees | H113: Hz | I113: rad | J113: V/V | L113: dB | N113: dB | O113: degrees | W113: 1+sRVCOMPCVCOMP | X113: s(CVCOMP+CVCOMP_P) | Y113: 1+S(rvcompcvcompcvcomp_p/CVCOMP+CVCOMPP)
A114: 1 | B114: =10^A114 -> 10 | C114: =2*PI()*B114 -> 62.83185307 | D114: =IMDIV((K_1*2.5*Rsense*Vout_nom)/(K_FQ*M_1*(M_2/us)*Lbst*mH),IMPRODUCT((COMPLEX(0,C114*1)),COMPLEX(1,(C114/(2*PI()*fiavg*kHz))))) -> -1.10833105200573-240.62779068651i | E114: =20*LOG(IMABS(D114)) -> 47.62700781 | F114: =IMARGUMENT(D114)*180/(PI()) -> -90.26390236 | G114: -2 | H114: =10^G114 -> 0.01 | I114: =2*PI()*H114 -> 0.06283185307 | J114: =(R_fb2*kOhms)/((R_fb1*MegOhm)+(R_fb2*kOhms)) -> 0.0103908956 | K114: =IMDIV(((M_3/us)*Vout_nom)/(M1M2/us),COMPLEX(1,(I114/(2*PI()*fPWM_PSpole)))) -> 976.797336708604-6.70571818320918i | L114: =20*LOG(IMABS(K114)) -> 59.79629401 | M114: =IMPRODUCT(J114,K114) -> 10.1497991444239-0.0696784175395313i | N114: =20*LOG(IMABS(M114)) -> 20.12935363 | O114: =180/PI()*IMARGUMENT(M114) -> -0.3933296095 | P114: =IMPRODUCT(gmv,IMDIV((COMPLEX(1,I114*(Rvcomp*kOhms)*(Cvcomp*uF))),IMPRODUCT((COMPLEX(0,data!I114*((Cvcomp*uF)+(Cvcomp_p*uF)))),(COMPLEX(1,I114*((Rvcomp*kOhms)*(Cvcomp*uF)*(Cvcomp_p*uF))/((Cvcomp*uF)+(Cvcomp_p*uF))))))) -> 0.663395797877417-103.756625636576i | Q114: =20*LOG(IMABS(P114)) -> 40.32049432 | R114: =IMPRODUCT((M114),(P114)) -> -0.496263381887562-1053.15513448383i | S114: =20*LOG(IMABS(R114)) -> 60.44984795 | T114: =(180/PI()*IMARGUMENT(R114))+180 -> 89.97300132 | W114: =COMPLEX(1,I114*('DESIGN INPUTS AND CALCULATIONS'!C263*10^3)*('DESIGN INPUTS AND CALCULATIONS'!C261*10^-6)) -> 1+0.00669787553745344i | X114: =COMPLEX(0,data!I114*(('DESIGN INPUTS AND CALCULATIONS'!C261*10^-6)+('DESIGN INPUTS AND CALCULATIONS'!C267*10^-6))) -> 5.39725617886726E-07i | Y114: =COMPLEX(1,I114*(('DESIGN INPUTS AND CALCULATIONS'!C263*10^3)*('DESIGN INPUTS AND CALCULATIONS'!C261*10^-6)*('DESIGN INPUTS AND CALCULATIONS'!C267*10^-6))/(('DESIGN INPUTS AND CALCULATIONS'!C261*10^-6)+('DESIGN INPUTS AND CALCULATIONS'!C267*10^-6))) -> 1+0.000304094465611972i
A115: 1.1 | B115: =10^A115 -> 12.58925412 | C115: 79.1006165 | D115: -1.10831729959293-191.135076526582i | E115: 45.62695392 | F115: =180/PI()*IMARGUMENT(D115) -> -90.33223202 | G115: -1.9 | H115: =10^G115 -> 0.01258925412 | I115: =2*PI()*H115 -> 0.0791006165 | J115: 0.0103908956 | K115: 976.77041328666-8.44176633872517i | L115: 59.7961743 | M115: 10.1495193859574-0.0877175126735421i | N115: 20.12923393 | O115: -0.495168091 | P115: =IMPRODUCT(gmv,IMDIV((COMPLEX(1,I115*(Rvcomp*kOhms)*(Cvcomp*uF))),IMPRODUCT((COMPLEX(0,data!I115*((Cvcomp*uF)+(Cvcomp_p*uF)))),(COMPLEX(1,I115*((Rvcomp*kOhms)*(Cvcomp*uF)*(Cvcomp_p*uF))/((Cvcomp*uF)+(Cvcomp_p*uF))))))) -> 0.663395761996279-82.4169110083424i | Q115: 38.32060804 | R115: -0.496258288945249-836.550227436058i | S115: 58.44984196 | T115: 89.966011
A116: 1.2 | B116: 15.84893192 | C116: 99.5817762 | D116: -1.10829550418657-151.82100226504i | E116: 43.62686851 | F116: -90.41825259 | G116: -1.8 | H116: 0.01584893192 | I116: 0.0995817762 | J116: 0.0103908956 | K116: 976.727745578547-10.6270899268272i | L116: 59.79598459 | M116: 10.149076030257-0.11042498192151i | N116: 20.12904421 | O116: -0.6233706157 | P116: =IMPRODUCT(gmv,IMDIV((COMPLEX(1,I116*(Rvcomp*kOhms)*(Cvcomp*uF))),IMPRODUCT((COMPLEX(0,data!I116*((Cvcomp*uF)+(Cvcomp_p*uF)))),(COMPLEX(1,I116*((Rvcomp*kOhms)*(Cvcomp*uF)*(Cvcomp_p*uF))/((Cvcomp*uF)+(Cvcomp_p*uF))))))) -> 0.663395705128509-65.4661974260739i | Q116: 36.32078825 | R116: -0.496250217749025-664.494670547785i | S116: 56.44983246 | T116: 89.95721104
A117: 1.3 | B117: 19.95262315 | C117: 125.3660286 | D117: -1.10826096255129-120.591950183257i | E117: 41.62673316 | F117: -90.52654334 | G117: -1.7 | H117: 0.01995262315 | I117: 0.1253660286 | J117: 0.0103908956 | K117: 976.660129453589-13.3777873914529i | L117: 59.79568393 | M117: 10.148373438162-0.139007192093276i | N117: 20.12874355 | O117: -0.784758999 | P117: =IMPRODUCT(gmv,IMDIV((COMPLEX(1,I117*(Rvcomp*kOhms)*(Cvcomp*uF))),IMPRODUCT((COMPLEX(0,data!I117*((Cvcomp*uF)+(Cvcomp_p*uF)))),(COMPLEX(1,I117*((Rvcomp*kOhms)*(Cvcomp*uF)*(Cvcomp_p*uF))/((Cvcomp*uF)+(Cvcomp_p*uF))))))) -> 0.663395614999186-52.0017975804073i | Q117: 34.32107387 | R117: -0.496237427204449-527.825878063371i | S117: 54.44981742 | T117: 89.94613318
A118: 1.4 | B118: 25.11886432 | C118: 157.8264792 | D118: -1.1082062221588-95.7848595706818i | E118: 39.62651864 | F118: -90.66286788 | G118: -1.6 | H118: 0.02511886432 | I118: 0.1578264792 | J118: 0.0103908956 | K118: 976.552984291852-16.8397888775276i | L118: 59.79520745 | M118: 10.1472601039727-0.174980488089104i | N118: 20.12826708 | O118: -0.9879169154 | P118: =IMPRODUCT(gmv,IMDIV((COMPLEX(1,I118*(Rvcomp*kOhms)*(Cvcomp*uF))),IMPRODUCT((COMPLEX(0,data!I118*((Cvcomp*uF)+(Cvcomp_p*uF)))),(COMPLEX(1,I118*((Rvcomp*kOhms)*(Cvcomp*uF)*(Cvcomp_p*uF))/((Cvcomp*uF)+(Cvcomp_p*uF))))))) -> 0.663395472153893-41.3066830813463i | Q118: 32.32152649 | R118: -0.496217159172579-419.265738522303i | S118: 52.44979357 | T118: 89.93218827
A119: 1.5 | B119: 31.6227766 | C119: 198.6917653 | D119: -1.10811947555937-76.0786627719323i | E119: 37.62617868 | F119: -90.83447944 | G119: -1.5 | H119: 0.0316227766 | I119: 0.1986917653 | J119: 0.0103908956 | K119: 976.383218801358-21.1963526995455i | L119: 59.7944524 | M119: 10.1454960884852-0.220249087922046i | N119: 20.12751203 | O119: -1.243641632 | P119: =IMPRODUCT(gmv,IMDIV((COMPLEX(1,I119*(Rvcomp*kOhms)*(Cvcomp*uF))),IMPRODUCT((COMPLEX(0,data!I119*((Cvcomp*uF)+(Cvcomp_p*uF)))),(COMPLEX(1,I119*((Rvcomp*kOhms)*(Cvcomp*uF)*(Cvcomp_p*uF))/((Cvcomp*uF)+(Cvcomp_p*uF))))))) -> 0.663395245759484-32.8113000818175i | Q119: 30.32224376 | R119: -0.496185045584334-333.033028836004i | S119: 50.44975578 | T119: 89.91463523
A120: 1.6 | B120: 39.81071706 | C120: 250.1381125 | D120: -1.1079820192791-60.4239337049087i | E120: 35.62563992 | F120: -91.05050393 | G120: -1.4 | H120: 0.03981071706 | I120: 0.2501381125 | J120: 0.0103908956 | K120: 976.114279503234-26.677276919497i | L120: 59.793256 | M120: 10.1427015683166-0.277200799262463i | N120: 20.12631562 | O120: -1.565508279 | P120: =IMPRODUCT(gmv,IMDIV((COMPLEX(1,I120*(Rvcomp*kOhms)*(Cvcomp*uF))),IMPRODUCT((COMPLEX(0,data!I120*((Cvcomp*uF)+(Cvcomp_p*uF)))),(COMPLEX(1,I120*((Rvcomp*kOhms)*(Cvcomp*uF)*(Cvcomp_p*uF))/((Cvcomp*uF)+(Cvcomp_p*uF))))))) -> 0.663394886948836-26.0632384583952i | Q120: 28.3233803 | R120: -0.496134171766141-264.535543180263i | S120: 48.44969592 | T120: 89.89254238
A121: 1.7 | B121: 50.11872336 | C121: 314.9052262 | D121: -1.10776423559552-47.9870024700138i | E121: 33.6247862 | F121: -91.32241943 | G121: -1.3 | H121: 0.05011872336 | I121: 0.3149052262 | J121: 0.0103908956 | K121: 975.688342788553-33.5700468285609i | L121: 59.7913605 | M121: 10.1382757043838-0.348822851756447i | N121: 20.12442013 | O121: -1.970571408 | P121: =IMPRODUCT(gmv,IMDIV((COMPLEX(1,I121*(Rvcomp*kOhms)*(Cvcomp*uF))),IMPRODUCT((COMPLEX(0,data!I121*((Cvcomp*uF)+(Cvcomp_p*uF)))),(COMPLEX(1,I121*((Rvcomp*kOhms)*(Cvcomp*uF)*(Cvcomp_p*uF))/((Cvcomp*uF)+(Cvcomp_p*uF))))))) -> 0.663394318273086-20.7031393224407i | Q121: 26.32518099 | R121: -0.496053599390518-210.125541495112i | S121: 46.44960112 | T121: 89.86473931
A122: 1.8 | B122: 63.09573445 | C122: 396.4421916 | D122: -1.10741924703548-38.1055601346959i | E122: 31.62343347 | F122: -91.66465457 | G122: -1.2 | H122: 0.06309573445 | I122: 0.3964421916 | J122: 0.0103908956 | K122: 975.014039496499-42.2329774115529i | L122: 59.78835803 | M122: 10.1312690892758-0.438838459001787i | N122: 20.12141766 | O122: -2.480230675 | P122: =IMPRODUCT(gmv,IMDIV((COMPLEX(1,I122*(Rvcomp*kOhms)*(Cvcomp*uF))),IMPRODUCT((COMPLEX(0,data!I122*((Cvcomp*uF)+(Cvcomp_p*uF)))),(COMPLEX(1,I122*((Rvcomp*kOhms)*(Cvcomp*uF)*(Cvcomp_p*uF))/((Cvcomp*uF)+(Cvcomp_p*uF))))))) -> 0.663393416984754-16.4455578487448i | Q122: 24.32803336 | R122: -0.495926044241221-166.905494433707i | S122: 44.44945101 | T122: 89.82975764
A123: 1.9 | B123: 79.43282347 | C123: 499.0911493 | D123: -1.10687291695206-30.2533898536675i | E123: 29.62129041 | F123: -92.09533121 | G123: -1.1 | H123: 0.07943282347 | I123: 0.4990911493 | J123: 0.0103908956 | K123: 973.947247869169-53.1099956173316i | L123: 59.78360369 | M123: 10.1201841688533-0.551860419576429i | N123: 20.11666331 | O123: -3.121285861 | P123: =IMPRODUCT(gmv,IMDIV((COMPLEX(1,I123*(Rvcomp*kOhms)*(Cvcomp*uF))),IMPRODUCT((COMPLEX(0,data!I123*((Cvcomp*uF)+(Cvcomp_p*uF)))),(COMPLEX(1,I123*((Rvcomp*kOhms)*(Cvcomp*uF)*(Cvcomp_p*uF))/((Cvcomp*uF)+(Cvcomp_p*uF))))))) -> 0.663391988544034-13.0637622974478i | Q123: 22.33255021 | R123: -0.495724242508834-132.573780169435i | S123: 42.44921352 | T123: 89.78575873
A124: 2 | B124: 100 | C124: 628.3185307 | D124: -1.10600814544161-24.0123468558674i | E124: 27.61789605 | F124: -92.6371784 | G124: -1 | H124: 0.1 | I124: 0.6283185307 | J124: 0.0103908956 | K124: 972.261270598333-66.7457806861962i | L124: 59.7760792 | M124: 10.1026653550544-0.693548438599763i | N124: 20.10913883 | O124: -3.927196217 | P124: =IMPRODUCT(gmv,IMDIV((COMPLEX(1,I124*(Rvcomp*kOhms)*(Cvcomp*uF))),IMPRODUCT((COMPLEX(0,data!I124*((Cvcomp*uF)+(Cvcomp_p*uF)))),(COMPLEX(1,I124*((Rvcomp*kOhms)*(Cvcomp*uF)*(Cvcomp_p*uF))/((Cvcomp*uF)+(Cvcomp_p*uF))))))) -> 0.663389724630657-10.3776597215966i | Q124: 20.33969928 | R124: -0.495405308307756-105.302116243618i | S124: 40.44883811 | T124: 89.73044774
A125: 2.1 | B125: 125.8925412 | C125: 791.006165 | D125: -1.10464033942072-19.0500965641407i | E125: 25.61252179 | F125: -93.31864121 | G125: -0.9 | H125: 0.1258925412 | I125: 0.791006165 | J125: 0.0103908956 | K125: 969.60110066469-83.7980534856751i | L125: 59.76418034 | M125: 10.0750238070057-0.870736824937742i | N125: 20.09723996 | O125: -4.939530266 | P125: =IMPRODUCT(gmv,IMDIV((COMPLEX(1,I125*(Rvcomp*kOhms)*(Cvcomp*uF))),IMPRODUCT((COMPLEX(0,data!I125*((Cvcomp*uF)+(Cvcomp_p*uF)))),(COMPLEX(1,I125*((Rvcomp*kOhms)*(Cvcomp*uF)*(Cvcomp_p*uF))/((Cvcomp*uF)+(Cvcomp_p*uF))))))) -> 0.663386136601412-8.24420535998024i | Q125: 18.35100565 | R125: -0.494902079787147-83.638200009937i | S125: 38.44824561 | T125: 89.66097466
A126: 2.2 | B126: 158.4893192 | C126: 995.817762 | D126: -1.1024794294141-15.1024281266109i | E126: 23.60401775 | F126: -94.1751941 | G126: -0.8 | H126: 0.1584893192 | I126: 0.995817762 | J126: 0.0103908956 | K126: 965.414704693377-105.040006592429i | L126: 59.74538843 | M126: 10.0315234035433-1.09145974193024i | N126: 20.07844806 | O126: -6.209526031 | P126: =IMPRODUCT(gmv,IMDIV((COMPLEX(1,I126*(Rvcomp*kOhms)*(Cvcomp*uF))),IMPRODUCT((COMPLEX(0,data!I126*((Cvcomp*uF)+(Cvcomp_p*uF)))),(COMPLEX(1,I126*((Rvcomp*kOhms)*(Cvcomp*uF)*(Cvcomp_p*uF))/((Cvcomp*uF)+(Cvcomp_p*uF))))))) -> 0.663380450037782-6.54978497993406i | Q126: 16.36886471 | R126: -0.494110113890295-66.4283743691847i | S126: 36.44731277 | T126: 89.57382817
A127: 2.3 | B127: 199.5262315 | C127: 1253.660286 | D127: -1.0990718822224-11.959206914919i | E127: 21.59057377 | F127: -95.25083206 | G127: -0.7 | H127: 0.1995262315 | I127: 1.253660286 | J127: 0.0103908956 | K127: 958.853261791351-131.338780902444i | L127: 59.71577084 | M127: 9.96334413538762-1.36472756009467i | N127: 20.04883046 | O127: -7.799543806 | P127: =IMPRODUCT(gmv,IMDIV((COMPLEX(1,I127*(Rvcomp*kOhms)*(Cvcomp*uF))),IMPRODUCT((COMPLEX(0,data!I127*((Cvcomp*uF)+(Cvcomp_p*uF)))),(COMPLEX(1,I127*((Rvcomp*kOhms)*(Cvcomp*uF)*(Cvcomp_p*uF))/((Cvcomp*uF)+(Cvcomp_p*uF))))))) -> 0.6633714376415-5.20416450106852i | Q127: 14.39701921 | R127: -0.492868799065443-52.7562031448425i | S127: 34.44584967 | T127: 89.4647363
A128: 2.4 | B128: 251.1886432 | C128: 1578.264792 | D128: -1.09371422106617-9.45322819711339i | E128: 19.56935139 | F128: -96.59963158 | G128: -0.6 | H128: 0.2511886432 | I128: 1.578264792 | J128: 0.0103908956 | K128: 948.63482394203-163.583649981251i | L128: 59.66923997 | M128: 9.85716541453866-1.69978062820696i | N128: 20.0022996 | O128: -9.783927451 | P128: =IMPRODUCT(gmv,IMDIV((COMPLEX(1,I128*(Rvcomp*kOhms)*(Cvcomp*uF))),IMPRODUCT((COMPLEX(0,data!I128*((Cvcomp*uF)+(Cvcomp_p*uF)))),(COMPLEX(1,I128*((Rvcomp*kOhms)*(Cvcomp*uF)*(Cvcomp_p*uF))/((Cvcomp*uF)+(Cvcomp_p*uF))))))) -> 0.663357154457575-4.13568469330048i | Q128: 12.44126901 | R128: -0.49093552563821-41.8936897649679i | S128: 32.4435686 | T128: 89.32860423
A129: 2.5 | B129: 316.227766 | C129: 1986.917653 | D129: -1.08532907593475-7.45139730740054i | E129: 17.53592718 | F129: -98.28710813 | G129: -0.5 | H129: 0.316227766 | I129: 1.986917653 | J129: 0.0103908956 | K129: 932.878409350636-202.519045899436i | L129: 59.59649976 | M129: 9.69344215554842-2.10435426219107i | N129: 19.92955938 | O129: -12.24831595 | P129: =IMPRODUCT(gmv,IMDIV((COMPLEX(1,I129*(Rvcomp*kOhms)*(Cvcomp*uF))),IMPRODUCT((COMPLEX(0,data!I129*((Cvcomp*uF)+(Cvcomp_p*uF)))),(COMPLEX(1,I129*((Rvcomp*kOhms)*(Cvcomp*uF)*(Cvcomp_p*uF))/((Cvcomp*uF)+(Cvcomp_p*uF))))))) -> 0.663334518396463-3.28744504528876i | Q129: 10.51048573 | R129: -0.487954208917635-33.2625492070969i | S129: 30.44004511 | T129: 89.15954393
A130: 2.6 | B130: 398.1071706 | C130: 2501.381125 | D130: -1.07229972091633-5.84779952391261i | E130: 15.48347473 | F130: -100.3907834 | G130: -0.4 | H130: 0.3981071706 | I130: 2.501381125 | J130: 0.0103908956 | K130: 908.950832054473-248.41694832356i | L130: 59.48365325 | M130: 9.44481319799304-2.58127457436653i | N130: 19.81671288 | O130: -15.28569755 | P130: =IMPRODUCT(gmv,IMDIV((COMPLEX(1,I130*(Rvcomp*kOhms)*(Cvcomp*uF))),IMPRODUCT((COMPLEX(0,data!I130*((Cvcomp*uF)+(Cvcomp_p*uF)))),(COMPLEX(1,I130*((Rvcomp*kOhms)*(Cvcomp*uF)*(Cvcomp_p*uF))/((Cvcomp*uF)+(Cvcomp_p*uF))))))) -> 0.663298645821566-2.61427357229216i | Q130: 8.617966649 | R130: -0.483426098329676-26.4034814684204i | S130: 28.43467953 | T130: 88.95107845
A131: 2.7 | B131: 501.1872336 | C131: 3149.052262 | D131: -1.05227842674978-4.55834245600449i | E131: 13.40161947 | F131: -102.9988323 | G131: -0.3 | H131: 0.5011872336 | I131: 3.149052262 | J131: 0.0103908956 | K131: 873.444249366822-300.521827180792i | L131: 59.31060124 | M131: 9.07586800430641-3.12269093062674i | N131: 19.64366086 | O131: -18.98656072 | P131: =IMPRODUCT(gmv,IMDIV((COMPLEX(1,I131*(Rvcomp*kOhms)*(Cvcomp*uF))),IMPRODUCT((COMPLEX(0,data!I131*((Cvcomp*uF)+(Cvcomp_p*uF)))),(COMPLEX(1,I131*((Rvcomp*kOhms)*(Cvcomp*uF)*(Cvcomp_p*uF))/((Cvcomp*uF)+(Cvcomp_p*uF))))))) -> 0.663241799568729-2.0803211785949i | Q131: 6.783021696 | R131: -0.476705049364593-20.9518195758163i | S131: 26.42668256 | T131: 88.69660601
A132: 2.8 | B132: 630.9573445 | C132: 3964.421916 | D132: -1.0220342746092-3.51675199930795i | E132: 11.2749674 | F132: -106.2048582 | G132: -0.2 | H132: 0.6309573445 | I132: 3.964421916 | J132: 0.0103908956 | K132: 822.521069411584-356.277062050556i | L132: 59.04971965 | M132: 8.54673055796302-3.70203775510226i | N132: 19.38277928 | O132: -23.4199695 | P132: =IMPRODUCT(gmv,IMDIV((COMPLEX(1,I132*(Rvcomp*kOhms)*(Cvcomp*uF))),IMPRODUCT((COMPLEX(0,data!I132*((Cvcomp*uF)+(Cvcomp_p*uF)))),(COMPLEX(1,I132*((Rvcomp*kOhms)*(Cvcomp*uF)*(Cvcomp_p*uF))/((Cvcomp*uF)+(Cvcomp_p*uF))))))) -> 0.663151724285803-1.65715243350037i | Q132: 5.032354657 | R132: -0.467061768258617-16.6182480632676i | S132: 24.41513394 | T132: 88.39010555
A133: 2.9 | B133: 794.3282347 | C133: 4990.911493 | D133: -0.977506557804843-2.67175088710453i | E133: 9.081509594 | F133: -110.0959257 | G133: -0.1 | H133: 0.7943282347 | I133: 4.990911493 | J133: 0.0103908956 | K133: 752.947391976486-410.58725485843i | L133: 58.66589567 | M133: 7.82379773948847-4.26636929838052i | N133: 18.9989553 | O133: -28.60393056 | P133: =IMPRODUCT(gmv,IMDIV((COMPLEX(1,I133*(Rvcomp*kOhms)*(Cvcomp*uF))),IMPRODUCT((COMPLEX(0,data!I133*((Cvcomp*uF)+(Cvcomp_p*uF)))),(COMPLEX(1,I133*((Rvcomp*kOhms)*(Cvcomp*uF)*(Cvcomp_p*uF))/((Cvcomp*uF)+(Cvcomp_p*uF))))))) -> 0.663009014688944-1.32223102398639i | Q133: 3.400226714 | R133: -0.453877415717933-13.1735094013647i | S133: 22.39918201 | T133: 88.02672341
A134: 3 | B134: 1000 | C134: 6283.185307 | D134: -0.914369179364757-1.98517072226937i | E134: 6.791528587 | F134: -114.7307865 | G134: 0 | H134: 1 | I134: 6.283185307 | J134: 0.0103908956 | K134: 663.939876011075-455.795028488421i | L134: 58.11953687 | M134: 6.89892993381127-4.73611855430818i | N134: 18.45259649 | O134: -34.46961621 | P134: =IMPRODUCT(gmv,IMDIV((COMPLEX(1,I134*(Rvcomp*kOhms)*(Cvcomp*uF))),IMPRODUCT((COMPLEX(0,data!I134*((Cvcomp*uF)+(Cvcomp_p*uF)))),(COMPLEX(1,I134*((Rvcomp*kOhms)*(Cvcomp*uF)*(Cvcomp_p*uF))/((Cvcomp*uF)+(Cvcomp_p*uF))))))) -> 0.662782960993535-1.05771910204985i | Q134: 1.925816561 | R134: -0.436989855246116-10.4361486537365i | S134: 20.37841305 | T134: 87.60227096
A135: 3.1 | B135: 1258.925412 | C135: 7910.06165 | D135: -0.829458639744088-1.4304445183825i | E135: 4.36826015 | F135: -120.1077629 | G135: 0.1 | H135: 1.258925412 | I135: 7.91006165 | J135: 0.0103908956 | K135: 559.176200583844-483.269636681715i | L135: 57.37373613 | M135: 5.81034152016859-5.02160433959229i | N135: 17.70679575 | O135: -40.8353102 | P135: =IMPRODUCT(gmv,IMDIV((COMPLEX(1,I135*(Rvcomp*kOhms)*(Cvcomp*uF))),IMPRODUCT((COMPLEX(0,data!I135*((Cvcomp*uF)+(Cvcomp_p*uF)))),(COMPLEX(1,I135*((Rvcomp*kOhms)*(Cvcomp*uF)*(Cvcomp_p*uF))/((Cvcomp*uF)+(Cvcomp_p*uF))))))) -> 0.662425005612222-0.849526335948825i | Q135: 0.6464584967 | R135: -0.417069621091953-8.26247442507693i | S135: 18.35325425 | T135: 87.11030099
A136: 3.2 | B136: 1584.893192 | C136: 9958.17762 | D136: -0.723043280295909-0.990468291902839i | E136: 1.771955741 | F136: -126.129498 | G136: 0.2 | H136: 1.584893192 | I136: 9.95817762 | J136: 0.0103908956 | K136: 447.311711717163-486.688517579235i | L136: 56.40435203 | M136: 4.64796929542822-5.0571295740544i | N136: 16.73741166 | O136: -47.41412096 | P136: =IMPRODUCT(gmv,IMDIV((COMPLEX(1,I136*(Rvcomp*kOhms)*(Cvcomp*uF))),IMPRODUCT((COMPLEX(0,data!I136*((Cvcomp*uF)+(Cvcomp_p*uF)))),(COMPLEX(1,I136*((Rvcomp*kOhms)*(Cvcomp*uF)*(Cvcomp_p*uF))/((Cvcomp*uF)+(Cvcomp_p*uF))))))) -> 0.661858475894896-0.686557525965198i | Q136: -0.412365121 | R136: -0.395712494969829-6.53820237251805i | S136: 16.32504653 | T136: 86.53650475
A137: 3.3 | B137: 1995.262315 | C137: 12536.60286 | D137: -0.600866757948902-0.653814368544952i | E137: -1.031905422 | F137: -132.5835488 | G137: 0.3 | H137: 1.995262315 | I137: 12.53660286 | J137: 0.0103908956 | K137: 339.628558255119-465.205705381317i | L137: 55.20829135 | M137: 3.52904489033028-4.83390391539221i | N137: 15.54135098 | O137: -53.86827464 | P137: =IMPRODUCT(gmv,IMDIV((COMPLEX(1,I137*(Rvcomp*kOhms)*(Cvcomp*uF))),IMPRODUCT((COMPLEX(0,data!I137*((Cvcomp*uF)+(Cvcomp_p*uF)))),(COMPLEX(1,I137*((Rvcomp*kOhms)*(Cvcomp*uF)*(Cvcomp_p*uF))/((Cvcomp*uF)+(Cvcomp_p*uF))))))) -> 0.660962569073486-0.560117737380975i | Q137: -1.245894742 | R137: -0.37498874671816-5.17171018965971i | S137: 14.29545624 | T137: 85.85287301
A138: 3.4 | B138: 2511.886432 | C138: 15782.64792 | D138: -0.473941465678334-0.409638710079516i | E138: -4.062440129 | F138: -139.1623759 | G138: 0.4 | H138: 2.511886432 | I138: 15.78264792 | J138: 0.0103908956 | K138: 245.833718403255-423.918413386488i | L138: 53.80466384 | M138: 2.55443250196356-4.40489197482249i | N138: 14.13772347 | O138: -59.89020739 | P138: =IMPRODUCT(gmv,IMDIV((COMPLEX(1,I138*(Rvcomp*kOhms)*(Cvcomp*uF))),IMPRODUCT((COMPLEX(0,data!I138*((Cvcomp*uF)+(Cvcomp_p*uF)))),(COMPLEX(1,I138*((Rvcomp*kOhms)*(Cvcomp*uF)*(Cvcomp_p*uF))/((Cvcomp*uF)+(Cvcomp_p*uF))))))) -> 0.659547610062079-0.463441357918689i | Q138: -1.872330305 | R138: -0.356639266561908-4.08906564199743i | S138: 12.26539316 | T138: 85.01540241
A139: 3.5 | B139: 3162.27766 | C139: 19869.17653 | D139: -0.355068696481635-0.243774721194751i | E139: -7.316563344 | F139: -145.5282014 | G139: 0.5 | H139: 3.16227766 | I139: 19.86917653 | J139: 0.0103908956 | K139: 170.991186568897-371.20563209572i | L139: 52.2279866 | M139: 1.77675156751452-3.85715896784271i | N139: 12.56104622 | O139: -65.26743619 | P139: =IMPRODUCT(gmv,IMDIV((COMPLEX(1,I139*(Rvcomp*kOhms)*(Cvcomp*uF))),IMPRODUCT((COMPLEX(0,data!I139*((Cvcomp*uF)+(Cvcomp_p*uF)))),(COMPLEX(1,I139*((Rvcomp*kOhms)*(Cvcomp*uF)*(Cvcomp_p*uF))/((Cvcomp*uF)+(Cvcomp_p*uF))))))) -> 0.657317418672292-0.391316310952452i | Q139: -2.326996573 | R139: -0.341479464072784-3.23064964502982i | S139: 10.23404965 | T139: 83.96624382
A140: 3.6 | B140: 3981.071706 | C140: 25013.81125 | D140: -0.254070783521424-0.13855780971826i | E140: -10.77013993 | F140: -151.3941035 | G140: 0.6 | H140: 3.981071706 | I140: 25.01381125 | J140: 0.0103908956 | K140: 115.338916167488-315.222128269718i | L140: 50.518008 | M140: 1.19847463607979-3.27544022447505i | N140: 10.85106762 | O140: -69.90256506 | P140: =IMPRODUCT(gmv,IMDIV((COMPLEX(1,I140*(Rvcomp*kOhms)*(Cvcomp*uF))),IMPRODUCT((COMPLEX(0,data!I140*((Cvcomp*uF)+(Cvcomp_p*uF)))),(COMPLEX(1,I140*((Rvcomp*kOhms)*(Cvcomp*uF)*(Cvcomp_p*uF))/((Cvcomp*uF)+(Cvcomp_p*uF))))))) -> 0.653813533303207-0.339776449799064i | Q140: -2.652640219 | R140: -0.329338514611579-2.5487406033089i | S140: 8.198427405 | T140: 82.63725573
A141: 3.7 | B141: 5011.872336 | C141: 31490.52262 | D141: -0.175122591451889-0.0758609815927068i | E141: -14.38626545 | F141: -156.5783246 | G141: 0.7 | H141: 5.011872336 | I141: 31.49052262 | J141: 0.0103908956 | K141: 76.0894588738421-261.797398363332i | L141: 48.71149429 | M141: 0.790637623132451-2.7203094337605i | N141: 9.044553919 | O141: -73.79388833 | P141: =IMPRODUCT(gmv,IMDIV((COMPLEX(1,I141*(Rvcomp*kOhms)*(Cvcomp*uF))),IMPRODUCT((COMPLEX(0,data!I141*((Cvcomp*uF)+(Cvcomp_p*uF)))),(COMPLEX(1,I141*((Rvcomp*kOhms)*(Cvcomp*uF)*(Cvcomp_p*uF))/((Cvcomp*uF)+(Cvcomp_p*uF))))))) -> 0.648336126829625-0.305833066113314i | Q141: -2.891436954 | R141: -0.319361640596473-2.00547801052951i | S141: 6.153116965 | T141: 80.95192623
A142: 3.8 | B142: 6309.573445 | C142: 39644.21916 | D142: -0.117336743278368-0.0403747933673032i | E142: -18.1253469 | F142: -161.0120003 | G142: 0.8 | H142: 6.309573445 | I142: 39.64421916 | J142: 0.0103908956 | K142: 49.4301168219668-214.107789490968i | L142: 46.83816571 | M142: 0.513623183206978-2.22477168694227i | N142: 7.171225332 | O142: -77.00014259 | P142: =IMPRODUCT(gmv,IMDIV((COMPLEX(1,I142*(Rvcomp*kOhms)*(Cvcomp*uF))),IMPRODUCT((COMPLEX(0,data!I142*((Cvcomp*uF)+(Cvcomp_p*uF)))),(COMPLEX(1,I142*((Rvcomp*kOhms)*(Cvcomp*uF)*(Cvcomp_p*uF))/((Cvcomp*uF)+(Cvcomp_p*uF))))))) -> 0.639840550902364-0.287209463671818i | Q142: -3.081362386 | R142: -0.310338542499556-1.57101658078341i | S142: 4.089862946 | T142: 78.82566053
A143: 3.9 | B143: 7943.282347 | C143: 49909.11493 | D143: -0.0770445298212727-0.0210580470538012i | E143: -21.95226911 | F143: -164.713113 | G143: 0.9 | H143: 7.943282347 | I143: 49.90911493 | J143: 0.0103908956 | K143: 31.7817966005982-173.30826508947i | L143: 44.92003378 | M143: 0.330241330337735-1.80082808851008i | N143: 5.253093402 | O143: -79.60838681 | P143: =IMPRODUCT(gmv,IMDIV((COMPLEX(1,I143*(Rvcomp*kOhms)*(Cvcomp*uF))),IMPRODUCT((COMPLEX(0,data!I143*((Cvcomp*uF)+(Cvcomp_p*uF)))),(COMPLEX(1,I143*((Rvcomp*kOhms)*(Cvcomp*uF)*(Cvcomp_p*uF))/((Cvcomp*uF)+(Cvcomp_p*uF))))))) -> 0.626822757962565-0.282031149904083i | Q143: -3.256456732 | R143: -0.300886835106544-1.22193837119735i | S143: 1.996636671 | T143: 76.16683941
A144: 4 | B144: 10000 | C144: 62831.85307 | D144: -0.0498916878315453-0.0108318959347029i | E144: -25.83940524 | F144: -167.7507144 | G144: 1 | H144: 10 | I144: 62.83185307 | J144: 0.0103908956 | K144: 20.2966574640171-139.336646303152i | L144: 42.97249456 | M144: 0.210900448661237-1.4478325444662i | N144: 3.305554187 | O144: -81.71222476 | P144: =IMPRODUCT(gmv,IMDIV((COMPLEX(1,I144*(Rvcomp*kOhms)*(Cvcomp*uF))),IMPRODUCT((COMPLEX(0,data!I144*((Cvcomp*uF)+(Cvcomp_p*uF)))),(COMPLEX(1,I144*((Rvcomp*kOhms)*(Cvcomp*uF)*(Cvcomp_p*uF))/((Cvcomp*uF)+(Cvcomp_p*uF))))))) -> 0.607242091657012-0.28841538326112i | Q144: -3.449322964 | R144: -0.28950954863369-0.940011796401322i | S144: -0.1437687765 | T144: 72.88195177
A145: 4.1 | B145: 12589.25412 | C145: 79100.6165 | D145: -0.0320113036949269-0.00552051563545273i | E145: -29.76665359 | F145: -170.2152893 | G145: 1.1 | H145: 12.58925412 | I145: 79.1006165 | J145: 0.0103908956 | K145: 12.905281437864-111.534265321735i | L145: 41.00592414 | M145: 0.134097432060932-1.15894090636142i | N145: 1.338983764 | O145: -83.39983442 | P145: =IMPRODUCT(gmv,IMDIV((COMPLEX(1,I145*(Rvcomp*kOhms)*(Cvcomp*uF))),IMPRODUCT((COMPLEX(0,data!I145*((Cvcomp*uF)+(Cvcomp_p*uF)))),(COMPLEX(1,I145*((Rvcomp*kOhms)*(Cvcomp*uF)*(Cvcomp_p*uF))/((Cvcomp*uF)+(Cvcomp_p*uF))))))) -> 0.578596455018551-0.303922039955373i | Q145: -3.694272513 | R145: -0.274639385631545-0.71131426510144i | S145: -2.355288749 | T145: 68.88835884
A146: 4.2 | B146: 15848.93192 | C146: =2*PI()*B146 -> 99581.7762 | D146: =IMDIV((K_1*2.5*Rsense*Vout_nom)/(K_FQ*M_1*(M_2/us)*Lbst*mH),IMPRODUCT((COMPLEX(0,C146*1)),COMPLEX(1,(C146/(2*PI()*fiavg*kHz))))) -> -0.0204153669285316-0.00279662008642097i | E146: =20*LOG(IMABS(D146)) -> -33.7201153 | F146: =180/PI()*IMARGUMENT(D146) -> -172.1998273 | G146: 1.2 | H146: 15.84893192 | I146: =2*PI()*H146 -> 99.5817762 | J146: =(R_fb2*kOhms)/((R_fb1*MegOhm)+(R_fb2*kOhms)) -> 0.0103908956 | K146: =IMDIV(((M_3/us)*Vout_nom)/(M1M2/us),COMPLEX(1,(I146/(2*PI()*fPWM_PSpole)))) -> 8.18257625191718-89.0288763228872i | L146: =20*LOG(IMABS(K146)) -> 39.02714995 | M146: =IMPRODUCT(J146,K146) -> 0.08502429554194-0.925089758921638i | N146: =20*LOG(IMABS(M146)) -> -0.6397904257 | O146: =180/PI()*IMARGUMENT(M146) -> -84.74874169 | P146: =IMPRODUCT(gmv,IMDIV((COMPLEX(1,I146*(Rvcomp*kOhms)*(Cvcomp*uF))),IMPRODUCT((COMPLEX(0,data!I146*((Cvcomp*uF)+(Cvcomp_p*uF)))),(COMPLEX(1,I146*((Rvcomp*kOhms)*(Cvcomp*uF)*(Cvcomp_p*uF))/((Cvcomp*uF)+(Cvcomp_p*uF))))))) -> 0.538347094502276-0.324926162055433i | Q146: =20*LOG(IMABS(P146)) -> -4.029692608 | R146: =IMPRODUCT((M146),(P146)) -> -0.254813282456087-0.525646001901184i | S146: =20*LOG(IMABS(R146)) -> -4.669483034 | T146: =(180/PI()*IMARGUMENT(R146))+180 -> 64.13764877
A147: 4.3 | B147: 19952.62315 | C147: 125366.0286 | D147: -0.012969386289739-0.00141122320302538i | E147: -37.69049294 | F147: -173.789971 | G147: 1.3 | H147: 19.95262315 | I147: 125.3660286 | J147: 0.0103908956 | K147: 5.17886603138527-70.9374393479648i | L147: 37.04059611 | M147: 0.0538130562390355-0.737103526129273i | N147: -2.62634427 | O147: -85.82446626 | P147: =IMPRODUCT(gmv,IMDIV((COMPLEX(1,I147*(Rvcomp*kOhms)*(Cvcomp*uF))),IMPRODUCT((COMPLEX(0,data!I147*((Cvcomp*uF)+(Cvcomp_p*uF)))),(COMPLEX(1,I147*((Rvcomp*kOhms)*(Cvcomp*uF)*(Cvcomp_p*uF))/((Cvcomp*uF)+(Cvcomp_p*uF))))))) -> 0.484887661377511-0.346206124107919i | Q147: -4.498025692 | R147: -0.229096467856173-0.376042814604858i | S147: -7.124369962 | T147: 58.64898408
A148: 4.4 | B148: 25118.86432 | C148: 157826.4792 | D148: -0.00821862036633708-0.000710354609019278i | E148: -41.671698 | F148: -175.0600685 | G148: 1.4 | H148: 25.11886432 | I148: 157.8264792 | J148: 0.0103908956 | K148: 3.27404933134073-56.4580728350025i | L148: 35.04910153 | M148: 0.0340203047788992-0.586649940393396i | N148: -4.617838849 | O148: -86.68108848 | P148: =IMPRODUCT(gmv,IMDIV((COMPLEX(1,I148*(Rvcomp*kOhms)*(Cvcomp*uF))),IMPRODUCT((COMPLEX(0,data!I148*((Cvcomp*uF)+(Cvcomp_p*uF)))),(COMPLEX(1,I148*((Rvcomp*kOhms)*(Cvcomp*uF)*(Cvcomp_p*uF))/((Cvcomp*uF)+(Cvcomp_p*uF))))))) -> 0.418951229068777-0.361322391939664i | Q148: -5.141735561 | R148: -0.197716911193789-0.258070011458166i | S148: -9.75957441 | T148: 52.54294886
A149: 4.5 | B149: 31622.7766 | C149: 198691.7653 | D149: -0.00519982825489228-0.000356997588257546i | E149: -45.65979721 | F149: -176.0724842 | G149: 1.5 | H149: 31.6227766 | I149: 198.6917653 | J149: 0.0103908956 | K149: 2.0683438195957-44.9017806327077i | L149: 33.05447667 | M149: 0.0214919446865461-0.466569714639714i | N149: -6.612463707 | O149: -87.36260662 | P149: =IMPRODUCT(gmv,IMDIV((COMPLEX(1,I149*(Rvcomp*kOhms)*(Cvcomp*uF))),IMPRODUCT((COMPLEX(0,data!I149*((Cvcomp*uF)+(Cvcomp_p*uF)))),(COMPLEX(1,I149*((Rvcomp*kOhms)*(Cvcomp*uF)*(Cvcomp_p*uF))/((Cvcomp*uF)+(Cvcomp_p*uF))))))) -> 0.344668773718907-0.36425488627463i | Q149: -5.994996815 | R149: -0.162542696125329-0.168640557266869i | S149: -12.60746052 | T149: 46.05483061
A150: 4.6 | B150: 39810.71706 | C150: 250138.1125 | D150: -0.00328656003913111-0.00017923295005353i | E150: -49.6522715 | F150: -176.8784598 | G150: 1.6 | H150: 39.81071706 | I150: 250.1381125 | J150: 0.0103908956 | K150: 1.30605727929534-35.6946440023586i | L150: 31.05787158 | M150: 0.0135711048318665-0.370899319173444i | N150: -8.609068796 | O150: -87.90449789 | P150: =IMPRODUCT(gmv,IMDIV((COMPLEX(1,I150*(Rvcomp*kOhms)*(Cvcomp*uF))),IMPRODUCT((COMPLEX(0,data!I150*((Cvcomp*uF)+(Cvcomp_p*uF)))),(COMPLEX(1,I150*((Rvcomp*kOhms)*(Cvcomp*uF)*(Cvcomp_p*uF))/((Cvcomp*uF)+(Cvcomp_p*uF))))))) -> 0.269060037346885-0.351792401662056i | Q150: -7.07409036 | R150: -0.126828120293947-0.104568396230751i | S150: -15.68315916 | T150: 39.50520757
A151: 4.7 | B151: 50118.72336 | C151: 314905.2262 | D151: -0.00207595092367508-0.0000899276749519452i | E151: -53.64751638 | F151: -177.5195671 | G151: 1.7 | H151: 50.11872336 | I151: 314.9052262 | J151: 0.0103908956 | K151: 0.824473241560981-28.3672604399413i | L151: 29.06001499 | M151: 0.00856701537495329-0.294761241582765i | N151: -10.60692539 | O151: -88.33520961 | P151: =IMPRODUCT(gmv,IMDIV((COMPLEX(1,I151*(Rvcomp*kOhms)*(Cvcomp*uF))),IMPRODUCT((COMPLEX(0,data!I151*((Cvcomp*uF)+(Cvcomp_p*uF)))),(COMPLEX(1,I151*((Rvcomp*kOhms)*(Cvcomp*uF)*(Cvcomp_p*uF))/((Cvcomp*uF)+(Cvcomp_p*uF))))))) -> 0.199647974734048-0.324982140620919i | Q151: -8.37218484 | R151: -0.0940817519925219-0.0616326119073771i | S151: -18.97911023 | T151: 33.22866154
A152: 4.8 | B152: 63095.73445 | C152: 396442.1916 | D152: -0.00131074249065803-0.0000451017777888327i | E152: -57.64451342 | F152: -178.0292679 | G152: 1.8 | H152: 63.09573445 | I152: 396.4421916 | J152: 0.0103908956 | K152: 0.520369531057289-22.5399366168632i | L152: 27.06136793 | M152: 0.00540710546868039-0.234210128131681i | N152: -12.60557244 | O152: -88.67747265 | P152: =IMPRODUCT(gmv,IMDIV((COMPLEX(1,I152*(Rvcomp*kOhms)*(Cvcomp*uF))),IMPRODUCT((COMPLEX(0,data!I152*((Cvcomp*uF)+(Cvcomp_p*uF)))),(COMPLEX(1,I152*((Rvcomp*kOhms)*(Cvcomp*uF)*(Cvcomp_p*uF))/((Cvcomp*uF)+(Cvcomp_p*uF))))))) -> 0.141707827761548-0.288339996078985i | Q152: -9.862316779 | R152: -0.0667659182567032-0.0347484932669323i | S152: -22.46788922 | T152: 27.49483869
A153: 4.9 | B153: 79432.82347 | C153: 499091.1493 | D153: -0.000827383696797083-0.0000226143048171218i | E153: -61.64261761 | F153: -178.434364 | G153: 1.9 | H153: 79.43282347 | I153: 499.0911493 | J153: 0.0103908956 | K153: 0.328395537050608-17.9076285411425i | L153: 25.0622218 | M153: 0.00341232373976386-0.18607629854725i | N153: -14.60471857 | O153: -88.94941033 | P153: =IMPRODUCT(gmv,IMDIV((COMPLEX(1,I153*(Rvcomp*kOhms)*(Cvcomp*uF))),IMPRODUCT((COMPLEX(0,data!I153*((Cvcomp*uF)+(Cvcomp_p*uF)))),(COMPLEX(1,I153*((Rvcomp*kOhms)*(Cvcomp*uF)*(Cvcomp_p*uF))/((Cvcomp*uF)+(Cvcomp_p*uF))))))) -> 0.0970631941981178-0.247519101429655i | Q153: -11.50660639 | R153: -0.045726227171952-0.0189057752074121i | S153: -26.11132496 | T153: 22.46293317
A154: 5 | B154: 100000 | C154: 628318.5307 | D154: -0.00052218767734006-0.0000113371241286317i | E154: -65.64142101 | F154: -178.7562569 | G154: 2 | H154: 100 | I154: 628.3185307 | J154: 0.0103908956 | K154: 0.207229285874227-14.2262999514587i | L154: 23.06276064 | M154: 0.00215329787400236-0.147823997516394i | N154: -16.60417973 | O154: -89.16545245 | P154: =IMPRODUCT(gmv,IMDIV((COMPLEX(1,I154*(Rvcomp*kOhms)*(Cvcomp*uF))),IMPRODUCT((COMPLEX(0,data!I154*((Cvcomp*uF)+(Cvcomp_p*uF)))),(COMPLEX(1,I154*((Rvcomp*kOhms)*(Cvcomp*uF)*(Cvcomp_p*uF))/((Cvcomp*uF)+(Cvcomp_p*uF))))))) -> 0.0647383198247374-0.207241290107362i | Q154: -13.266104 | R154: -0.0304958350676799-0.0100161294583812i | S154: -29.87028373 | T154: 18.18238012
A155: 5.1 | B155: 125892.5412 | C155: 791006.165 | D155: -0.000329535446518714-5.68300998384754E-06i | E155: -69.64066584 | F155: -179.0120025 | G155: 2.1 | H155: 125.8925412 | I155: 791.006165 | J155: 0.0103908956 | K155: 0.13076307727184-11.3012364937141i | L155: 21.06310066 | M155: 0.00135874548377469-0.117429968514595i | N155: -18.60383971 | O155: -89.33707802 | P155: =IMPRODUCT(gmv,IMDIV((COMPLEX(1,I155*(Rvcomp*kOhms)*(Cvcomp*uF))),IMPRODUCT((COMPLEX(0,data!I155*((Cvcomp*uF)+(Cvcomp_p*uF)))),(COMPLEX(1,I155*((Rvcomp*kOhms)*(Cvcomp*uF)*(Cvcomp_p*uF))/((Cvcomp*uF)+(Cvcomp_p*uF))))))) -> 0.0423731224693442-0.170459643994687i | Q155: -15.10717075 | R155: -0.0199594963385165-0.00520748570888379i | S155: -33.71101046 | T155: 14.62264941
A156: 5.2 | B156: 158489.3192 | C156: 995817.762 | D156: -0.000207945626787179-2.84856460720125E-06i | E156: -73.64018929 | F156: -179.2151769 | G156: 2.2 | H156: 158.4893192 | I156: 995.817762 | J156: 0.0103908956 | K156: 0.0825100000776316-8.97733472461288i | L156: 19.06331521 | M156: 0.000857352796452382-0.0932825478559478i | N156: -20.60362516 | O156: -89.47341368 | P156: =IMPRODUCT(gmv,IMDIV((COMPLEX(1,I156*(Rvcomp*kOhms)*(Cvcomp*uF))),IMPRODUCT((COMPLEX(0,data!I156*((Cvcomp*uF)+(Cvcomp_p*uF)))),(COMPLEX(1,I156*((Rvcomp*kOhms)*(Cvcomp*uF)*(Cvcomp_p*uF))/((Cvcomp*uF)+(Cvcomp_p*uF))))))) -> 0.0273810558787593-0.138511571269606i | Q156: -17.00379891 | R156: -0.0128972370507321-0.00267292793832576i | S156: -37.60742407 | T156: 11.70868351
A157: 5.3 | B157: 199526.2315 | C157: 1253660.286 | D157: -0.000131213905527755-1.42776307146354E-06i | E157: -77.63988858 | F157: -179.3765785 | G157: 2.3 | H157: 199.5262315 | I157: 1253.660286 | J157: 0.0103908956 | K157: 0.0520619133919157-7.13117273394724i | L157: 17.06345059 | M157: 0.000540969906595858-0.0740992713571955i | N157: -22.60348978 | O157: -89.58171327 | P157: =IMPRODUCT(gmv,IMDIV((COMPLEX(1,I157*(Rvcomp*kOhms)*(Cvcomp*uF))),IMPRODUCT((COMPLEX(0,data!I157*((Cvcomp*uF)+(Cvcomp_p*uF)))),(COMPLEX(1,I157*((Rvcomp*kOhms)*(Cvcomp*uF)*(Cvcomp_p*uF))/((Cvcomp*uF)+(Cvcomp_p*uF))))))) -> 0.0175434990819768-0.11164500921505i | Q157: -18.93728086 | R157: -0.00826332332844284-0.00136035708923707i | S157: -41.54077064 | T157: 9.348517909
A158: 5.4 | B158: 251188.6432 | C158: 1578264.792 | D158: -0.0000827939946242252-7.15607888658906E-07i | E158: -81.63969883 | F158: -179.5047915 | G158: 2.4 | H158: 251.1886432 | I158: 1578.264792 | J158: 0.0103908956 | K158: 0.0328494927233389-5.66460326365239i | L158: 15.06353601 | M158: 0.000341335649277643-0.0588603011067294i | N158: -24.60340436 | O158: -89.66774086 | P158: =IMPRODUCT(gmv,IMDIV((COMPLEX(1,I158*(Rvcomp*kOhms)*(Cvcomp*uF))),IMPRODUCT((COMPLEX(0,data!I158*((Cvcomp*uF)+(Cvcomp_p*uF)))),(COMPLEX(1,I158*((Rvcomp*kOhms)*(Cvcomp*uF)*(Cvcomp_p*uF))/((Cvcomp*uF)+(Cvcomp_p*uF))))))) -> 0.0111782922428506-0.0895160881178088i | Q158: -20.89477818 | R158: -0.00526512835087022-0.000688512679331691i | S158: -45.49818255 | T158: 7.450205148
A159: 5.5 | B159: 316227.766 | C159: 1986917.653 | D159: -0.0000522409191362446-3.58663425516987E-07i | E159: -85.63957911 | F159: -179.6066383 | G159: 2.5 | H159: 316.227766 | I159: 1986.917653 | J159: 0.0103908956 | K159: 0.0207268859219391-4.49961015208771i | L159: 13.06358991 | M159: 0.000215370907650035-0.0467549793141227i | N159: -26.60335047 | O159: -89.73607609 | P159: =IMPRODUCT(gmv,IMDIV((COMPLEX(1,I159*(Rvcomp*kOhms)*(Cvcomp*uF))),IMPRODUCT((COMPLEX(0,data!I159*((Cvcomp*uF)+(Cvcomp_p*uF)))),(COMPLEX(1,I159*((Rvcomp*kOhms)*(Cvcomp*uF)*(Cvcomp_p*uF))/((Cvcomp*uF)+(Cvcomp_p*uF))))))) -> 0.00709715862305828-0.0715295532468664i | Q159: -22.86774428 | R159: -0.00334283426091129-0.000347232889416717i | S159: -49.47109475 | T159: 5.930262514
A160: 5.6 | B160: 398107.1706 | C160: 2501381.125 | D160: -0.000032962364970926-1.79760656861213E-07i | E160: -89.63950356 | F160: -179.6875399 | G160: 2.6 | H160: 398.1071706 | I160: 2501.381125 | J160: 0.0103908956 | K160: 0.0130778833061188-3.57419537654704i | L160: 11.06362392 | M160: 0.000135890920053684-0.0371390909982622i | N160: -28.60331646 | O160: -89.79035724 | P160: =IMPRODUCT(gmv,IMDIV((COMPLEX(1,I160*(Rvcomp*kOhms)*(Cvcomp*uF))),IMPRODUCT((COMPLEX(0,data!I160*((Cvcomp*uF)+(Cvcomp_p*uF)))),(COMPLEX(1,I160*((Rvcomp*kOhms)*(Cvcomp*uF)*(Cvcomp_p*uF))/((Cvcomp*uF)+(Cvcomp_p*uF))))))) -> 0.00449575405200456-0.0570328254372526i | Q160: -24.85059968 | R160: -0.00211753636164767-0.000174718461965133i | S160: -53.45391614 | T160: 4.716804744
A161: 5.7 | B161: 501187.2336 | C161: 3149052.262 | D161: -0.0000207980745348529-9.00947351436192E-08i | E161: -93.6394559 | F161: -179.7518032 | G161: 2.7 | H161: 501.1872336 | I161: 3149.052262 | J161: 0.0103908956 | K161: 0.00825162729112251-2.83909833116501i | L161: 9.063645374 | M161: 0.0000857417976811344-0.0295007743465934i | N161: -30.603295 | O161: -89.83347456 | P161: =IMPRODUCT(gmv,IMDIV((COMPLEX(1,I161*(Rvcomp*kOhms)*(Cvcomp*uF))),IMPRODUCT((COMPLEX(0,data!I161*((Cvcomp*uF)+(Cvcomp_p*uF)))),(COMPLEX(1,I161*((Rvcomp*kOhms)*(Cvcomp*uF)*(Cvcomp_p*uF))/((Cvcomp*uF)+(Cvcomp_p*uF))))))) -> 0.00284374111446151-0.0454111774722367i | Q161: -26.8397471 | R161: -0.00133942107194627-0.0000877862009091456i | S161: -57.4430421 | T161: 3.749825609
A162: 5.8 | B162: 630957.3445 | C162: 3964421.916 | D162: -0.0000131227887543761-4.51546437677877E-08i | E162: -97.63942582 | F162: -179.8028498 | G162: 2.8 | H162: 630.9573445 | I162: 3964.421916 | J162: 0.0103908956 | K162: 0.00520644107375796-2.25518299588947i | L162: 7.063658913 | M162: 0.000054099585625392-0.0234333710607021i | N162: -32.60328146 | O162: -89.86772401 | P162: =IMPRODUCT(gmv,IMDIV((COMPLEX(1,I162*(Rvcomp*kOhms)*(Cvcomp*uF))),IMPRODUCT((COMPLEX(0,data!I162*((Cvcomp*uF)+(Cvcomp_p*uF)))),(COMPLEX(1,I162*((Rvcomp*kOhms)*(Cvcomp*uF)*(Cvcomp_p*uF))/((Cvcomp*uF)+(Cvcomp_p*uF))))))) -> 0.00179712230689844-0.0361259285873118i | Q162: -28.83288554 | R162: -0.000846455065926782-0.0000440670316259222i | S162: -61.436167 | T162: 2.980167148
A163: 5.9 | B163: 794328.2347 | C163: 4990911.493 | D163: -8.27995612325805E-06-2.26310298799221E-08i | E163: -101.6394068 | F163: -179.8433978 | G163: 2.9 | H163: 794.3282347 | I163: 4990.911493 | J163: 0.0103908956 | K163: 0.0032850486956066-1.79135905161286i | L163: 5.063667456 | M163: 0.0000341345980246109-0.0186138248806878i | N163: -34.60327292 | O163: -89.89492938 | P163: =IMPRODUCT(gmv,IMDIV((COMPLEX(1,I163*(Rvcomp*kOhms)*(Cvcomp*uF))),IMPRODUCT((COMPLEX(0,data!I163*((Cvcomp*uF)+(Cvcomp_p*uF)))),(COMPLEX(1,I163*((Rvcomp*kOhms)*(Cvcomp*uF)*(Cvcomp_p*uF))/((Cvcomp*uF)+(Cvcomp_p*uF))))))) -> 0.00113504225091319-0.0287232546378333i | Q163: -30.82855058 | R163: -0.000534610887621057-0.0000221079344417008i | S163: -65.4318235 | T163: 2.368021399
A164: 6 | B164: 1000000 | C164: 6283185.307 | D164: -5.22431353101506E-06-1.13424145299079E-08i | E164: -105.6393949 | F164: -179.8756063 | G164: 3 | H164: 1000 | I164: 6283.185307 | J164: 0.0103908956 | K164: 0.00207272817385204-1.42292883916778i | L164: 3.063672845 | M164: 0.0000215375020538807-0.0147855050086706i | N164: -36.60326753 | O164: -89.9165394 | P164: =IMPRODUCT(gmv,IMDIV((COMPLEX(1,I164*(Rvcomp*kOhms)*(Cvcomp*uF))),IMPRODUCT((COMPLEX(0,data!I164*((Cvcomp*uF)+(Cvcomp_p*uF)))),(COMPLEX(1,I164*((Rvcomp*kOhms)*(Cvcomp*uF)*(Cvcomp_p*uF))/((Cvcomp*uF)+(Cvcomp_p*uF))))))) -> 0.000716615727411494-0.022829451906649i | Q164: -32.82581317 | R164: -0.000337529541398262-0.0000110872147942632i | S164: -69.4290807 | T164: 1.88138283
G165: 3.1 | H165: 1258.925412 | I165: 7910.06165 | J165: 0.0103908956 | K165: 0.00130780408848954-1.13027343802418i | L165: 1.063676246 | M165: 0.00001358925574383-0.0117445532897119i | N165: -38.60326413 | O165: -89.93370487 | P165: =IMPRODUCT(gmv,IMDIV((COMPLEX(1,I165*(Rvcomp*kOhms)*(Cvcomp*uF))),IMPRODUCT((COMPLEX(0,data!I165*((Cvcomp*uF)+(Cvcomp_p*uF)))),(COMPLEX(1,I165*((Rvcomp*kOhms)*(Cvcomp*uF)*(Cvcomp_p*uF))/((Cvcomp*uF)+(Cvcomp_p*uF))))))) -> 0.00045233427876669-0.0181409815552285i | Q165: -34.82408509 | R165: -0.000213051577716866-5.55898647953689E-06i | S165: -73.42734922 | T165: 1.494634381
G166: 3.2 | H166: 1584.893192 | I166: 9958.17762 | J166: 0.0103908956 | K166: 0.000825169002470426-0.897808548367724i | L166: -0.9363216081 | M166: 8.57424495392328E-06-0.00932903489150035i | N166: -40.60326198 | O166: -89.9473399 | P166: =IMPRODUCT(gmv,IMDIV((COMPLEX(1,I166*(Rvcomp*kOhms)*(Cvcomp*uF))),IMPRODUCT((COMPLEX(0,data!I166*((Cvcomp*uF)+(Cvcomp_p*uF)))),(COMPLEX(1,I166*((Rvcomp*kOhms)*(Cvcomp*uF)*(Cvcomp_p*uF))/((Cvcomp*uF)+(Cvcomp_p*uF))))))) -> 0.00028547546968819-0.0144133559630246i | Q166: -36.82299439 | R166: -0.000134460252946066-2.78679426202364E-06i | S166: -77.42625637 | T166: 1.187330005
G167: 3.3 | H167: 1995.262315 | I167: 12536.60286 | J167: 0.0103908956 | K167: 0.000520646604853238-0.713154901665244i | L167: -2.936320254 | M167: 5.40998451356655E-06-0.00741031812714999i | N167: -42.60326063 | O167: -89.95817059 | P167: =IMPRODUCT(gmv,IMDIV((COMPLEX(1,I167*(Rvcomp*kOhms)*(Cvcomp*uF))),IMPRODUCT((COMPLEX(0,data!I167*((Cvcomp*uF)+(Cvcomp_p*uF)))),(COMPLEX(1,I167*((Rvcomp*kOhms)*(Cvcomp*uF)*(Cvcomp_p*uF))/((Cvcomp*uF)+(Cvcomp_p*uF))))))) -> 0.000180151453775922-0.0114506714753417i | Q167: -38.82230606 | R167: -0.0000848521437851889-1.39692753889968E-06i | S167: -81.42556669 | T167: 0.9431797346
G168: 3.4 | H168: 2511.886432 | I168: 15782.64792 | J168: 0.0103908956 | K168: 0.000328505863826486-0.566479185548689i | L168: -4.9363194 | M168: 3.41347013377348E-06-0.0058862260744792i | N168: -44.60325978 | O168: -89.96677372 | P168: =IMPRODUCT(gmv,IMDIV((COMPLEX(1,I168*(Rvcomp*kOhms)*(Cvcomp*uF))),IMPRODUCT((COMPLEX(0,data!I168*((Cvcomp*uF)+(Cvcomp_p*uF)))),(COMPLEX(1,I168*((Rvcomp*kOhms)*(Cvcomp*uF)*(Cvcomp_p*uF))/((Cvcomp*uF)+(Cvcomp_p*uF))))))) -> 0.000113679275479464-0.00909646188409325i | Q168: -40.8218717 | R168: -0.0000535434430868442-7.00192416419486E-07i | S168: -85.42513148 | T168: 0.7492193509
G169: 3.5 | H169: 3162.27766 | I169: 19869.17653 | J169: 0.0103908956 | K169: 0.000207273213210099-0.449970467309229i | L169: -6.936318861 | M169: 2.15375431836323E-06-0.00467559614720129i | N169: -46.60325924 | O169: -89.97360742 | P169: =IMPRODUCT(gmv,IMDIV((COMPLEX(1,I169*(Rvcomp*kOhms)*(Cvcomp*uF))),IMPRODUCT((COMPLEX(0,data!I169*((Cvcomp*uF)+(Cvcomp_p*uF)))),(COMPLEX(1,I169*((Rvcomp*kOhms)*(Cvcomp*uF)*(Cvcomp_p*uF))/((Cvcomp*uF)+(Cvcomp_p*uF))))))) -> 0.0000717313099964524-0.0072260127274267i | Q169: -42.82159762 | R169: -0.0000337857627763651-3.50949692769357E-07i | S169: -89.42485685 | T169: 0.5951386441
G170: 3.6 | H170: 3981.071706 | I170: 25013.81125 | J170: 0.0103908956 | K170: 0.000130780566429818-0.357424274964251i | L170: -8.936318521 | M170: 0.0000013589272117893-0.00371395832471513i | N170: -48.6032589 | O170: -89.97903563 | P170: =IMPRODUCT(gmv,IMDIV((COMPLEX(1,I170*(Rvcomp*kOhms)*(Cvcomp*uF))),IMPRODUCT((COMPLEX(0,data!I170*((Cvcomp*uF)+(Cvcomp_p*uF)))),(COMPLEX(1,I170*((Rvcomp*kOhms)*(Cvcomp*uF)*(Cvcomp_p*uF))/((Cvcomp*uF)+(Cvcomp_p*uF))))))) -> 0.0000452612029584405-0.00574004458271384i | Q170: -44.82142467 | R170: -0.0000213182248555257-1.75898524294455E-07i | S170: -93.42468357 | T170: 0.4727417237
G171: 3.7 | H171: 5011.872336 | I171: 31490.52262 | J171: 0.0103908956 | K171: 0.0000825169629811489-0.283912207407415i | L171: -10.93631831 | M171: 8.57425147255877E-07-0.00295010210566834i | N171: -50.60325868 | O171: -89.98334741 | P171: =IMPRODUCT(gmv,IMDIV((COMPLEX(1,I171*(Rvcomp*kOhms)*(Cvcomp*uF))),IMPRODUCT((COMPLEX(0,data!I171*((Cvcomp*uF)+(Cvcomp_p*uF)))),(COMPLEX(1,I171*((Rvcomp*kOhms)*(Cvcomp*uF)*(Cvcomp_p*uF))/((Cvcomp*uF)+(Cvcomp_p*uF))))))) -> 0.0000285586074896167-0.00455958907176626i | Q171: -46.82131555 | R171: -0.0000134512288347318-8.81603144213593E-08i | S171: -97.42457423 | T171: 0.375515254
G172: 3.8 | H172: 6309.573445 | I172: 39644.21916 | J172: 0.0103908956 | K172: 0.0000520646854602295-0.225519489556989i | L172: -12.93631817 | M172: 5.40998710868293E-07-0.00234334947090389i | N172: -52.60325855 | O172: -89.98677238 | P172: =IMPRODUCT(gmv,IMDIV((COMPLEX(1,I172*(Rvcomp*kOhms)*(Cvcomp*uF))),IMPRODUCT((COMPLEX(0,data!I172*((Cvcomp*uF)+(Cvcomp_p*uF)))),(COMPLEX(1,I172*((Rvcomp*kOhms)*(Cvcomp*uF)*(Cvcomp_p*uF))/((Cvcomp*uF)+(Cvcomp_p*uF))))))) -> 0.0000180195494195849-0.00362186526638035i | Q172: -48.82124669 | R172: -8.48728630710456E-06-4.41855260383612E-08i | S172: -101.4245052 | T172: 0.2982839502
G173: 3.9 | H173: 7943.282347 | I173: 49909.11493 | J173: 0.0103908956 | K173: 0.0000328505963253401-0.179136501559262i | L173: -14.93631809 | M173: 3.41347116690817E-07-0.00186138868517788i | N173: -54.60325846 | O173: -89.98949293 | P173: =IMPRODUCT(gmv,IMDIV((COMPLEX(1,I173*(Rvcomp*kOhms)*(Cvcomp*uF))),IMPRODUCT((COMPLEX(0,data!I173*((Cvcomp*uF)+(Cvcomp_p*uF)))),(COMPLEX(1,I173*((Rvcomp*kOhms)*(Cvcomp*uF)*(Cvcomp_p*uF))/((Cvcomp*uF)+(Cvcomp_p*uF))))))) -> 0.0000113696810219463-0.00287697737334678i | Q173: -50.82120325 | R173: -5.35516924925264E-06-2.21454435395092E-08i | S173: -105.4244617 | T173: 0.2369361562
G174: 4 | H174: 10000 | I174: 62831.85307 | J174: 0.0103908956 | K174: 0.0000207273252792672-0.142293182824205i | L174: -16.93631803 | M174: 2.15375472966161E-07-0.00147855360678293i | N174: -56.60325841 | O174: -89.99165393 | P174: =IMPRODUCT(gmv,IMDIV((COMPLEX(1,I174*(Rvcomp*kOhms)*(Cvcomp*uF))),IMPRODUCT((COMPLEX(0,data!I174*((Cvcomp*uF)+(Cvcomp_p*uF)))),(COMPLEX(1,I174*((Rvcomp*kOhms)*(Cvcomp*uF)*(Cvcomp_p*uF))/((Cvcomp*uF)+(Cvcomp_p*uF))))))) -> 0.0000071738291187817-0.00228527815616911i | Q174: -52.82117583 | R174: -3.37890471523924E-06-1.10990837817632E-08i | S174: -109.4244342 | T174: 0.1882054759
A180: Standard E48 Resistor Values
A181: 100 | B181: 105
A182: 105 | B182: 110
A183: 110 | B183: 115
A184: 115 | B184: 121
A185: 121 | B185: 127
A186: 127 | B186: 133
A187: 133 | B187: 140
A188: 140 | B188: 147
A189: 147 | B189: 154
A190: 154 | B190: 162
A191: 162 | B191: 169
A192: 169 | B192: 178
A193: 178 | B193: 187
A194: 187 | B194: 196
A195: 196 | B195: 205
A196: 205 | B196: 215
A197: 215 | B197: 226
A198: 226 | B198: 237
A199: 237 | B199: 249
A200: 249 | B200: 261
A201: 261 | B201: 274
A202: 274 | B202: 287
A203: 287 | B203: 301
A204: 301 | B204: 316
A205: 316 | B205: 332
A206: 332 | B206: 348
A207: 348 | B207: 365
A208: 365 | B208: 383
A209: 383 | B209: 402
A210: 402 | B210: 422
A211: 422 | B211: 442
... 61 more rows

Sheet VCOMP (hidden)
A1: To Calculate VCOMP
A2: At User Selectable Line Voltage, Full Load | D2: At User Selectable Line Voltage, % of Load
A5: VLINE | B5: =Vline -> 220 | D5: VLINE | E5: =Vline -> 220 | G5: VCOMP as a function of Line voltage at full load
A6: K1 | B6: 7 | D6: Percent Load | E6: =percent_load/100 -> 1 | G6: VLINE | H6: M1M2 | I6: VCOMP1 | J6: K1V2 | K6: K2V2 | L6: K3V2 | M6: K4V2 | N6: VCOMP2 | O6: K1V3 | P6: K2V3 | Q6: K3V3 | R6: K4V3 | S6: K5V3 | T6: VCOMP3 | U6: VCOMP4 | V6: VCOMP5 | W6: VCOMP | X6: IAC RMS | Y6: ISENSE_Pk | Z6: ICOMP
A7: KFQ | B7: =1/(fsw*kHz) -> 2.181043081e-05 | D7: K1 | E7: 7 | G7: =Vacin_min -> 210 | H7: =(Iout*(Vout_nom^2)*2.5*Rsense*K_1)/(eff*(G7^2)*K_FQ)*us -> 0.1064282443 | I7: =(1*10^-9*(5*10^8*SQRT(fsw*kHz)+(1.09655978*10^10)*SQRT(ftyp)*SQRT(H7)))/SQRT(fsw*kHz) -> 4.759411135 | J7: =(b_1^3/(27*a_1^3))-(d_1^3/27)+SQRT((ftyp)^2*H7^2/(4*a_1^2*c_1^2*(fsw*kHz)^2))+(b_1^3*(ftyp)*H7/(27*a_1^4*c_1*(fsw*kHz))-(d_1^3*(ftyp)*H7/(27*a_1*c_1*(fsw*kHz)))+(b_1*d_1^2*(ftyp)*H7/(9*a_1^2*c_1*(fsw*kHz)))-(b_1^2*d_1*(ftyp)*H7/(9*a_1^3*c_1*(fsw*kHz)))) -> 3.956248618 | K7: =(b_1*d_1^2/(9*a_1))-(b_1^2*d_1/(9*a_1^2))+(ftyp*H7/(2*a_1*c_1*fsw*kHz)) -> 3.952143886 | L7: =(d_1^2/9)+(b_1^2/(9*a_1^2))-(2*b_1*d_1/(9*a_1)) -> 0.0004565709694 | M7: =((b_1*c_1*fsw*kHz)+(2*a_1*c_1*d_1*fsw*kHz))/(3*a_1*c_1*fsw*kHz) -> 0.5213675214 | N7: =(J7+K7)^(1/3)+(L7/(J7^(1/3)))+M7 -> 2.513992916 | O7: =(b_2^3/(27*a_2^3))-(d_2^3/27) -> 0.07325223506 | P7: =(ftyp^2*H7^2/(4*a_2^2*c_2^2*(fsw*kHz)^2))+(b_2^3*ftyp*H7/(27*a_2^4*c_2*(fsw*kHz)))-(d_2^3*ftyp*H7/(27*a_2*c_2*(fsw*kHz)))+(b_2*d_2^2*ftyp*H7/(9*a_2^2*c_2*(fsw*kHz)))-(b_2^2*d_2*ftyp*H7/(9*a_2^3*c_2*(fsw*kHz))) -> 3.953477488 | Q7: =(b_2*d_2^2/(9*a_2))-(b_2^2*d_2/(9*a_2^2))+(ftyp*H7/(2*a_2*c_2*(fsw*kHz))) -> 1.915161491 | R7: =(d_2^2/9)+(b_2^2/(9*a_2^2))-(2*b_2*d_2/(9*a_2)) -> 0.06779950801 | S7: =(b_2*c_2*(fsw*kHz)+2*a_2*c_2*d_2*(fsw*kHz))/(3*a_2*c_2*(fsw*kHz)) -> 0.7603833866 | T7: =((O7+SQRT(P7)+Q7)^(1/3))+(R7/((O7+SQRT(P7)+Q7)^(1/3)))+S7 -> 2.387496841 | U7: =c_3+(SQRT(ftyp)*SQRT(H7)/(SQRT(a_3)*SQRT(b_3)*SQRT(fsw*kHz))) -> 1.606851315 | V7: =(a_4*(fsw*kHz)*b_4/ftyp) -> 1.460410613 | W7: =IF(I7>=0.5,IF(I7<1,I7,IF(N7>=1,IF(N7<2,N7,IF(T7>=2,IF(T7<4.5,T7,IF(U7>=4.5,IF(U7<4.6,U7,V7)))))))) -> 2.387496841 | X7: =Pin_max/G7 -> 19.04761905 | Y7: =-X7*Rsense*1.414 -> -0.0808 | Z7: =MIN(6,MAX(0.5,Beta*G*($Y7-Voff_trim)/(MAX(0,MIN(4.5,W7)-Alpha1_A)+MAX(0,MIN(4.5,W7)-Alpha1_B)-Alpha1_C)+Alpha2)) -> 4.295986802
A8: fTYP | B8: =65*kHz -> 65000 | D8: KFQ | E8: =1/(fsw*kHz) -> 2.181043081e-05 | G8: =G7+1 -> 211 | H8: 0.1054218363 | I8: 4.739224352 | J8: 3.918856582 | K8: 3.91475258 | L8: 0.0004565709694 | M8: 0.5213675214 | N8: =(J8+K8)^(1/3)+(L8/(J8^(1/3)))+M8 -> 2.507693953 | O8: 0.07325223506 | P8: 3.879712938 | Q8: 1.896525569 | R8: 0.06779950801 | S8: 0.7603833866 | T8: =((O8+SQRT(P8)+Q8)^(1/3))+(R8/((O8+SQRT(P8)+Q8)^(1/3)))+S8 -> 2.38266609 | U8: 1.601605574 | V8: 1.460410613 | W8: =IF(I8>=0.5,IF(I8<1,I8,IF(N8>=1,IF(N8<2,N8,IF(T8>=2,IF(T8<4.5,T8,IF(U8>=4.5,IF(U8<4.6,U8,V8)))))))) -> 2.38266609 | X8: 18.95734597 | Y8: -0.08041706161 | Z8: =MIN(6,MAX(0.5,Beta*G*($Y8-Voff_trim)/(MAX(0,MIN(4.5,W8)-Alpha1_A)+MAX(0,MIN(4.5,W8)-Alpha1_B)-Alpha1_C)+Alpha2)) -> 4.293185369
D9: fTYP | E9: =65*kHz -> 65000 | G9: =G8+1 -> 212 | H9: 0.1044296363 | I9: 4.719228011 | J9: 3.88199243 | K9: 3.877889147 | L9: 0.0004565709694 | M9: 0.5213675214 | N9: 2.501444556 | O9: 0.07325223506 | P9: 3.807669717 | Q9: 1.87815274 | R9: 0.06779950801 | S9: 0.7603833866 | T9: 2.377874454 | U9: 1.596409322 | V9: 1.460410613 | W9: 2.377874454 | X9: 18.86792453 | Y9: -0.08003773585 | Z9: 4.290408355
A10: M1M2 | B10: =(Iout*(Vout_nom^2)*2.5*Rsense*K_1)/(eff*(B5^2)*K_FQ)*us -> 0.09697284244 | G10: 213 | H10: 0.1034513781 | I10: 4.699419429 | J10: 3.845646272 | K10: 3.841543698 | L10: 0.0004565709694 | M10: 0.5213675214 | N10: 2.495244102 | O10: 0.07325223506 | P10: 3.737299765 | Q10: 1.860038075 | R10: 0.06779950801 | S10: 0.7603833866 | T10: 2.373121441 | U10: 1.59126186 | V10: 1.460410613 | W10: 2.373121441 | X10: 18.77934272 | Y10: -0.07966197183 | Z10: 4.287655478
D11: M1M2 | E11: =((E6*Iout)*(Vout_nom^2)*2.5*Rsense*K_1)/(eff*(E5^2)*K_FQ)*us -> 0.09697284244 | G11: 214 | H11: 0.1024868018 | I11: 4.679795974 | J11: 3.809808448 | K11: 3.805706573 | L11: 0.0004565709694 | M11: 0.5213675214 | N11: 2.489091982 | O11: 0.07325223506 | P11: 3.668556579 | Q11: 1.842176761 | R11: 0.06779950801 | S11: 0.7603833866 | T11: 2.368406568 | U11: 1.586162506 | V11: 1.460410613 | W11: 2.368406568 | X11: 18.69158879 | Y11: -0.07928971963 | Z11: 4.284926458
A12: VCOMP1 | B12: =(1*10^-9*(5*10^8*SQRT(fsw*kHz)+(1.09655978*10^10)*SQRT(ftyp)*SQRT(B10)))/SQRT(fsw*kHz) -> 4.565801538 | G12: 215 | H12: 0.1015356533 | I12: 4.660355062 | J12: 3.774469523 | K12: 3.770368338 | L12: 0.0004565709694 | M12: 0.5213675214 | N12: 2.482987596 | O12: 0.07325223506 | P12: 3.601395159 | Q12: 1.824564094 | R12: 0.06779950801 | S12: 0.7603833866 | T12: 2.363729361 | U12: 1.581110587 | V12: 1.460410613 | W12: 2.363729361 | X12: 18.60465116 | Y12: -0.07892093023 | Z12: 4.282221023
D13: VCOMP1 | E13: =(1*10^-9*(5*10^8*SQRT(fsw*kHz)+(1.09655978*10^10)*SQRT(ftyp)*SQRT(E11)))/SQRT(fsw*kHz) -> 4.565801538 | G13: 216 | H13: 0.1005976846 | I13: 4.641094159 | J13: 3.739620279 | K13: 3.735519774 | L13: 0.0004565709694 | M13: 0.5213675214 | N13: 2.476930354 | O13: 0.07325223506 | P13: 3.535771952 | Q13: 1.80719548 | R13: 0.06779950801 | S13: 0.7603833866 | T13: 2.359089354 | U13: 1.576105445 | V13: 1.460410613 | W13: 2.359089354 | X13: 18.51851852 | Y13: -0.07855555556 | Z13: 4.279538901
A14: a1 | B14: 0.156 | G14: 217 | H14: 0.09967265336 | I14: 4.622010776 | J14: 3.705251711 | K14: 3.701151877 | L14: 0.0004565709694 | M14: 0.5213675214 | N14: 2.470919675 | O14: 0.07325223506 | P14: 3.471644798 | Q14: 1.790066433 | R14: 0.06779950801 | S14: 0.7603833866 | T14: 2.354486087 | U14: 1.571146434 | V14: 1.460410613 | W14: 2.354486087 | X14: 18.43317972 | Y14: -0.07819354839 | Z14: 4.276879828
A15: b1 | B15: 0.088 | D15: a1 | E15: 0.156 | G15: 218 | H15: 0.09876032266 | I15: 4.603102469 | J15: 3.67135502 | K15: 3.667255846 | L15: 0.0004565709694 | M15: 0.5213675214 | N15: 2.464954991 | O15: 0.07325223506 | P15: 3.408972881 | Q15: 1.773172564 | R15: 0.06779950801 | S15: 0.7603833866 | T15: 2.349919111 | U15: 1.566232918 | V15: 1.460410613 | W15: 2.349919111 | X15: 18.34862385 | Y15: -0.07783486239 | Z15: 4.274243542
A16: c1 | B16: 0.1223 | D16: b1 | E16: 0.088 | G16: 219 | H16: 0.09786046109 | I16: 4.584366842 | J16: 3.637921605 | K16: 3.633823084 | L16: 0.0004565709694 | M16: 0.5213675214 | N16: 2.45903574 | O16: 0.07325223506 | P16: 3.347716679 | Q16: 1.75650959 | R16: 0.06779950801 | S16: 0.7603833866 | T16: 2.34538798 | U16: 1.561364275 | V16: 1.460410613 | W16: 2.34538798 | X16: 18.26484018 | Y16: -0.07747945205 | Z16: =MIN(6,MAX(0.5,Beta*G*($Y16-Voff_trim)/(MAX(0,MIN(4.5,W16)-Alpha1_A)+MAX(0,MIN(4.5,W16)-Alpha1_B)-Alpha1_C)+Alpha2)) -> 4.271629786
A17: d1 | B17: 0.5 | D17: c1 | E17: 0.1223 | G17: 220 | H17: 0.09697284244 | I17: 4.565801538 | J17: 3.604943064 | K17: 3.600845187 | L17: 0.0004565709694 | M17: 0.5213675214 | N17: 2.453161371 | O17: 0.07325223506 | P17: 3.287837916 | Q17: 1.740073322 | R17: 0.06779950801 | S17: 0.7603833866 | T17: 2.34089226 | U17: 1.556539892 | V17: 1.460410613 | W17: 2.34089226 | X17: 18.18181818 | Y17: -0.07712727273 | Z17: 4.269038305
A18: K1V2 | B18: =(b_1^3/(27*a_1^3))-(d_1^3/27)+SQRT((ftyp)^2*B10^2/(4*a_1^2*c_1^2*(fsw*kHz)^2))+(b_1^3*(ftyp)*B10/(27*a_1^4*c_1*(fsw*kHz))-(d_1^3*(ftyp)*B10/(27*a_1*c_1*(fsw*kHz)))+(b_1*d_1^2*(ftyp)*B10/(9*a_1^2*c_1*(fsw*kHz)))-(b_1^2*d_1*(ftyp)*B10/(9*a_1^3*c_1*(fsw*kHz)))) -> 3.604943064 | D18: d1 | E18: 0.5 | G18: 221 | H18: 0.09609724564 | I18: 4.547404246 | J18: 3.572411182 | K18: 3.568313939 | L18: 0.0004565709694 | M18: 0.5213675214 | N18: 2.447331343 | O18: 0.07325223506 | P18: 3.229299522 | Q18: 1.723859665 | R18: 0.06779950801 | S18: 0.7603833866 | T18: 2.336431523 | U18: 1.551759168 | V18: 1.460410613 | W18: 2.336431523 | X18: 18.09954751 | Y18: -0.07677828054 | Z18: 4.266468852
A19: K2V2 | B19: =(b_1*d_1^2/(9*a_1))-(b_1^2*d_1/(9*a_1^2))+(ftyp*B10/(2*a_1*c_1*fsw*kHz)) -> 3.600845187 | D19: K1V2 | E19: =(b_1^3/(27*a_1^3))-(d_1^3/27)+SQRT((ftyp)^2*E11^2/(4*a_1^2*c_1^2*(fsw*kHz)^2))+(b_1^3*(ftyp)*E11/(27*a_1^4*c_1*(fsw*kHz))-(d_1^3*(ftyp)*E11/(27*a_1*c_1*(fsw*kHz)))+(b_1*d_1^2*(ftyp)*E11/(9*a_1^2*c_1*(fsw*kHz)))-(b_1^2*d_1*(ftyp)*E11/(9*a_1^3*c_1*(fsw*kHz)))) -> 3.604943064 | G19: 222 | H19: 0.09523345455 | I19: 4.529172695 | J19: 3.540317929 | K19: 3.536221312 | L19: 0.0004565709694 | M19: 0.5213675214 | N19: 2.441545123 | O19: 0.07325223506 | P19: 3.172065584 | Q19: 1.707864618 | R19: 0.06779950801 | S19: 0.7603833866 | T19: 2.332005345 | U19: 1.547021514 | V19: 1.460410613 | W19: 2.332005345 | X19: 18.01801802 | Y19: -0.07643243243 | Z19: 4.263921179
A20: K3V2 | B20: =(d_1^2/9)+(b_1^2/(9*a_1^2))-(2*b_1*d_1/(9*a_1)) -> 0.0004565709694 | D20: K2V2 | E20: =(b_1*d_1^2/(9*a_1))-(b_1^2*d_1/(9*a_1^2))+(ftyp*E11/(2*a_1*c_1*fsw*kHz)) -> 3.600845187 | G20: 223 | H20: 0.0943812579 | I20: 4.511104656 | J20: 3.508655455 | K20: 3.504559456 | L20: 0.0004565709694 | M20: 0.5213675214 | N20: 2.435802185 | O20: 0.07325223506 | P20: 3.116101309 | Q20: 1.692084268 | R20: 0.06779950801 | S20: 0.7603833866 | T20: 2.327613313 | U20: 1.542326351 | V20: 1.460410613 | W20: 2.327613313 | X20: 17.93721973 | Y20: -0.0760896861 | Z20: 4.261395046
A21: K4V2 | B21: =((b_1*c_1*fsw*kHz)+(2*a_1*c_1*d_1*fsw*kHz))/(3*a_1*c_1*fsw*kHz) -> 0.5213675214 | D21: K3V2 | E21: =(d_1^2/9)+(b_1^2/(9*a_1^2))-(2*b_1*d_1/(9*a_1)) -> 0.0004565709694 | G21: 224 | H21: 0.0935404491 | I21: 4.493197939 | J21: 3.477416085 | K21: 3.473320695 | L21: 0.0004565709694 | M21: 0.5213675214 | N21: 2.430102015 | O21: 0.07325223506 | P21: 3.061372981 | Q21: 1.676514789 | R21: 0.06779950801 | S21: 0.7603833866 | T21: 2.323255019 | U21: 1.537673108 | V21: 1.460410613 | W21: 2.323255019 | X21: 17.85714286 | Y21: -0.07575 | Z21: 4.258890213
A22: VCOMP2 | B22: =(B18+B19)^(1/3)+(B20/(B18^(1/3)))+B21 -> 2.453161371 | D22: K4V2 | E22: =((b_1*c_1*fsw*kHz)+(2*a_1*c_1*d_1*fsw*kHz))/(3*a_1*c_1*fsw*kHz) -> 0.5213675214 | G22: 225 | H22: 0.09271082616 | I22: 4.475450393 | J22: 3.446592313 | K22: 3.442497525 | L22: 0.0004565709694 | M22: 0.5213675214 | N22: 2.424444105 | O22: 0.07325223506 | P22: 3.007847927 | Q22: 1.661152443 | R22: 0.06779950801 | S22: 0.7603833866 | T22: 2.318930062 | U22: 1.533061228 | V22: 1.460410613 | W22: 2.318930062 | X22: 17.77777778 | Y22: -0.07541333333 | Z22: 4.256406446
D23: VCOMP2 | E23: =(E19+E20)^(1/3)+(E21/(E19^(1/3)))+E22 -> 2.453161371 | G23: 226 | H23: 0.09189219152 | I23: 4.457859904 | J23: 3.416176801 | K23: 3.412082606 | L23: 0.0004565709694 | M23: 0.5213675214 | N23: 2.418827956 | O23: 0.07325223506 | P23: 2.955494477 | Q23: 1.645993569 | R23: 0.06779950801 | S23: 0.7603833866 | T23: 2.314638046 | U23: 1.52849016 | V23: 1.460410613 | W23: 2.314638046 | X23: 17.69911504 | Y23: -0.07507964602 | Z23: 4.253943513
A24: a2 | B24: 0.313 | G24: 227 | H24: 0.091084352 | I24: 4.440424398 | J24: 3.386162369 | K24: 3.38206876 | L24: 0.0004565709694 | M24: 0.5213675214 | N24: 2.413253078 | O24: 0.07325223506 | P24: 2.904281929 | Q24: 1.631034592 | R24: 0.06779950801 | S24: 0.7603833866 | T24: 2.310378585 | U24: 1.523959367 | V24: 1.460410613 | W24: 2.310378585 | X24: 17.62114537 | Y24: -0.07474889868 | Z24: 4.251501187
A25: b2 | B25: 0.401 | D25: a2 | E25: 0.313 | G25: 228 | H25: 0.09028711862 | I25: 4.423141835 | J25: 3.356541998 | K25: 3.352448967 | L25: 0.0004565709694 | M25: 0.5213675214 | N25: 2.407718987 | O25: 0.07325223506 | P25: 2.854180519 | Q25: 1.616272011 | R25: 0.06779950801 | S25: 0.7603833866 | T25: 2.306151294 | U25: 1.519468317 | V25: 1.460410613 | W25: 2.306151294 | X25: 17.54385965 | Y25: -0.07442105263 | Z25: 4.249079244
A26: c2 | B26: 0.1223 | D26: b2 | E26: 0.401 | G26: 229 | H26: 0.08950030652 | I26: 4.406010211 | J26: 3.327308818 | K26: 3.323216358 | L26: 0.0004565709694 | M26: 0.5213675214 | N26: =(J26+K26)^(1/3)+(L26/(J26^(1/3)))+M26 -> 2.402225207 | O26: 0.07325223506 | P26: 2.805161384 | Q26: 1.601702404 | R26: 0.06779950801 | S26: 0.7603833866 | T26: 2.3019558 | U26: 1.51501649 | V26: 1.460410613 | W26: 2.3019558 | X26: 17.46724891 | Y26: -0.07409606987 | Z26: 4.246677462
A27: d2 | B27: 0.5 | D27: c2 | E27: 0.1223 | G27: 230 | H27: 0.08872373486 | I27: 4.389027558 | J27: 3.298456112 | K27: 3.294364214 | L27: 0.0004565709694 | M27: 0.5213675214 | N27: 2.396771272 | O27: 0.07325223506 | P27: 2.757196532 | Q27: 1.587322422 | R27: 0.06779950801 | S27: 0.7603833866 | T27: 2.297791731 | U27: 1.510603375 | V27: 1.460410613 | W27: 2.297791731 | X27: 17.39130435 | Y27: -0.07377391304 | Z27: 4.244295623
A28: K1V3 | B28: =(b_2^3/(27*a_2^3))-(d_2^3/27) -> 0.07325223506 | D28: d2 | E28: 0.5 | G28: 231 | H28: 0.08795722671 | I28: 4.372191941 | J28: 3.269977304 | K28: 3.265885962 | L28: 0.0004565709694 | M28: 0.5213675214 | N28: 2.39135672 | O28: 0.07325223506 | P28: 2.710258815 | Q28: 1.573128788 | R28: 0.06779950801 | S28: 0.7603833866 | T28: 2.293658724 | U28: 1.506228468 | V28: 1.460410613 | W28: 2.293658724 | X28: 17.31601732 | Y28: -0.07345454545 | Z28: 4.241933514
A29: K2V3 | B29: =(ftyp^2*B10^2/(4*a_2^2*c_2^2*(fsw*kHz)^2))+(b_2^3*ftyp*B10/(27*a_2^4*c_2*(fsw*kHz)))-(d_2^3*ftyp*B10/(27*a_2*c_2*(fsw*kHz)))+(b_2*d_2^2*ftyp*B10/(9*a_2^2*c_2*(fsw*kHz)))-(b_2^2*d_2*ftyp*B10/(9*a_2^3*c_2*(fsw*kHz))) -> 3.287837916 | D29: K1V3 | E29: =(b_2^3/(27*a_2^3))-(d_2^3/27) -> 0.07325223506 | G29: 232 | H29: 0.08720060892 | I29: 4.355501458 | J29: 3.241865962 | K29: 3.237775169 | L29: 0.0004565709694 | M29: 0.5213675214 | N29: 2.3859811 | O29: 0.07325223506 | P29: 2.664321895 | Q29: 1.559118297 | R29: 0.06779950801 | S29: 0.7603833866 | T29: 2.28955642 | U29: 1.501891277 | V29: 1.460410613 | W29: 2.28955642 | X29: 17.24137931 | Y29: -0.07313793103 | Z29: 4.239590922
A30: K3V3 | B30: =(b_2*d_2^2/(9*a_2))-(b_2^2*d_2/(9*a_2^2))+(ftyp*B10/(2*a_2*c_2*(fsw*kHz))) -> 1.740073322 | D30: K2V3 | E30: =(ftyp^2*E11^2/(4*a_2^2*c_2^2*(fsw*kHz)^2))+(b_2^3*ftyp*E11/(27*a_2^4*c_2*(fsw*kHz)))-(d_2^3*ftyp*E11/(27*a_2*c_2*(fsw*kHz)))+(b_2*d_2^2*ftyp*E11/(9*a_2^2*c_2*(fsw*kHz)))-(b_2^2*d_2*ftyp*E11/(9*a_2^3*c_2*(fsw*kHz))) -> 3.287837916 | G30: 233 | H30: 0.08645371206 | I30: 4.338954242 | J30: 3.214115792 | K30: 3.21002554 | L30: 0.0004565709694 | M30: 0.5213675214 | N30: 2.380643964 | O30: 0.07325223506 | P30: 2.619360222 | Q30: 1.545287811 | R30: 0.06779950801 | S30: 0.7603833866 | T30: 2.285484468 | U30: 1.497591314 | V30: 1.460410613 | W30: 2.285484468 | X30: 17.16738197 | Y30: -0.07282403433 | Z30: 4.237267638
A31: K4V3 | B31: =(d_2^2/9)+(b_2^2/(9*a_2^2))-(2*b_2*d_2/(9*a_2)) -> 0.06779950801 | D31: K3V3 | E31: =(b_2*d_2^2/(9*a_2))-(b_2^2*d_2/(9*a_2^2))+(ftyp*E11/(2*a_2*c_2*(fsw*kHz))) -> 1.740073322 | G31: 234 | H31: 0.08571637034 | I31: 4.322548454 | J31: 3.186720633 | K31: 3.182630915 | L31: 0.0004565709694 | M31: 0.5213675214 | N31: 2.375344874 | O31: 0.07325223506 | P31: 2.575349003 | Q31: 1.53163426 | R31: 0.06779950801 | S31: 0.7603833866 | T31: 2.281442519 | U31: 1.493328103 | V31: 1.460410613 | W31: 2.281442519 | X31: 17.09401709 | Y31: -0.07251282051 | Z31: 4.234963459
A32: K5V3 | B32: =(b_2*c_2*(fsw*kHz)+2*a_2*c_2*d_2*(fsw*kHz))/(3*a_2*c_2*(fsw*kHz)) -> 0.7603833866 | D32: K4V3 | E32: =(d_2^2/9)+(b_2^2/(9*a_2^2))-(2*b_2*d_2/(9*a_2)) -> 0.06779950801 | G32: 235 | H32: 0.08498842144 | I32: 4.306282291 | J32: 3.159674454 | K32: 3.155585264 | L32: 0.0004565709694 | M32: 0.5213675214 | N32: 2.370083398 | O32: 0.07325223506 | P32: 2.532264178 | Q32: 1.518154638 | R32: 0.06779950801 | S32: 0.7603833866 | T32: 2.277430232 | U32: 1.489101175 | V32: 1.460410613 | W32: 2.277430232 | X32: 17.0212766 | Y32: -0.07220425532 | Z32: 4.23267818
A33: VCOMP3 | B33: =((B28+SQRT(B29)+B30)^(1/3))+(B31/((B28+SQRT(B29)+B30)^(1/3)))+B32 -> 2.34089226 | D33: K5V3 | E33: =(b_2*c_2*(fsw*kHz)+2*a_2*c_2*d_2*(fsw*kHz))/(3*a_2*c_2*(fsw*kHz)) -> 0.7603833866 | G33: 236 | H33: 0.08426970652 | I33: 4.290153976 | J33: 3.132971354 | K33: 3.128882685 | L33: 0.0004565709694 | M33: 0.5213675214 | N33: 2.364859111 | O33: 0.07325223506 | P33: 2.490082395 | Q33: 1.504846005 | R33: 0.06779950801 | S33: 0.7603833866 | T33: 2.273447271 | U33: 1.484910069 | V33: 1.460410613 | W33: 2.273447271 | X33: 16.94915254 | Y33: -0.07189830508 | Z33: 4.230411603
D34: VCOMP3 | E34: =((E29+SQRT(E30)+E31)^(1/3))+(E32/((E29+SQRT(E30)+E31)^(1/3)))+E33 -> 2.34089226 | G34: 237 | H34: 0.08356007004 | I34: 4.274161765 | J34: 3.106605554 | K34: 3.102517399 | L34: 0.0004565709694 | M34: 0.5213675214 | N34: 2.359671594 | O34: 0.07325223506 | P34: 2.448780988 | Q34: 1.491705479 | R34: 0.06779950801 | S34: 0.7603833866 | T34: 2.269493304 | U34: 1.48075433 | V34: 1.460410613 | W34: 2.269493304 | X34: 16.87763713 | Y34: -0.07159493671 | Z34: 4.228163531
A35: a3 | B35: 1.007 | G35: 238 | H35: 0.08285935976 | I35: 4.258303943 | J35: 3.080571397 | K35: 3.07648375 | L35: 0.0004565709694 | M35: 0.5213675214 | N35: 2.354520434 | O35: 0.07325223506 | P35: 2.40833795 | Q35: 1.478730242 | R35: 0.06779950801 | S35: 0.7603833866 | T35: 2.265568006 | U35: 1.476633513 | V35: 1.460410613 | W35: 2.265568006 | X35: 16.80672269 | Y35: -0.07129411765 | Z35: 4.22593377
A36: b3 | B36: 0.1223 | D36: a3 | E36: 1.007 | G36: 239 | H36: 0.08216742659 | I36: 4.242578822 | J36: 3.054863345 | K36: 3.0507762 | L36: 0.0004565709694 | M36: 0.5213675214 | N36: 2.349405226 | O36: 0.07325223506 | P36: 2.368731916 | Q36: 1.465917533 | R36: 0.06779950801 | S36: 0.7603833866 | T36: 2.261671056 | U36: 1.472547181 | V36: 1.460410613 | W36: 2.261671056 | X36: 16.73640167 | Y36: -0.0709958159 | Z36: 4.223722129
A37: c3 | B37: 0.5 | D37: b3 | E37: 0.1223 | G37: 240 | H37: 0.08148412455 | I37: 4.226984743 | J37: 3.029475973 | K37: 3.025389324 | L37: 0.0004565709694 | M37: 0.5213675214 | N37: =(J37+K37)^(1/3)+(L37/(J37^(1/3)))+M37 -> 2.34432557 | O37: 0.07325223506 | P37: 2.329942138 | Q37: 1.453264649 | R37: 0.06779950801 | S37: 0.7603833866 | T37: 2.257802137 | U37: 1.468494901 | V37: 1.460410613 | W37: 2.257802137 | X37: 16.66666667 | Y37: -0.0707 | Z37: 4.221528419
A38: VCOMP4 | B38: =c_3+(SQRT(ftyp)*SQRT(B10)/(SQRT(a_3)*SQRT(b_3)*SQRT(fsw*kHz))) -> 1.556539892 | D38: c3 | E38: 0.5 | G38: 241 | H38: 0.08080931069 | I38: 4.211520076 | J38: 3.004403971 | K38: 3.00031781 | L38: 0.0004565709694 | M38: 0.5213675214 | N38: 2.339281072 | O38: 0.07325223506 | P38: 2.291948468 | Q38: 1.440768943 | R38: 0.06779950801 | S38: 0.7603833866 | T38: 2.253960938 | U38: 1.46447625 | V38: 1.460410613 | W38: 2.253960938 | X38: 16.59751037 | Y38: -0.070406639 | Z38: 4.219352455
D39: VCOMP4 | E39: =c_3+(SQRT(ftyp)*SQRT(E11)/(SQRT(a_3)*SQRT(b_3)*SQRT(fsw*kHz))) -> 1.556539892 | G39: 242 | H39: =(Iout*(Vout_nom^2)*2.5*Rsense*K_1)/(eff*(G39^2)*K_FQ)*us -> 0.08014284499 | I39: =(1*10^-9*(5*10^8*SQRT(fsw*kHz)+(1.09655978*10^10)*SQRT(ftyp)*SQRT(H39)))/SQRT(fsw*kHz) -> 4.196183216 | J39: =(b_1^3/(27*a_1^3))-(d_1^3/27)+SQRT((ftyp)^2*H39^2/(4*a_1^2*c_1^2*(fsw*kHz)^2))+(b_1^3*(ftyp)*H39/(27*a_1^4*c_1*(fsw*kHz))-(d_1^3*(ftyp)*H39/(27*a_1*c_1*(fsw*kHz)))+(b_1*d_1^2*(ftyp)*H39/(9*a_1^2*c_1*(fsw*kHz)))-(b_1^2*d_1*(ftyp)*H39/(9*a_1^3*c_1*(fsw*kHz)))) -> 2.979642136 | K39: =(b_1*d_1^2/(9*a_1))-(b_1^2*d_1/(9*a_1^2))+(ftyp*H39/(2*a_1*c_1*fsw*kHz)) -> 2.975556459 | L39: =(d_1^2/9)+(b_1^2/(9*a_1^2))-(2*b_1*d_1/(9*a_1)) -> 0.0004565709694 | M39: =((b_1*c_1*fsw*kHz)+(2*a_1*c_1*d_1*fsw*kHz))/(3*a_1*c_1*fsw*kHz) -> 0.5213675214 | N39: 2.334271345 | O39: =(b_2^3/(27*a_2^3))-(d_2^3/27) -> 0.07325223506 | P39: =(ftyp^2*H39^2/(4*a_2^2*c_2^2*(fsw*kHz)^2))+(b_2^3*ftyp*H39/(27*a_2^4*c_2*(fsw*kHz)))-(d_2^3*ftyp*H39/(27*a_2*c_2*(fsw*kHz)))+(b_2*d_2^2*ftyp*H39/(9*a_2^2*c_2*(fsw*kHz)))-(b_2^2*d_2*ftyp*H39/(9*a_2^3*c_2*(fsw*kHz))) -> 2.254731334 | Q39: =(b_2*d_2^2/(9*a_2))-(b_2^2*d_2/(9*a_2^2))+(ftyp*H39/(2*a_2*c_2*(fsw*kHz))) -> 1.428427822 | R39: =(d_2^2/9)+(b_2^2/(9*a_2^2))-(2*b_2*d_2/(9*a_2)) -> 0.06779950801 | S39: =(b_2*c_2*(fsw*kHz)+2*a_2*c_2*d_2*(fsw*kHz))/(3*a_2*c_2*(fsw*kHz)) -> 0.7603833866 | T39: 2.250147153 | U39: =c_3+(SQRT(ftyp)*SQRT(H39)/(SQRT(a_3)*SQRT(b_3)*SQRT(fsw*kHz))) -> 1.460490811 | V39: =(a_4*(fsw*kHz)*b_4/ftyp) -> 1.460410613 | W39: 2.250147153 | X39: =Pin_max/G39 -> 16.52892562 | Y39: =-X39*Rsense*1.414 -> -0.07011570248 | Z39: =MIN(6,MAX(0.5,Beta*G*($Y39-Voff_trim)/(MAX(0,MIN(4.5,W39)-Alpha1_A)+MAX(0,MIN(4.5,W39)-Alpha1_B)-Alpha1_C)+Alpha2)) -> 4.217194054
A40: a4 | B40: 1.007 | G40: 243 | H40: 0.07948459033 | I40: 4.180972586 | J40: 2.955185373 | K40: 2.951100173 | L40: 0.0004565709694 | M40: 0.5213675214 | N40: 2.329296007 | O40: 0.07325223506 | P40: 2.218271725 | Q40: 1.416238746 | R40: 0.06779950801 | S40: 0.7603833866 | T40: 2.24636048 | U40: 1.456538174 | V40: 1.460410613 | W40: 2.24636048 | X40: 16.46090535 | Y40: -0.06982716049 | Z40: 4.215053034
A41: b4 | B41: 2.056 | D41: a4 | E41: 1.007 | G41: 244 | H41: 0.07883441236 | I41: 4.165886633 | J41: 2.931028692 | K41: 2.926943963 | L41: 0.0004565709694 | M41: 0.5213675214 | N41: 2.324354681 | O41: 0.07325223506 | P41: 2.182551172 | Q41: 1.40419923 | R41: 0.06779950801 | S41: 0.7603833866 | T41: 2.242600621 | U41: 1.452617935 | V41: 1.460410613 | W41: 2.242600621 | X41: 16.39344262 | Y41: -0.06954098361 | Z41: 4.212929218
A42: VCOMP5 | B42: =(a_4*(fsw*kHz)*b_4/ftyp) -> 1.460410613 | D42: b4 | E42: 2.056 | G42: 245 | H42: 0.0781921795 | I42: 4.15092383 | J42: 2.907167202 | K42: 2.903082939 | L42: 0.0004565709694 | M42: 0.5213675214 | N42: 2.319446997 | O42: 0.07325223506 | P42: 2.147551727 | Q42: 1.392306834 | R42: 0.06779950801 | S42: 0.7603833866 | T42: 2.238867283 | U42: 1.448729699 | V42: 1.460410613 | W42: 2.238867283 | X42: 16.32653061 | Y42: -0.06925714286 | Z42: 4.21082243
D43: VCOMP5 | E43: =(a_4*(fsw*kHz)*b_4/ftyp) -> 1.460410613 | G43: 246 | H43: 0.07755776281 | I43: 4.136082676 | J43: 2.883596115 | K43: 2.879512312 | L43: 0.0004565709694 | M43: 0.5213675214 | N43: 2.314572591 | O43: 0.07325223506 | P43: 2.113255952 | Q43: 1.380559173 | R43: 0.06779950801 | S43: 0.7603833866 | T43: 2.235160178 | U43: 1.444873074 | V43: 1.460410613 | W43: 2.235160178 | X43: 16.2601626 | Y43: -0.06897560976 | Z43: 4.208732496
A44: VCOMP = | B44: =IF(B12>=0.5,IF(B12<1,B12,IF(B22>=1,IF(B22<2,B22,IF(B33>=2,IF(B33<4.5,B33,IF(B38>=4.5,IF(B38<4.6,B38,B42)))))))) -> 2.34089226 | G44: 247 | H44: 0.07693103598 | I44: 4.121361694 | J44: 2.860310736 | K44: 2.856227387 | L44: 0.0004565709694 | M44: 0.5213675214 | N44: 2.309731102 | O44: 0.07325223506 | P44: 2.079646898 | Q44: 1.368953907 | R44: 0.06779950801 | S44: 0.7603833866 | T44: 2.231479021 | U44: 1.441047677 | V44: 1.460410613 | W44: 2.231479021 | X44: 16.19433198 | Y44: -0.06869635628 | Z44: 4.206659246
A45: ICOMP = | B45: =MIN(6,MAX(0.5,Beta*G*((Pin_max*Rsense*-1.414/B5)-Voff_trim)/(MAX(0,MIN(4.5,B44)-Alpha1_A)+MAX(0,MIN(4.5,B44)-Alpha1_B)-Alpha1_C)+Alpha2)) -> 4.269038305 | D45: VCOMP = | E45: =IF(E13>=0.5,IF(E13<1,E13,IF(E23>=1,IF(E23<2,E23,IF(E34>=2,IF(E34<4.5,E34,IF(E39>=4.5,IF(E39<4.6,E39,E43)))))))) -> 2.34089226 | G45: 248 | H45: 0.07631187523 | I45: 4.106759429 | J45: 2.837306467 | K45: 2.833223567 | L45: 0.0004565709694 | M45: 0.5213675214 | N45: 2.304922177 | O45: 0.07325223506 | P45: 2.046708092 | Q45: 1.357488745 | R45: 0.06779950801 | S45: 0.7603833866 | T45: 2.227823533 | U45: 1.43725313 | V45: 1.460410613 | W45: 2.227823533 | X45: 16.12903226 | Y45: -0.06841935484 | Z45: 4.204602512
G46: 249 | H46: 0.07570015926 | I46: 4.092274451 | J46: 2.814578801 | K46: 2.810496344 | L46: 0.0004565709694 | M46: 0.5213675214 | N46: 2.300145466 | O46: 0.07325223506 | P46: 2.014423518 | Q46: 1.346161439 | R46: 0.06779950801 | S46: 0.7603833866 | T46: 2.224193437 | U46: 1.433489061 | V46: 1.460410613 | W46: 2.224193437 | X46: 16.06425703 | Y46: -0.06814457831 | Z46: 4.202562127
G47: =G46+1 -> 250 | H47: 0.07509576919 | I47: 4.077905353 | J47: 2.79212332 | K47: 2.788041302 | L47: 0.0004565709694 | M47: 0.5213675214 | N47: 2.295400626 | O47: 0.07325223506 | P47: 1.982777608 | Q47: 1.334969788 | R47: 0.06779950801 | S47: 0.7603833866 | T47: 2.220588463 | U47: 1.429755105 | V47: 1.460410613 | W47: 2.220588463 | X47: 16 | Y47: -0.067872 | Z47: 4.200537926
G48: 251 | H48: 0.0744985885 | I48: 4.06365075 | J48: 2.769935698 | K48: 2.765854112 | L48: 0.0004565709694 | M48: 0.5213675214 | N48: 2.290687318 | O48: 0.07325223506 | P48: 1.951755224 | Q48: 1.323911636 | R48: 0.06779950801 | S48: 0.7603833866 | T48: 2.21700834 | U48: 1.426050901 | V48: 1.460410613 | W48: 2.21700834 | X48: 15.93625498 | Y48: -0.06760159363 | Z48: 4.198529749
G49: 252 | H49: 0.073908503 | I49: 4.049509279 | J49: 2.748011689 | K49: 2.743930531 | L49: 0.0004565709694 | M49: 0.5213675214 | N49: 2.286005208 | O49: 0.07325223506 | P49: 1.921341645 | Q49: 1.312984867 | R49: 0.06779950801 | S49: 0.7603833866 | T49: 2.213452807 | U49: 1.422376096 | V49: 1.460410613 | W49: 2.213452807 | X49: 15.87301587 | Y49: -0.06733333333 | Z49: 4.196537436
G50: 253 | H50: 0.07332540071 | I50: 4.035479598 | J50: 2.726347134 | K50: 2.722266399 | L50: 0.0004565709694 | M50: 0.5213675214 | N50: 2.281353966 | O50: 0.07325223506 | P50: 1.891522554 | Q50: 1.302187408 | R50: 0.06779950801 | S50: 0.7603833866 | T50: 2.209921602 | U50: 1.418730341 | V50: 1.460410613 | W50: 2.209921602 | X50: 15.81027668 | Y50: -0.06706719368 | Z50: 4.194560828
G51: 254 | H51: 0.0727491719 | I51: 4.021560387 | J51: 2.704937956 | K51: 2.700857638 | L51: 0.0004565709694 | M51: 0.5213675214 | N51: 2.27673327 | O51: 0.07325223506 | P51: 1.862284027 | Q51: 1.291517228 | R51: 0.06779950801 | S51: 0.7603833866 | T51: 2.206414469 | U51: 1.415113292 | V51: 1.460410613 | W51: 2.206414469 | X51: 15.7480315 | Y51: -0.06680314961 | Z51: 4.192599771
G52: 255 | H52: 0.07217970895 | I52: 4.007750346 | J52: 2.683780156 | K52: 2.679700252 | L52: 0.0004565709694 | M52: 0.5213675214 | N52: 2.272142798 | O52: 0.07325223506 | P52: 1.833612519 | Q52: 1.280972332 | R52: 0.06779950801 | S52: 0.7603833866 | T52: 2.202931156 | U52: 1.411524613 | V52: 1.460410613 | W52: 2.202931156 | X52: 15.68627451 | Y52: -0.06654117647 | Z52: 4.190654112
G53: 256 | H53: 0.07161690635 | I53: 3.994048197 | J53: 2.662869815 | K53: 2.658790318 | L53: 0.0004565709694 | M53: 0.5213675214 | N53: 2.267582236 | O53: 0.07325223506 | P53: 1.805494851 | Q53: 1.270550768 | R53: 0.06779950801 | S53: 0.7603833866 | T53: 2.199471413 | U53: 1.40796397 | V53: 1.460410613 | W53: 2.199471413 | X53: 15.625 | Y53: -0.06628125 | Z53: 4.188723698
G54: 257 | H54: 0.07106066063 | I54: 3.980452678 | J54: 2.642203088 | K54: 2.638123995 | L54: 0.0004565709694 | M54: 0.5213675214 | N54: 2.263051273 | O54: 0.07325223506 | P54: 1.777918204 | Q54: 1.260250619 | R54: 0.06779950801 | S54: 0.7603833866 | T54: 2.196034995 | U54: 1.404431036 | V54: 1.460410613 | W54: 2.196034995 | X54: 15.56420233 | Y54: -0.0660233463 | Z54: 4.186808381
G55: 258 | H55: 0.07051087035 | I55: 3.966962552 | J55: 2.621776206 | K55: 2.617697511 | L55: 0.0004565709694 | M55: 0.5213675214 | N55: 2.258549604 | O55: 0.07325223506 | P55: 1.750870099 | Q55: 1.250070008 | R55: 0.06779950801 | S55: 0.7603833866 | T55: 2.192621659 | U55: 1.400925489 | V55: 1.460410613 | W55: 2.192621659 | X55: 15.50387597 | Y55: -0.06576744186 | Z55: 4.184908014
G56: 259 | H56: 0.069967436 | I56: 3.953576596 | J56: 2.601585472 | K56: 2.597507171 | L56: 0.0004565709694 | M56: 0.5213675214 | N56: =(J56+K56)^(1/3)+(L56/(J56^(1/3)))+M56 -> 2.254076926 | O56: 0.07325223506 | P56: 1.724338397 | Q56: 1.24000709 | R56: 0.06779950801 | S56: 0.7603833866 | T56: 2.189231168 | U56: 1.397447012 | V56: 1.460410613 | W56: 2.189231168 | X56: 15.44401544 | Y56: -0.06551351351 | Z56: 4.183022451
G57: 260 | H57: 0.06943025997 | I57: 3.940293609 | J57: 2.581627259 | K57: 2.577549348 | L57: 0.0004565709694 | M57: 0.5213675214 | N57: 2.249632942 | O57: 0.07325223506 | P57: 1.698311281 | Q57: 1.23006006 | R57: 0.06779950801 | S57: 0.7603833866 | T57: 2.185863286 | U57: 1.393995293 | V57: 1.460410613 | W57: 2.185863286 | X57: 15.38461538 | Y57: -0.06526153846 | Z57: 4.181151547
G58: 261 | H58: 0.06889924655 | I58: 3.927112407 | J58: 2.561898012 | K58: 2.557820485 | L58: 0.0004565709694 | M58: 0.5213675214 | N58: 2.245217358 | O58: 0.07325223506 | P58: 1.672777247 | Q58: 1.220227145 | R58: 0.06779950801 | S58: 0.7603833866 | T58: 2.182517781 | U58: 1.390570024 | V58: 1.460410613 | W58: 2.182517781 | X58: 15.3256705 | Y58: -0.06501149425 | Z58: 4.179295163
G59: 262 | H59: 0.06837430182 | I59: 3.914031826 | J59: 2.54239424 | K59: 2.538317094 | L59: 0.0004565709694 | M59: 0.5213675214 | N59: 2.240829886 | O59: 0.07325223506 | P59: 1.6477251 | Q59: 1.210506605 | R59: 0.06779950801 | S59: 0.7603833866 | T59: 2.179194424 | U59: 1.387170902 | V59: 1.460410613 | W59: 2.179194424 | X59: 15.26717557 | Y59: -0.06476335878 | Z59: 4.177453157
G60: 263 | H60: 0.06785533366 | I60: 3.901050716 | J60: 2.523112522 | K60: 2.519035752 | L60: 0.0004565709694 | M60: 0.5213675214 | N60: 2.23647024 | O60: 0.07325223506 | P60: 1.623143938 | Q60: 1.200896735 | R60: 0.06779950801 | S60: 0.7603833866 | T60: 2.175892991 | U60: 1.383797628 | V60: 1.460410613 | W60: 2.175892991 | X60: 15.20912548 | Y60: -0.06451711027 | Z60: 4.175625392
G61: 264 | H61: 0.0673422517 | I61: 3.888167948 | J61: 2.504049499 | K61: 2.499973101 | L61: 0.0004565709694 | M61: 0.5213675214 | N61: 2.232138138 | O61: 0.07325223506 | P61: 1.599023147 | Q61: 1.191395861 | R61: 0.06779950801 | S61: 0.7603833866 | T61: 2.172613257 | U61: 1.38044991 | V61: 1.460410613 | W61: 2.172613257 | X61: 15.15151515 | Y61: -0.06427272727 | Z61: 4.173811732
G62: 265 | H62: 0.06683496724 | I62: 3.875382409 | J62: 2.485201876 | K62: 2.481125846 | L62: 0.0004565709694 | M62: 0.5213675214 | N62: 2.227833304 | O62: 0.07325223506 | P62: 1.575352391 | Q62: 1.182002341 | R62: 0.06779950801 | S62: 0.7603833866 | T62: 2.169355005 | U62: 1.377127457 | V62: 1.460410613 | W62: 2.169355005 | X62: 15.09433962 | Y62: -0.06403018868 | Z62: 4.172012042
G63: 266 | H63: 0.06633339327 | I63: 3.862693001 | J63: 2.466566421 | K63: 2.462490754 | L63: 0.0004565709694 | M63: 0.5213675214 | N63: 2.223555463 | O63: 0.07325223506 | P63: 1.552121603 | Q63: 1.172714563 | R63: 0.06779950801 | S63: 0.7603833866 | T63: 2.166118019 | U63: 1.373829986 | V63: 1.460410613 | W63: 2.166118019 | X63: 15.03759398 | Y63: -0.06378947368 | Z63: 4.170226188
G64: =G63+1 -> 267 | H64: 0.06583744441 | I64: 3.850098645 | J64: 2.44813996 | K64: 2.444064653 | L64: 0.0004565709694 | M64: 0.5213675214 | N64: 2.219304347 | O64: 0.07325223506 | P64: 1.529320981 | Q64: 1.163530947 | R64: 0.06779950801 | S64: 0.7603833866 | T64: 2.162902083 | U64: 1.370557214 | V64: 1.460410613 | W64: 2.162902083 | X64: 14.98127341 | Y64: -0.0635505618 | Z64: 4.168454041
G65: 268 | H65: 0.06534703684 | I65: 3.837598277 | J65: 2.429919381 | K65: 2.425844429 | L65: 0.0004565709694 | M65: 0.5213675214 | N65: 2.215079689 | O65: 0.07325223506 | P65: 1.506940974 | Q65: 1.154449941 | R65: 0.06779950801 | S65: 0.7603833866 | T65: 2.15970699 | U65: 1.367308866 | V65: 1.460410613 | W65: 2.15970699 | X65: 14.92537313 | Y65: -0.06331343284 | Z65: 4.16669547
G66: 269 | H66: 0.06486208834 | I66: 3.825190849 | J66: 2.411901627 | K66: 2.407827027 | L66: 0.0004565709694 | M66: 0.5213675214 | N66: 2.210881226 | O66: 0.07325223506 | P66: 1.48497228 | Q66: 1.145470022 | R66: 0.06779950801 | S66: 0.7603833866 | T66: 2.15653253 | U66: 1.36408467 | V66: 1.460410613 | W66: 2.15653253 | X66: 14.86988848 | Y66: -0.06307806691 | Z66: 4.164950347
G67: 270 | H67: 0.06438251817 | I67: 3.812875327 | J67: 2.394083699 | K67: 2.390009447 | L67: 0.0004565709694 | M67: 0.5213675214 | N67: 2.2067087 | O67: 0.07325223506 | P67: 1.463405835 | Q67: 1.136589694 | R67: 0.06779950801 | S67: 0.7603833866 | T67: 2.1533785 | U67: 1.360884356 | V67: 1.460410613 | W67: 2.1533785 | X67: 14.81481481 | Y67: -0.06284444444 | Z67: 4.163218547
G68: 271 | H68: 0.06390824709 | I68: 3.800650695 | J68: 2.376462654 | K68: 2.372388745 | L68: 0.0004565709694 | M68: 0.5213675214 | N68: 2.202561856 | O68: 0.07325223506 | P68: 1.442232809 | Q68: 1.127807492 | R68: 0.06779950801 | S68: 0.7603833866 | T68: 2.150244697 | U68: 1.357707661 | V68: 1.460410613 | W68: 2.150244697 | X68: 14.7601476 | Y68: -0.06261254613 | Z68: 4.161499944
G69: 272 | H69: 0.06343919732 | I69: 3.78851595 | J69: 2.359035601 | K69: 2.354962033 | L69: 0.0004565709694 | M69: 0.5213675214 | N69: 2.19844044 | O69: 0.07325223506 | P69: 1.421444594 | Q69: 1.119121974 | R69: 0.06779950801 | S69: 0.7603833866 | T69: 2.147130922 | U69: 1.354554324 | V69: 1.460410613 | W69: 2.147130922 | X69: 14.70588235 | Y69: -0.06238235294 | Z69: 4.159794415
G70: 273 | H70: 0.06297529249 | I70: 3.776470104 | J70: 2.341799703 | K70: 2.337726471 | L70: 0.0004565709694 | M70: 0.5213675214 | N70: 2.194344206 | O70: 0.07325223506 | P70: 1.401032807 | Q70: 1.110531726 | R70: 0.06779950801 | S70: 0.7603833866 | T70: 2.14403698 | U70: 1.351424089 | V70: 1.460410613 | W70: 2.14403698 | X70: 14.65201465 | Y70: -0.06215384615 | Z70: 4.158101839
G71: 274 | H71: =(Iout*(Vout_nom^2)*2.5*Rsense*K_1)/(eff*(G71^2)*K_FQ)*us -> 0.06251645765 | I71: =(1*10^-9*(5*10^8*SQRT(fsw*kHz)+(1.09655978*10^10)*SQRT(ftyp)*SQRT(H71)))/SQRT(fsw*kHz) -> 3.764512184 | J71: =(b_1^3/(27*a_1^3))-(d_1^3/27)+SQRT((ftyp)^2*H71^2/(4*a_1^2*c_1^2*(fsw*kHz)^2))+(b_1^3*(ftyp)*H71/(27*a_1^4*c_1*(fsw*kHz))-(d_1^3*(ftyp)*H71/(27*a_1*c_1*(fsw*kHz)))+(b_1*d_1^2*(ftyp)*H71/(9*a_1^2*c_1*(fsw*kHz)))-(b_1^2*d_1*(ftyp)*H71/(9*a_1^3*c_1*(fsw*kHz)))) -> 2.324752175 | K71: =(b_1*d_1^2/(9*a_1))-(b_1^2*d_1/(9*a_1^2))+(ftyp*H71/(2*a_1*c_1*fsw*kHz)) -> 2.320679275 | L71: =(d_1^2/9)+(b_1^2/(9*a_1^2))-(2*b_1*d_1/(9*a_1)) -> 0.0004565709694 | M71: =((b_1*c_1*fsw*kHz)+(2*a_1*c_1*d_1*fsw*kHz))/(3*a_1*c_1*fsw*kHz) -> 0.5213675214 | N71: 2.190272907 | O71: =(b_2^3/(27*a_2^3))-(d_2^3/27) -> 0.07325223506 | P71: =(ftyp^2*H71^2/(4*a_2^2*c_2^2*(fsw*kHz)^2))+(b_2^3*ftyp*H71/(27*a_2^4*c_2*(fsw*kHz)))-(d_2^3*ftyp*H71/(27*a_2*c_2*(fsw*kHz)))+(b_2*d_2^2*ftyp*H71/(9*a_2^2*c_2*(fsw*kHz)))-(b_2^2*d_2*ftyp*H71/(9*a_2^3*c_2*(fsw*kHz))) -> 1.380989272 | Q71: =(b_2*d_2^2/(9*a_2))-(b_2^2*d_2/(9*a_2^2))+(ftyp*H71/(2*a_2*c_2*(fsw*kHz))) -> 1.10203536 | R71: =(d_2^2/9)+(b_2^2/(9*a_2^2))-(2*b_2*d_2/(9*a_2)) -> 0.06779950801 | S71: =(b_2*c_2*(fsw*kHz)+2*a_2*c_2*d_2*(fsw*kHz))/(3*a_2*c_2*(fsw*kHz)) -> 0.7603833866 | T71: 2.140962675 | U71: =c_3+(SQRT(ftyp)*SQRT(H71)/(SQRT(a_3)*SQRT(b_3)*SQRT(fsw*kHz))) -> 1.348316701 | V71: =(a_4*(fsw*kHz)*b_4/ftyp) -> 1.460410613 | W71: 2.140962675 | X71: =Pin_max/G71 -> 14.59854015 | Y71: =-X71*Rsense*1.414 -> -0.0619270073 | Z71: =MIN(6,MAX(0.5,Beta*G*($Y71-Voff_trim)/(MAX(0,MIN(4.5,W71)-Alpha1_A)+MAX(0,MIN(4.5,W71)-Alpha1_B)-Alpha1_C)+Alpha2)) -> 4.156422096
G72: 275 | H72: 0.06206261916 | I72: 3.75264123 | J72: 2.307890282 | K72: 2.303817711 | L72: 0.0004565709694 | M72: 0.5213675214 | N72: =(J72+K72)^(1/3)+(L72/(J72^(1/3)))+M72 -> 2.186226301 | O72: 0.07325223506 | P72: 1.361306022 | Q72: 1.093631513 | R72: 0.06779950801 | S72: 0.7603833866 | T72: =((O72+SQRT(P72)+Q72)^(1/3))+(R72/((O72+SQRT(P72)+Q72)^(1/3)))+S72 -> 2.137907817 | U72: 1.345231913 | V72: 1.460410613 | W72: =IF(I72>=0.5,IF(I72<1,I72,IF(N72>=1,IF(N72<2,N72,IF(T72>=2,IF(T72<4.5,T72,IF(U72>=4.5,IF(U72<4.6,U72,V72)))))))) -> 2.137907817 | X72: 14.54545455 | Y72: -0.06170181818 | Z72: 4.154755067
G73: =G72+1 -> 276 | H73: 0.06161370477 | I73: 3.740856298 | J73: 2.291211337 | K73: 2.287139092 | L73: 0.0004565709694 | M73: 0.5213675214 | N73: 2.182204151 | O73: 0.07325223506 | P73: 1.341975292 | Q73: 1.085318847 | R73: 0.06779950801 | S73: 0.7603833866 | T73: 2.134872217 | U73: 1.342169479 | V73: 1.460410613 | W73: 2.134872217 | X73: 14.49275362 | Y73: -0.06147826087 | Z73: 4.153100635
G74: 277 | H74: 0.06116964348 | I74: 3.729156456 | J74: 2.274712705 | K74: 2.270640782 | L74: 0.0004565709694 | M74: 0.5213675214 | N74: 2.17820622 | O74: 0.07325223506 | P74: 1.32298951 | Q74: 1.077096047 | R74: 0.06779950801 | S74: 0.7603833866 | T74: 2.131855689 | U74: 1.339129156 | V74: 1.460410613 | W74: 2.131855689 | X74: 14.44043321 | Y74: -0.06125631769 | Z74: 4.151458683
G75: 278 | H75: 0.06073036559 | I75: 3.717540785 | J75: 2.258391795 | K75: 2.254320191 | L75: 0.0004565709694 | M75: 0.5213675214 | N75: 2.174232276 | O75: 0.07325223506 | P75: 1.304341294 | Q75: 1.068961822 | R75: 0.06779950801 | S75: 0.7603833866 | T75: 2.128858049 | U75: 1.336110706 | V75: 1.460410613 | W75: 2.128858049 | X75: 14.38848921 | Y75: -0.06103597122 | Z75: 4.149829098
G76: 279 | H76: 0.06029580265 | I76: 3.706008381 | J76: 2.242246065 | K76: 2.238174775 | L76: 0.0004565709694 | M76: 0.5213675214 | N76: 2.170282089 | O76: 0.07325223506 | P76: 1.286023444 | Q76: 1.060914906 | R76: 0.06779950801 | S76: 0.7603833866 | T76: 2.125879116 | U76: 1.333113893 | V76: 1.460410613 | W76: 2.125879116 | X76: 14.33691756 | Y76: -0.0608172043 | Z76: 4.148211767
G77: 280 | H77: 0.05986588743 | I77: 3.694558351 | J77: 2.226273015 | K77: 2.222202036 | L77: 0.0004565709694 | M77: 0.5213675214 | N77: 2.166355433 | O77: 0.07325223506 | P77: 1.268028942 | Q77: 1.052954052 | R77: 0.06779950801 | S77: 0.7603833866 | T77: 2.122918711 | U77: 1.330138486 | V77: 1.460410613 | W77: 2.122918711 | X77: 14.28571429 | Y77: -0.0606 | Z77: 4.146606577
G78: 281 | H78: 0.05944055387 | I78: 3.683189816 | J78: 2.210470192 | K78: 2.206399522 | L78: 0.0004565709694 | M78: 0.5213675214 | N78: 2.162452085 | O78: 0.07325223506 | P78: 1.250350942 | Q78: 1.045078039 | R78: 0.06779950801 | S78: 0.7603833866 | T78: 2.119976657 | U78: 1.327184257 | V78: 1.460410613 | W78: 2.119976657 | X78: 14.23487544 | Y78: -0.06038434164 | Z78: 4.14501342
G79: 282 | H79: 0.05901973711 | I79: 3.671901909 | J79: 2.194835186 | K79: 2.190764821 | L79: 0.0004565709694 | M79: 0.5213675214 | N79: 2.158571824 | O79: 0.07325223506 | P79: 1.232982766 | Q79: 1.037285664 | R79: 0.06779950801 | S79: 0.7603833866 | T79: 2.11705278 | U79: 1.324250979 | V79: 1.460410613 | W79: 2.11705278 | X79: 14.18439716 | Y79: -0.06017021277 | Z79: 4.143432184
G80: 283 | H80: 0.05860337343 | I80: 3.660693775 | J80: 2.179365629 | K80: 2.175295566 | L80: 0.0004565709694 | M80: 0.5213675214 | N80: 2.154714432 | O80: 0.07325223506 | P80: 1.2159179 | Q80: 1.029575748 | R80: 0.06779950801 | S80: 0.7603833866 | T80: 2.114146907 | U80: 1.321338432 | V80: 1.460410613 | W80: 2.114146907 | X80: 14.13427562 | Y80: -0.05995759717 | Z80: 4.141862764
G81: =G80+1 -> 284 | H81: 0.0581914002 | I81: 3.649564572 | J81: 2.164059195 | K81: 2.159989431 | L81: 0.0004565709694 | M81: 0.5213675214 | N81: 2.150879695 | O81: 0.07325223506 | P81: 1.199149992 | Q81: 1.021947131 | R81: 0.06779950801 | S81: 0.7603833866 | T81: 2.11125887 | U81: 1.318446395 | V81: 1.460410613 | W81: 2.11125887 | X81: 14.08450704 | Y81: -0.05974647887 | Z81: 4.140305053
G82: =G81+1 -> 285 | H82: 0.05778375592 | I82: 3.638513468 | J82: 2.148913599 | K82: 2.14484413 | L82: 0.0004565709694 | M82: 0.5213675214 | N82: 2.1470674 | O82: 0.07325223506 | P82: 1.182672841 | Q82: 1.014398674 | R82: 0.06779950801 | S82: 0.7603833866 | T82: 2.1083885 | U82: 1.315574653 | V82: 1.460410613 | W82: 2.1083885 | X82: 14.03508772 | Y82: -0.05953684211 | Z82: 4.138758945
G83: 286 | H83: 0.05738038014 | I83: 3.627539645 | J83: 2.133926595 | K83: 2.129857418 | L83: 0.0004565709694 | M83: 0.5213675214 | N83: 2.143277338 | O83: 0.07325223506 | P83: 1.1664804 | Q83: 1.006929259 | R83: 0.06779950801 | S83: 0.7603833866 | T83: 2.105535632 | U83: 1.312722994 | V83: 1.460410613 | W83: 2.105535632 | X83: 13.98601399 | Y83: -0.05932867133 | Z83: 4.137224337
G84: 287 | H84: 0.05698121349 | I84: 3.616642294 | J84: 2.119095976 | K84: 2.115027089 | L84: 0.0004565709694 | M84: 0.5213675214 | N84: 2.139509303 | O84: 0.07325223506 | P84: 1.150566767 | Q84: 0.9995377844 | R84: 0.06779950801 | S84: 0.7603833866 | T84: 2.102700103 | U84: 1.309891206 | V84: 1.460410613 | W84: 2.102700103 | X84: 13.93728223 | Y84: -0.05912195122 | Z84: 4.135701125
G85: 288 | H85: 0.05658619761 | I85: 3.605820619 | J85: 2.104419574 | K85: 2.100350974 | L85: 0.0004565709694 | M85: 0.5213675214 | N85: 2.135763089 | O85: 0.07325223506 | P85: 1.134926182 | Q85: 0.9922231711 | R85: 0.06779950801 | S85: 0.7603833866 | T85: 2.099881751 | U85: 1.307079084 | V85: 1.460410613 | W85: 2.099881751 | X85: 13.88888889 | Y85: -0.05891666667 | Z85: 4.134189209
G86: 289 | H86: 0.05619527513 | I86: 3.595073835 | J86: 2.089895259 | K86: 2.085826942 | L86: 0.0004565709694 | M86: 0.5213675214 | N86: 2.132038497 | O86: 0.07325223506 | P86: 1.119553025 | Q86: 0.9849843565 | R86: 0.06779950801 | S86: 0.7603833866 | T86: 2.097080417 | U86: 1.304286423 | V86: 1.460410613 | W86: 2.097080417 | X86: 13.84083045 | Y86: -0.05871280277 | Z86: 4.132688489
G87: 290 | H87: 0.05580838971 | I87: 3.584401167 | J87: 2.075520936 | K87: 2.0714529 | L87: 0.0004565709694 | M87: 0.5213675214 | N87: 2.128335326 | O87: 0.07325223506 | P87: 1.104441809 | Q87: 0.9778202971 | R87: 0.06779950801 | S87: 0.7603833866 | T87: 2.094295944 | U87: 1.301513021 | V87: 1.460410613 | W87: 2.094295944 | X87: 13.79310345 | Y87: -0.05851034483 | Z87: 4.131198864
G88: 291 | H88: 0.05542548593 | I88: 3.57380185 | J88: 2.061294548 | K88: 2.057226789 | L88: 0.0004565709694 | M88: 0.5213675214 | N88: 2.124653381 | O88: 0.07325223506 | P88: 1.089587179 | Q88: 0.970729967 | R88: 0.06779950801 | S88: 0.7603833866 | T88: 2.091528177 | U88: 1.298758681 | V88: 1.460410613 | W88: 2.091528177 | X88: 13.74570447 | Y88: -0.05830927835 | Z88: 4.129720238
G89: 292 | H89: 0.05504650936 | I89: 3.563275131 | J89: 2.04721407 | K89: 2.043146586 | L89: 0.0004565709694 | M89: 0.5213675214 | N89: 2.120992468 | O89: 0.07325223506 | P89: 1.074983908 | Q89: 0.9637123579 | R89: 0.06779950801 | S89: 0.7603833866 | T89: 2.088776962 | U89: 1.296023206 | V89: 1.460410613 | W89: 2.088776962 | X89: 13.69863014 | Y89: -0.05810958904 | Z89: 4.128252512
G90: 293 | H90: 0.05467140647 | I90: 3.552820267 | J90: 2.033277515 | K90: 2.029210303 | L90: 0.0004565709694 | M90: 0.5213675214 | N90: 2.117352394 | O90: 0.07325223506 | P90: 1.060626892 | Q90: 0.9567664788 | R90: 0.06779950801 | S90: 0.7603833866 | T90: 2.086042148 | U90: 1.293306403 | V90: 1.460410613 | W90: 2.086042148 | X90: 13.65187713 | Y90: -0.0579112628 | Z90: 4.126795593
G91: 294 | H91: 0.05430012465 | I91: 3.542436525 | J91: 2.019482928 | K91: 2.015415985 | L91: 0.0004565709694 | M91: 0.5213675214 | N91: 2.113732971 | O91: 0.07325223506 | P91: 1.046511148 | Q91: 0.9498913554 | R91: 0.06779950801 | S91: 0.7603833866 | T91: 2.083323585 | U91: 1.290608082 | V91: 1.460410613 | W91: 2.083323585 | X91: 13.60544218 | Y91: -0.05771428571 | Z91: 4.125349384
G92: 295 | H92: 0.05393261217 | I92: 3.532123181 | J92: 2.005828387 | K92: 2.00176171 | L92: 0.0004565709694 | M92: 0.5213675214 | N92: 2.110134012 | O92: 0.07325223506 | P92: 1.03263181 | Q92: 0.9430860299 | R92: 0.06779950801 | S92: 0.7603833866 | T92: 2.080621126 | U92: 1.287928055 | V92: 1.460410613 | W92: 2.080621126 | X92: 13.55932203 | Y92: -0.05751864407 | Z92: 4.123913792
G93: 296 | H93: 0.05356881819 | I93: 3.521879521 | J93: 1.992312002 | K93: 1.988245589 | L93: 0.0004565709694 | M93: 0.5213675214 | N93: 2.106555333 | O93: 0.07325223506 | P93: 1.018984127 | Q93: 0.9363495608 | R93: 0.06779950801 | S93: 0.7603833866 | T93: 2.077934626 | U93: 1.285266136 | V93: 1.460410613 | W93: 2.077934626 | X93: 13.51351351 | Y93: -0.05732432432 | Z93: 4.122488726
G94: 297 | H94: 0.0532086927 | I94: 3.511704843 | J94: 1.978931917 | K94: 1.974865765 | L94: 0.0004565709694 | M94: 0.5213675214 | N94: 2.102996751 | O94: 0.07325223506 | P94: 1.005563459 | Q94: 0.9296810222 | R94: 0.06779950801 | S94: 0.7603833866 | T94: 2.075263939 | U94: 1.282622142 | V94: 1.460410613 | W94: 2.075263939 | X94: 13.46801347 | Y94: -0.05713131313 | Z94: 4.121074093
G95: 298 | H95: 0.05285218655 | I95: 3.501598451 | J95: 1.965686304 | K95: 1.961620411 | L95: 0.0004565709694 | M95: 0.5213675214 | N95: 2.099458086 | O95: 0.07325223506 | P95: 0.9923652749 | Q95: 0.9230795038 | R95: 0.06779950801 | S95: 0.7603833866 | T95: 2.072608925 | U95: 1.279995893 | V95: 1.460410613 | W95: 2.072608925 | X95: 13.42281879 | Y95: -0.05693959732 | Z95: 4.119669803
G96: 299 | H96: 0.0524992514 | I96: 3.49155966 | J96: 1.952573369 | K96: 1.948507731 | L96: 0.0004565709694 | M96: 0.5213675214 | N96: 2.095939162 | O96: 0.07325223506 | P96: 0.9793851468 | Q96: 0.9165441106 | R96: 0.06779950801 | S96: 0.7603833866 | T96: 2.069969442 | U96: 1.277387211 | V96: 1.460410613 | W96: 2.069969442 | X96: 13.37792642 | Y96: -0.05674916388 | Z96: 4.118275766
G97: 300 | H97: 0.05214983971 | I97: 3.481587794 | J97: 1.939591343 | K97: 1.935525959 | L97: 0.0004565709694 | M97: 0.5213675214 | N97: 2.092439801 | O97: 0.07325223506 | P97: 0.9666187514 | Q97: 0.9100739623 | R97: 0.06779950801 | S97: 0.7603833866 | T97: 2.067345352 | U97: 1.274795921 | V97: 1.460410613 | W97: 2.067345352 | X97: 13.33333333 | Y97: -0.05656 | Z97: 4.116891895
G98: 301 | H98: 0.05180390475 | I98: 3.471682187 | J98: 1.926738492 | K98: 1.922673358 | L98: 0.0004565709694 | M98: 0.5213675214 | N98: 2.088959831 | O98: 0.07325223506 | P98: 0.9540618645 | Q98: 0.9036681933 | R98: 0.06779950801 | S98: 0.7603833866 | T98: 2.064736517 | U98: 1.272221848 | V98: 1.460410613 | W98: 2.064736517 | X98: 13.28903654 | Y98: -0.05637209302 | Z98: 4.115518102
G99: 302 | H99: 0.05146140053 | I99: 3.46184218 | J99: 1.914013107 | K99: 1.909948221 | L99: 0.0004565709694 | M99: 0.5213675214 | N99: 2.08549908 | O99: 0.07325223506 | P99: 0.9417103591 | Q99: 0.8973259525 | R99: 0.06779950801 | S99: 0.7603833866 | T99: 2.062142803 | U99: 1.269664822 | V99: 1.460410613 | W99: 2.062142803 | X99: 13.24503311 | Y99: -0.05618543046 | Z99: 4.1141543
G100: =G99+1 -> 303 | H100: 0.05112228185 | I100: 3.452067123 | J100: 1.901413507 | K100: 1.897348867 | L100: 0.0004565709694 | M100: 0.5213675214 | N100: 2.08205738 | O100: 0.07325223506 | P100: 0.9295602032 | Q100: 0.8910464024 | R100: 0.06779950801 | S100: 0.7603833866 | T100: 2.059564075 | U100: 1.267124674 | V100: 1.460410613 | W100: 2.059564075 | X100: 13.20132013 | Y100: -0.056 | Z100: 4.112800405
G101: =G100+1 -> 304 | H101: 0.05078650422 | I101: 3.442356376 | J101: 1.888938041 | K101: 1.884873645 | L101: 0.0004565709694 | M101: 0.5213675214 | N101: 2.078634562 | O101: 0.07325223506 | P101: 0.9176074566 | Q101: 0.8848287195 | R101: 0.06779950801 | S101: 0.7603833866 | T101: 2.057000202 | U101: 1.264601238 | V101: 1.460410613 | W101: 2.057000202 | X101: 13.15789474 | Y101: -0.05581578947 | Z101: 4.11145633
G102: 305 | H102: 0.05045402391 | I102: 3.432709306 | J102: 1.876585083 | K102: 1.872520928 | L102: 0.0004565709694 | M102: 0.5213675214 | N102: 2.075230462 | O102: 0.07325223506 | P102: 0.9058482691 | Q102: 0.8786720939 | R102: 0.06779950801 | S102: 0.7603833866 | T102: 2.054451053 | U102: 1.262094348 | V102: 1.460410613 | W102: 2.054451053 | X102: 13.1147541 | Y102: -0.05563278689 | Z102: 4.110121994
G103: 306 | H103: =(Iout*(Vout_nom^2)*2.5*Rsense*K_1)/(eff*(G103^2)*K_FQ)*us -> 0.05012479788 | I103: =(1*10^-9*(5*10^8*SQRT(fsw*kHz)+(1.09655978*10^10)*SQRT(ftyp)*SQRT(H103)))/SQRT(fsw*kHz) -> 3.423125289 | J103: =(b_1^3/(27*a_1^3))-(d_1^3/27)+SQRT((ftyp)^2*H103^2/(4*a_1^2*c_1^2*(fsw*kHz)^2))+(b_1^3*(ftyp)*H103/(27*a_1^4*c_1*(fsw*kHz))-(d_1^3*(ftyp)*H103/(27*a_1*c_1*(fsw*kHz)))+(b_1*d_1^2*(ftyp)*H103/(9*a_1^2*c_1*(fsw*kHz)))-(b_1^2*d_1*(ftyp)*H103/(9*a_1^3*c_1*(fsw*kHz)))) -> 1.864353035 | K103: =(b_1*d_1^2/(9*a_1))-(b_1^2*d_1/(9*a_1^2))+(ftyp*H103/(2*a_1*c_1*fsw*kHz)) -> 1.860289118 | L103: =(d_1^2/9)+(b_1^2/(9*a_1^2))-(2*b_1*d_1/(9*a_1)) -> 0.0004565709694 | M103: =((b_1*c_1*fsw*kHz)+(2*a_1*c_1*d_1*fsw*kHz))/(3*a_1*c_1*fsw*kHz) -> 0.5213675214 | N103: 2.071844917 | O103: =(b_2^3/(27*a_2^3))-(d_2^3/27) -> 0.07325223506 | P103: =(ftyp^2*H103^2/(4*a_2^2*c_2^2*(fsw*kHz)^2))+(b_2^3*ftyp*H103/(27*a_2^4*c_2*(fsw*kHz)))-(d_2^3*ftyp*H103/(27*a_2*c_2*(fsw*kHz)))+(b_2*d_2^2*ftyp*H103/(9*a_2^2*c_2*(fsw*kHz)))-(b_2^2*d_2*ftyp*H103/(9*a_2^3*c_2*(fsw*kHz))) -> 0.8942788781 | Q103: =(b_2*d_2^2/(9*a_2))-(b_2^2*d_2/(9*a_2^2))+(ftyp*H103/(2*a_2*c_2*(fsw*kHz))) -> 0.8725757287 | R103: =(d_2^2/9)+(b_2^2/(9*a_2^2))-(2*b_2*d_2/(9*a_2)) -> 0.06779950801 | S103: =(b_2*c_2*(fsw*kHz)+2*a_2*c_2*d_2*(fsw*kHz))/(3*a_2*c_2*(fsw*kHz)) -> 0.7603833866 | T103: 2.051916499 | U103: =c_3+(SQRT(ftyp)*SQRT(H103)/(SQRT(a_3)*SQRT(b_3)*SQRT(fsw*kHz))) -> 1.259603844 | V103: =(a_4*(fsw*kHz)*b_4/ftyp) -> 1.460410613 | W103: 2.051916499 | X103: =Pin_max/G103 -> 13.07189542 | Y103: =-X103*Rsense*1.414 -> -0.05545098039 | Z103: =MIN(6,MAX(0.5,Beta*G*($Y103-Voff_trim)/(MAX(0,MIN(4.5,W103)-Alpha1_A)+MAX(0,MIN(4.5,W103)-Alpha1_B)-Alpha1_C)+Alpha2)) -> 4.108797313
G104: 307 | H104: 0.0497987838 | I104: 3.413603708 | J104: 1.852240323 | K104: 1.848176643 | L104: 0.0004565709694 | M104: 0.5213675214 | N104: 2.068477765 | O104: 0.07325223506 | P104: 0.8828956058 | Q104: 0.86653884 | R104: 0.06779950801 | S104: 0.7603833866 | T104: 2.049396412 | U104: 1.257129564 | V104: 1.460410613 | W104: 2.049396412 | X104: 13.02931596 | Y104: -0.05527035831 | Z104: 4.107482206
G105: 308 | H105: 0.04947594002 | I105: 3.404143956 | J105: 1.840245401 | K105: 1.836181954 | L105: 0.0004565709694 | M105: 0.5213675214 | N105: 2.065128846 | O105: 0.07325223506 | P105: 0.8716948578 | Q105: 0.8605606567 | R105: 0.06779950801 | S105: 0.7603833866 | T105: 2.046890667 | U105: 1.254671351 | V105: 1.460410613 | W105: 2.046890667 | X105: 12.98701299 | Y105: -0.05509090909 | Z105: 4.106176591
G106: 309 | H106: 0.04915622558 | I106: 3.394745432 | J106: 1.828366745 | K106: 1.824303531 | L106: 0.0004565709694 | M106: 0.5213675214 | N106: 2.061798005 | O106: 0.07325223506 | P106: 0.8606731203 | Q106: 0.85464042 | R106: 0.06779950801 | S106: 0.7603833866 | T106: 2.04439914 | U106: 1.252229049 | V106: 1.460410613 | W106: 2.04439914 | X106: 12.94498382 | Y106: -0.05491262136 | Z106: 4.104880389
G107: 310 | H107: 0.04883960015 | I107: 3.385407543 | J107: 1.816602859 | K107: 1.812539874 | L107: 0.0004565709694 | M107: 0.5213675214 | N107: 2.058485084 | O107: 0.07325223506 | P107: 0.8498269585 | Q107: 0.8487773835 | R107: 0.06779950801 | S107: 0.7603833866 | T107: 2.041921706 | U107: 1.249802504 | V107: 1.460410613 | W107: 2.041921706 | X107: 12.90322581 | Y107: -0.05473548387 | Z107: 4.103593521
G108: 311 | H108: 0.04852602407 | I108: 3.376129705 | J108: 1.804952269 | K108: 1.800889511 | L108: 0.0004565709694 | M108: 0.5213675214 | N108: 2.05518993 | O108: 0.07325223506 | P108: 0.839153014 | Q108: 0.8429708126 | R108: 0.06779950801 | S108: 0.7603833866 | T108: 2.039458246 | U108: 1.247391563 | V108: 1.460410613 | W108: 2.039458246 | X108: 12.86173633 | Y108: -0.05455948553 | Z108: 4.102315907
G109: 312 | H109: 0.04821545832 | I109: 3.366911341 | J109: 1.793413523 | K109: 1.789350991 | L109: 0.0004565709694 | M109: 0.5213675214 | N109: 2.051912392 | O109: 0.07325223506 | P109: 0.8286480038 | Q109: 0.8372199846 | R109: 0.06779950801 | S109: 0.7603833866 | T109: 2.037008638 | U109: 1.244996078 | V109: 1.460410613 | W109: 2.037008638 | X109: 12.82051282 | Y109: -0.05438461538 | Z109: 4.101047472
G110: 313 | H110: 0.04790786447 | I110: 3.35775188 | J110: 1.781985196 | K110: 1.777922886 | L110: 0.0004565709694 | M110: 0.5213675214 | N110: 2.048652318 | O110: 0.07325223506 | P110: 0.8183087172 | Q110: 0.8315241882 | R110: 0.06779950801 | S110: 0.7603833866 | T110: 2.034572765 | U110: 1.242615898 | V110: 1.460410613 | W110: 2.034572765 | X110: 12.77955272 | Y110: -0.05421086262 | Z110: 4.099788138
G111: 314 | H111: 0.04760320474 | I111: 3.348650759 | J111: 1.770665883 | K111: 1.766603794 | L111: 0.0004565709694 | M111: 0.5213675214 | N111: 2.045409561 | O111: 0.07325223506 | P111: 0.808132015 | Q111: 0.8258827236 | R111: 0.06779950801 | S111: 0.7603833866 | T111: 2.032150508 | U111: 1.24025088 | V111: 1.460410613 | W111: 2.032150508 | X111: 12.7388535 | Y111: -0.05403821656 | Z111: 4.09853783
G112: 315 | H112: 0.04730144192 | I112: 3.339607423 | J112: 1.759454201 | K112: 1.755392331 | L112: 0.0004565709694 | M112: 0.5213675214 | N112: 2.042183975 | O112: 0.07325223506 | P112: 0.7981148271 | Q112: 0.8202949019 | R112: 0.06779950801 | S112: 0.7603833866 | T112: 2.029741752 | U112: 1.237900877 | V112: 1.460410613 | W112: 2.029741752 | X112: 12.6984127 | Y112: -0.05386666667 | Z112: 4.097296472
G113: 316 | H113: 0.0470025394 | I113: 3.330621324 | J113: 1.748348791 | K113: 1.744287138 | L113: 0.0004565709694 | M113: 0.5213675214 | N113: 2.038975413 | O113: 0.07325223506 | P113: 0.7882541509 | Q113: 0.8147600452 | R113: 0.06779950801 | S113: 0.7603833866 | T113: 2.027346383 | U113: 1.235565747 | V113: 1.460410613 | W113: 2.027346383 | X113: 12.65822785 | Y113: -0.05369620253 | Z113: 4.096063991
G114: =G113+1 -> 317 | H114: 0.04670646115 | I114: 3.321691919 | J114: 1.737348314 | K114: 1.733286875 | L114: 0.0004565709694 | M114: 0.5213675214 | N114: 2.035783733 | O114: 0.07325223506 | P114: 0.7785470499 | Q114: 0.8092774862 | R114: 0.06779950801 | S114: 0.7603833866 | T114: 2.024964287 | U114: 1.233245351 | V114: 1.460410613 | W114: 2.024964287 | X114: 12.61829653 | Y114: -0.05352681388 | Z114: 4.094840312
G115: =G114+1 -> 318 | H115: 0.04641317169 | I115: 3.312818674 | J115: 1.726451451 | K115: 1.722390225 | L115: 0.0004565709694 | M115: 0.5213675214 | N115: 2.032608792 | O115: 0.07325223506 | P115: 0.7689906513 | Q115: 0.803846568 | R115: 0.06779950801 | S115: 0.7603833866 | T115: 2.022595353 | U115: 1.230939548 | V115: 1.460410613 | W115: 2.022595353 | X115: 12.57861635 | Y115: -0.05335849057 | Z115: 4.093625365
G116: 319 | H116: 0.04612263612 | I116: 3.304001061 | J116: 1.715656906 | K116: 1.711595891 | L116: 0.0004565709694 | M116: 0.5213675214 | N116: 2.029450452 | O116: 0.07325223506 | P116: 0.7595821455 | Q116: 0.7984666442 | R116: 0.06779950801 | S116: 0.7603833866 | T116: 2.020239469 | U116: 1.228648201 | V116: 1.460410613 | W116: 2.020239469 | X116: 12.53918495 | Y116: -0.05319122257 | Z116: 4.092419076
G117: 320 | H117: 0.04583482006 | I117: 3.295238557 | J117: 1.704963402 | K117: 1.700902595 | L117: 0.0004565709694 | M117: 0.5213675214 | N117: 2.026308574 | O117: 0.07325223506 | P117: 0.7503187834 | Q117: 0.7931370783 | R117: 0.06779950801 | S117: 0.7603833866 | T117: 2.017896526 | U117: 1.226371176 | V117: 1.460410613 | W117: 2.017896526 | X117: 12.5 | Y117: -0.053025 | Z117: 4.091221374
G118: 321 | H118: 0.04554968968 | I118: 3.286530649 | J118: 1.694369681 | K118: 1.690309081 | L118: 0.0004565709694 | M118: 0.5213675214 | N118: 2.02318302 | O118: 0.07325223506 | P118: 0.7411978758 | Q118: 0.7878572439 | R118: 0.06779950801 | S118: 0.7603833866 | T118: 2.015566417 | U118: 1.224108337 | V118: 1.460410613 | W118: 2.015566417 | X118: 12.46105919 | Y118: -0.05285981308 | Z118: 4.09003219
G119: 322 | H119: 0.04526721166 | I119: 3.277876827 | J119: 1.683874507 | K119: 1.679814111 | L119: 0.0004565709694 | M119: 0.5213675214 | N119: 2.020073656 | O119: 0.07325223506 | P119: 0.7322167913 | Q119: 0.782626524 | R119: 0.06779950801 | S119: 0.7603833866 | T119: 2.013249034 | U119: 1.221859553 | V119: 1.460410613 | W119: 2.013249034 | X119: 12.42236025 | Y119: -0.05269565217 | Z119: 4.088851453
G120: 323 | H120: 0.04498735322 | I120: 3.269276589 | J120: 1.673476659 | K120: 1.669416467 | L120: 0.0004565709694 | M120: 0.5213675214 | N120: 2.016980348 | O120: 0.07325223506 | P120: 0.7233729552 | Q120: 0.7774443114 | R120: 0.06779950801 | S120: 0.7603833866 | T120: 2.010944272 | U120: 1.219624694 | V120: 1.460410613 | W120: 2.010944272 | X120: 12.38390093 | Y120: -0.05253250774 | Z120: 4.087679095
G121: =G120+1 -> 324 | H121: 0.04471008206 | I121: 3.260729439 | J121: 1.66317494 | K121: 1.659114948 | L121: 0.0004565709694 | M121: 0.5213675214 | N121: 2.013902963 | O121: 0.07325223506 | P121: 0.7146638483 | Q121: 0.7723100082 | R121: 0.06779950801 | S121: 0.7603833866 | T121: 2.008652027 | U121: 1.21740363 | V121: 1.460410613 | W121: 2.008652027 | X121: 12.34567901 | Y121: -0.05237037037 | Z121: 4.086515048
G122: =G121+1 -> 325 | H122: 0.04443536638 | I122: 3.252234887 | J122: 1.652968167 | K122: 1.648908374 | L122: 0.0004565709694 | M122: 0.5213675214 | N122: 2.010841371 | O122: 0.07325223506 | P122: 0.7060870048 | Q122: 0.7672230256 | R122: 0.06779950801 | S122: 0.7603833866 | T122: 2.006372194 | U122: 1.215196234 | V122: 1.460410613 | W122: 2.006372194 | X122: 12.30769231 | Y122: -0.05220923077 | Z122: 4.085359243
G123: 326 | H123: 0.04416317489 | I123: 3.243792449 | J123: 1.642855177 | K123: 1.638795582 | L123: 0.0004565709694 | M123: 0.5213675214 | N123: 2.007795443 | O123: 0.07325223506 | P123: 0.6976400119 | Q123: 0.7621827839 | R123: 0.06779950801 | S123: 0.7603833866 | T123: 2.004104672 | U123: 1.213002381 | V123: 1.460410613 | W123: 2.004104672 | X123: 12.26993865 | Y123: -0.05204907975 | Z123: 4.084211615
G124: 327 | H124: 0.04389347674 | I124: 3.235401646 | J124: 1.632834824 | K124: 1.628775425 | L124: 0.0004565709694 | M124: 0.5213675214 | N124: 2.00476505 | O124: 0.07325223506 | P124: 0.6893205079 | Q124: 0.7571887122 | R124: 0.06779950801 | S124: 0.7603833866 | T124: 2.00184936 | U124: 1.210821946 | V124: 1.460410613 | W124: 2.00184936 | X124: 12.2324159 | Y124: -0.05188990826 | Z124: 4.083072098
G125: 328 | H125: 0.04362624158 | I125: 3.227062007 | J125: 1.622905982 | K125: 1.618846776 | L125: 0.0004565709694 | M125: 0.5213675214 | N125: 2.001750067 | O125: 0.07325223506 | P125: 0.6811261811 | Q125: 0.7522402483 | R125: 0.06779950801 | S125: 0.7603833866 | T125: 1.999606159 | U125: 1.208654805 | V125: 1.460410613 | W125: FALSE | X125: 12.19512195 | Y125: -0.05173170732 | Z125: 1.299412538
G126: 329 | H126: 0.04336143951 | I126: 3.218773065 | J126: 1.613067538 | K126: 1.609008525 | L126: 0.0004565709694 | M126: 0.5213675214 | N126: 1.998750368 | O126: 0.07325223506 | P126: 0.6730547688 | Q126: 0.7473368386 | R126: 0.06779950801 | S126: 0.7603833866 | T126: 1.997374968 | U126: 1.20650084 | V126: 1.460410613 | W126: 1.998750368 | X126: 12.15805471 | Y126: -0.05157446809 | Z126: 4.070843374
G127: 330 | H127: 0.04309904109 | I127: 3.210534359 | J127: 1.6033184 | K127: 1.599259576 | L127: 0.0004565709694 | M127: 0.5213675214 | N127: 1.99576583 | O127: 0.07325223506 | P127: 0.6651040558 | Q127: 0.7424779377 | R127: 0.06779950801 | S127: 0.7603833866 | T127: 1.995155692 | U127: 1.204359928 | V127: 1.460410613 | W127: 1.99576583 | X127: 12.12121212 | Y127: -0.05141818182 | Z127: 4.066078617
G128: 331 | H128: 0.0428390173 | I128: 3.202345433 | J128: 1.593657488 | K128: 1.589598853 | L128: 0.0004565709694 | M128: 0.5213675214 | N128: 1.992796331 | O128: 0.07325223506 | P128: 0.6572718736 | Q128: 0.7376630087 | R128: 0.06779950801 | S128: 0.7603833866 | T128: 1.992948233 | U128: 1.202231952 | V128: 1.460410613 | W128: 1.992796331 | X128: 12.08459215 | Y128: -0.05126283988 | Z128: 4.061330403
G129: 332 | H129: 0.04258133958 | I129: 3.194205838 | J129: 1.584083743 | K129: 1.580025294 | L129: 0.0004565709694 | M129: 0.5213675214 | N129: 1.98984175 | O129: 0.07325223506 | P129: 0.6495560989 | Q129: 0.7328915225 | R129: 0.06779950801 | S129: 0.7603833866 | T129: 1.990752495 | U129: 1.200116796 | V129: 1.460410613 | W129: 1.98984175 | X129: 12.04819277 | Y129: -0.05110843373 | Z129: 4.056598616
G130: 333 | H130: 0.0423259798 | I130: 3.18611513 | J130: 1.574596117 | K130: 1.570537854 | L130: 0.0004565709694 | M130: 0.5213675214 | N130: 1.986901967 | O130: 0.07325223506 | P130: 0.6419546529 | Q130: 0.7281629581 | R130: 0.06779950801 | S130: 0.7603833866 | T130: 1.988568385 | U130: 1.198014343 | V130: 1.460410613 | W130: 1.986901967 | X130: 12.01201201 | Y130: -0.05095495495 | Z130: 4.051883143
G131: 334 | H131: 0.04207291024 | I131: 3.178072869 | J131: 1.565193583 | K131: 1.561135503 | L131: 0.0004565709694 | M131: 0.5213675214 | N131: 1.983976864 | O131: 0.07325223506 | P131: 0.6344654999 | Q131: 0.7234768022 | R131: 0.06779950801 | S131: 0.7603833866 | T131: 1.986395809 | U131: 1.19592448 | V131: 1.460410613 | W131: 1.983976864 | X131: 11.9760479 | Y131: -0.05080239521 | Z131: 4.047183872
G132: =G131+1 -> 335 | H132: 0.04182210358 | I132: 3.170078622 | J132: 1.555875124 | K132: 1.551817226 | L132: 0.0004565709694 | M132: 0.5213675214 | N132: 1.981066324 | O132: 0.07325223506 | P132: 0.6270866466 | Q132: 0.7188325493 | R132: 0.06779950801 | S132: 0.7603833866 | T132: 1.984234674 | U132: 1.193847093 | V132: 1.460410613 | W132: 1.981066324 | X132: 11.94029851 | Y132: -0.05065074627 | Z132: 4.042500693
G133: =G132+1 -> 336 | H133: 0.04157353294 | I133: 3.162131959 | J133: 1.546639742 | K133: 1.542582024 | L133: 0.0004565709694 | M133: 0.5213675214 | N133: 1.978170232 | O133: 0.07325223506 | P133: 0.6198161408 | Q133: 0.7142297011 | R133: 0.06779950801 | S133: 0.7603833866 | T133: 1.98208489 | U133: 1.191782072 | V133: 1.460410613 | W133: 1.978170232 | X133: 11.9047619 | Y133: -0.0505 | Z133: 4.037833494
G134: 337 | H134: 0.0413271718 | I134: 3.154232458 | J134: 1.537486452 | K134: 1.533428913 | L134: 0.0004565709694 | M134: 0.5213675214 | N134: 1.975288473 | O134: 0.07325223506 | P134: 0.6126520707 | Q134: 0.709667767 | R134: 0.06779950801 | S134: 0.7603833866 | T134: 1.979946366 | U134: 1.189729306 | V134: 1.460410613 | W134: 1.975288473 | X134: 11.8694362 | Y134: -0.05035014837 | Z134: 4.033182168
G135: 338 | H135: =(Iout*(Vout_nom^2)*2.5*Rsense*K_1)/(eff*(G135^2)*K_FQ)*us -> 0.04108299407 | I135: =(1*10^-9*(5*10^8*SQRT(fsw*kHz)+(1.09655978*10^10)*SQRT(ftyp)*SQRT(H135)))/SQRT(fsw*kHz) -> 3.146379699 | J135: =(b_1^3/(27*a_1^3))-(d_1^3/27)+SQRT((ftyp)^2*H135^2/(4*a_1^2*c_1^2*(fsw*kHz)^2))+(b_1^3*(ftyp)*H135/(27*a_1^4*c_1*(fsw*kHz))-(d_1^3*(ftyp)*H135/(27*a_1*c_1*(fsw*kHz)))+(b_1*d_1^2*(ftyp)*H135/(9*a_1^2*c_1*(fsw*kHz)))-(b_1^2*d_1*(ftyp)*H135/(9*a_1^3*c_1*(fsw*kHz)))) -> 1.528414284 | K135: =(b_1*d_1^2/(9*a_1))-(b_1^2*d_1/(9*a_1^2))+(ftyp*H135/(2*a_1*c_1*fsw*kHz)) -> 1.524356922 | L135: =(d_1^2/9)+(b_1^2/(9*a_1^2))-(2*b_1*d_1/(9*a_1)) -> 0.0004565709694 | M135: =((b_1*c_1*fsw*kHz)+(2*a_1*c_1*d_1*fsw*kHz))/(3*a_1*c_1*fsw*kHz) -> 0.5213675214 | N135: 1.972420933 | O135: =(b_2^3/(27*a_2^3))-(d_2^3/27) -> 0.07325223506 | P135: =(ftyp^2*H135^2/(4*a_2^2*c_2^2*(fsw*kHz)^2))+(b_2^3*ftyp*H135/(27*a_2^4*c_2*(fsw*kHz)))-(d_2^3*ftyp*H135/(27*a_2*c_2*(fsw*kHz)))+(b_2*d_2^2*ftyp*H135/(9*a_2^2*c_2*(fsw*kHz)))-(b_2^2*d_2*ftyp*H135/(9*a_2^3*c_2*(fsw*kHz))) -> 0.6055925637 | Q135: =(b_2*d_2^2/(9*a_2))-(b_2^2*d_2/(9*a_2^2))+(ftyp*H135/(2*a_2*c_2*(fsw*kHz))) -> 0.7051462636 | R135: =(d_2^2/9)+(b_2^2/(9*a_2^2))-(2*b_2*d_2/(9*a_2)) -> 0.06779950801 | S135: =(b_2*c_2*(fsw*kHz)+2*a_2*c_2*d_2*(fsw*kHz))/(3*a_2*c_2*(fsw*kHz)) -> 0.7603833866 | T135: 1.977819012 | U135: =c_3+(SQRT(ftyp)*SQRT(H135)/(SQRT(a_3)*SQRT(b_3)*SQRT(fsw*kHz))) -> 1.187688687 | V135: =(a_4*(fsw*kHz)*b_4/ftyp) -> 1.460410613 | W135: 1.972420933 | X135: =Pin_max/G135 -> 11.83431953 | Y135: =-X135*Rsense*1.414 -> -0.05020118343 | Z135: =MIN(6,MAX(0.5,Beta*G*($Y135-Voff_trim)/(MAX(0,MIN(4.5,W135)-Alpha1_A)+MAX(0,MIN(4.5,W135)-Alpha1_B)-Alpha1_C)+Alpha2)) -> 4.028546606
G136: 339 | H136: 0.04084097401 | I136: 3.138573269 | J136: 1.519422282 | K136: 1.515365096 | L136: 0.0004565709694 | M136: 0.5213675214 | N136: =(J136+K136)^(1/3)+(L136/(J136^(1/3)))+M136 -> 1.969567502 | O136: 0.07325223506 | P136: 0.5986357856 | Q136: 0.7006647143 | R136: 0.06779950801 | S136: 0.7603833866 | T136: =((O136+SQRT(P136)+Q136)^(1/3))+(R136/((O136+SQRT(P136)+Q136)^(1/3)))+S136 -> 1.975702741 | U136: 1.185660107 | V136: 1.460410613 | W136: =IF(I136>=0.5,IF(I136<1,I136,IF(N136>=1,IF(N136<2,N136,IF(T136>=2,IF(T136<4.5,T136,IF(U136>=4.5,IF(U136<4.6,U136,V136)))))))) -> 1.969567502 | X136: 11.79941003 | Y136: -0.05005309735 | Z136: 4.023926701
G137: 340 | H137: 0.04060108628 | I137: 3.13081276 | J137: 1.510509505 | K137: 1.506452492 | L137: 0.0004565709694 | M137: 0.5213675214 | N137: 1.966728069 | O137: 0.07325223506 | P137: 0.5917799398 | Q137: 0.69622265 | R137: 0.06779950801 | S137: 0.7603833866 | T137: 1.973597464 | U137: 1.183643459 | V137: 1.460410613 | W137: 1.966728069 | X137: 11.76470588 | Y137: -0.04990588235 | Z137: 4.019322349
G138: 341 | H138: 0.04036330591 | I138: 3.123097766 | J138: 1.501675024 | K138: 1.497618184 | L138: 0.0004565709694 | M138: 0.5213675214 | N138: 1.963902523 | O138: 0.07325223506 | P138: 0.5850232663 | Q138: 0.6918196081 | R138: 0.06779950801 | S138: 0.7603833866 | T138: 1.971503095 | U138: 1.18163864 | V138: 1.460410613 | W138: 1.963902523 | X138: 11.73020528 | Y138: -0.04975953079 | Z138: 4.014733444
G139: 342 | H139: 0.04012760827 | I139: 3.11542789 | J139: 1.492917926 | K139: 1.488861256 | L139: 0.0004565709694 | M139: 0.5213675214 | N139: 1.961090756 | O139: 0.07325223506 | P139: 0.5783640407 | Q139: 0.6874551329 | R139: 0.06779950801 | S139: 0.7603833866 | T139: 1.969419549 | U139: 1.179645544 | V139: 1.460410613 | W139: 1.961090756 | X139: 11.69590643 | Y139: -0.04961403509 | Z139: 4.010159882
G140: 343 | H140: 0.03989396913 | I140: 3.107802736 | J140: 1.484237308 | K140: 1.480180808 | L140: 0.0004565709694 | M140: 0.5213675214 | N140: 1.958292662 | O140: 0.07325223506 | P140: 0.5718005739 | Q140: 0.6831287753 | R140: 0.06779950801 | S140: 0.7603833866 | T140: 1.967346741 | U140: 1.177664071 | V140: 1.460410613 | W140: 1.958292662 | X140: 11.66180758 | Y140: -0.04946938776 | Z140: 4.005601561
G141: 344 | H141: 0.03966236457 | I141: 3.100221914 | J141: 1.475632283 | K141: 1.471575951 | L141: 0.0004565709694 | M141: 0.5213675214 | N141: 1.955508134 | O141: 0.07325223506 | P141: 0.5653312104 | Q141: 0.6788400927 | R141: 0.06779950801 | S141: 0.7603833866 | T141: 1.965284587 | U141: 1.175694117 | V141: 1.460410613 | W141: 1.955508134 | X141: 11.62790698 | Y141: -0.0493255814 | Z141: 4.001058379
G142: 345 | H142: 0.03943277105 | I142: 3.092685039 | J142: 1.467101976 | K142: 1.463045811 | L142: 0.0004565709694 | M142: 0.5213675214 | N142: 1.952737068 | O142: 0.07325223506 | P142: 0.5589543287 | Q142: 0.6745886488 | R142: 0.06779950801 | S142: 0.7603833866 | T142: 1.963233004 | U142: 1.173735583 | V142: 1.460410613 | W142: 1.952737068 | X142: 11.5942029 | Y142: -0.0491826087 | Z142: 3.996530236
G143: 346 | H143: 0.03920516534 | I143: 3.085191729 | J143: 1.458645525 | K143: 1.454589524 | L143: 0.0004565709694 | M143: 0.5213675214 | N143: 1.949979359 | O143: 0.07325223506 | P143: 0.5526683393 | Q143: 0.670374014 | R143: 0.06779950801 | S143: 0.7603833866 | T143: 1.961191911 | U143: 1.171788371 | V143: 1.460410613 | W143: 1.949979359 | X143: 11.56069364 | Y143: -0.04904046243 | Z143: 3.992017032
G144: 347 | H144: 0.03897952457 | I144: 3.077741609 | J144: 1.450262078 | K144: 1.446206241 | L144: 0.0004565709694 | M144: 0.5213675214 | N144: 1.947234905 | O144: 0.07325223506 | P144: 0.5464716848 | Q144: 0.6661957643 | R144: 0.06779950801 | S144: 0.7603833866 | T144: 1.959161226 | U144: 1.169852381 | V144: 1.460410613 | W144: 1.947234905 | X144: 11.52737752 | Y144: -0.04889913545 | Z144: 3.987518667
G145: =G144+1 -> 348 | H145: 0.03875582618 | I145: 3.070334306 | J145: 1.441950799 | K145: 1.437895124 | L145: 0.0004565709694 | M145: 0.5213675214 | N145: 1.944503604 | O145: 0.07325223506 | P145: 0.540362839 | Q145: 0.6620534823 | R145: 0.06779950801 | S145: 0.7603833866 | T145: 1.957140869 | U145: 1.167927518 | V145: 1.460410613 | W145: 1.944503604 | X145: 11.49425287 | Y145: -0.04875862069 | Z145: 3.983035045
G146: =G145+1 -> 349 | H146: 0.03853404795 | I146: 3.062969451 | J146: 1.433710861 | K146: 1.429655347 | L146: 0.0004565709694 | M146: 0.5213675214 | N146: 1.941785356 | O146: 0.07325223506 | P146: 0.5343403059 | Q146: 0.6579467562 | R146: 0.06779950801 | S146: 0.7603833866 | T146: 1.955130761 | U146: 1.166013685 | V146: 1.460410613 | W146: 1.941785356 | X146: 11.46131805 | Y146: -0.04861891117 | Z146: 3.978566067
G147: 350 | H147: 0.03831416795 | I147: 3.055646681 | J147: 1.42554145 | K147: 1.421486095 | L147: 0.0004565709694 | M147: 0.5213675214 | N147: 1.939080061 | O147: 0.07325223506 | P147: 0.5284026193 | Q147: 0.6538751804 | R147: 0.06779950801 | S147: 0.7603833866 | T147: 1.953130822 | U147: 1.164110789 | V147: 1.460410613 | W147: 1.939080061 | X147: 11.42857143 | Y147: -0.04848 | Z147: 3.974111639
G148: 351 | H148: 0.03809616459 | I148: 3.048365636 | J148: 1.417441763 | K148: 1.413386567 | L148: 0.0004565709694 | M148: 0.5213675214 | N148: 1.936387621 | O148: 0.07325223506 | P148: 0.522548342 | Q148: 0.6498383547 | R148: 0.06779950801 | S148: 0.7603833866 | T148: 1.951140976 | U148: 1.162218736 | V148: 1.460410613 | W148: 1.936387621 | X148: 11.3960114 | Y148: -0.04834188034 | Z148: 3.969671665
G149: 352 | H149: 0.03788001658 | I149: 3.041125961 | J149: 1.40941101 | K149: 1.40535597 | L149: 0.0004565709694 | M149: 0.5213675214 | N149: 1.933707938 | O149: 0.07325223506 | P149: 0.5167760653 | Q149: 0.6458358849 | R149: 0.06779950801 | S149: 0.7603833866 | T149: 1.949161145 | U149: 1.160337432 | V149: 1.460410613 | W149: 1.933707938 | X149: 11.36363636 | Y149: -0.04820454545 | Z149: 3.965246051
G150: 353 | H150: 0.03766570291 | I150: 3.033927304 | J150: 1.40144841 | K150: 1.397393526 | L150: 0.0004565709694 | M150: 0.5213675214 | N150: 1.931040916 | O150: 0.07325223506 | P150: 0.5110844081 | Q150: 0.6418673822 | R150: 0.06779950801 | S150: 0.7603833866 | T150: 1.947191253 | U150: 1.158466788 | V150: 1.460410613 | W150: 1.931040916 | X150: 11.33144476 | Y150: -0.04806798867 | Z150: 3.960834703
G151: 354 | H151: 0.0374532029 | I151: 3.026769317 | J151: 1.393553195 | K151: 1.389498464 | L151: 0.0004565709694 | M151: 0.5213675214 | N151: 1.928386459 | O151: 0.07325223506 | P151: 0.5054720164 | Q151: 0.6379324634 | R151: 0.06779950801 | S151: 0.7603833866 | T151: 1.945231225 | U151: 1.156606712 | V151: 1.460410613 | W151: 1.928386459 | X151: 11.29943503 | Y151: -0.04793220339 | Z151: 3.95643753
G152: 355 | H152: 0.03724249613 | I152: 3.019651657 | J152: 1.385724606 | K152: 1.381670027 | L152: 0.0004565709694 | M152: 0.5213675214 | N152: 1.925744474 | O152: 0.07325223506 | P152: 0.4999375628 | Q152: 0.6340307506 | R152: 0.06779950801 | S152: 0.7603833866 | T152: 1.943280986 | U152: 1.154757116 | V152: 1.460410613 | W152: 1.925744474 | X152: 11.26760563 | Y152: -0.0477971831 | Z152: 3.952054439
G153: 356 | H153: 0.03703356248 | I153: 3.012573984 | J153: 1.377961895 | K153: 1.373907468 | L153: 0.0004565709694 | M153: 0.5213675214 | N153: 1.923114866 | O153: 0.07325223506 | P153: 0.4944797458 | Q153: 0.6301618711 | R153: 0.06779950801 | S153: 0.7603833866 | T153: 1.941340462 | U153: 1.152917911 | V153: 1.460410613 | W153: 1.923114866 | X153: 11.23595506 | Y153: -0.04766292135 | Z153: 3.947685339
G154: =G153+1 -> 357 | H154: 0.03682638212 | I154: 3.005535962 | J154: 1.370264325 | K154: 1.366210049 | L154: 0.0004565709694 | M154: 0.5213675214 | N154: 1.920497543 | O154: 0.07325223506 | P154: 0.4890972893 | Q154: 0.6263254577 | R154: 0.06779950801 | S154: 0.7603833866 | T154: 1.93940958 | U154: 1.151089009 | V154: 1.460410613 | W154: 1.920497543 | X154: 11.20448179 | Y154: -0.04752941176 | Z154: 3.943330142
G155: =G154+1 -> 358 | H155: 0.03662093548 | I155: 2.998537258 | J155: 1.362631171 | K155: 1.358577043 | L155: 0.0004565709694 | M155: 0.5213675214 | N155: 1.917892413 | O155: 0.07325223506 | P155: 0.4837889418 | Q155: 0.6225211481 | R155: 0.06779950801 | S155: 0.7603833866 | T155: 1.937488269 | U155: 1.149270325 | V155: 1.460410613 | W155: 1.917892413 | X155: 11.17318436 | Y155: -0.04739664804 | Z155: 3.938988757
G156: 359 | H156: 0.03641720327 | I156: 2.991577544 | J156: 1.355061714 | K156: 1.351007734 | L156: 0.0004565709694 | M156: 0.5213675214 | N156: 1.915299387 | O156: 0.07325223506 | P156: 0.4785534762 | Q156: 0.6187485851 | R156: 0.06779950801 | S156: 0.7603833866 | T156: 1.935576456 | U156: 1.147461772 | V156: 1.460410613 | W156: 1.915299387 | X156: 11.14206128 | Y156: -0.04726462396 | Z156: 3.934661097
G157: 360 | H157: 0.03621516647 | I157: 2.984656495 | J157: 1.347555248 | K157: 1.343501415 | L157: 0.0004565709694 | M157: 0.5213675214 | N157: 1.912718373 | O157: 0.07325223506 | P157: 0.4733896889 | Q157: 0.6150074164 | R157: 0.06779950801 | S157: 0.7603833866 | T157: 1.933674071 | U157: 1.145663267 | V157: 1.460410613 | W157: 1.912718373 | X157: 11.11111111 | Y157: -0.04713333333 | Z157: 3.930347074
G158: 361 | H158: 0.03601480632 | I158: 2.97777379 | J158: 1.340111077 | K158: 1.336057389 | L158: 0.0004565709694 | M158: 0.5213675214 | N158: 1.910149284 | O158: 0.07325223506 | P158: 0.4682963998 | Q158: 0.6112972947 | R158: 0.06779950801 | S158: 0.7603833866 | T158: 1.931781043 | U158: 1.143874726 | V158: 1.460410613 | W158: 1.910149284 | X158: 11.08033241 | Y158: -0.04700277008 | Z158: 3.926046602
G159: 362 | H159: 0.03581610432 | I159: 2.970929111 | J159: 1.332728512 | K159: 1.328674968 | L159: 0.0004565709694 | M159: 0.5213675214 | N159: 1.907592032 | O159: 0.07325223506 | P159: 0.4632724511 | Q159: 0.6076178774 | R159: 0.06779950801 | S159: 0.7603833866 | T159: 1.929897303 | U159: 1.142096067 | V159: 1.460410613 | W159: 1.907592032 | X159: 11.04972376 | Y159: -0.04687292818 | Z159: 3.921759594
G160: 363 | H160: 0.03561904222 | I160: 2.964122144 | J160: 1.325406876 | K160: 1.321353475 | L160: 0.0004565709694 | M160: 0.5213675214 | N160: 1.905046529 | O160: 0.07325223506 | P160: 0.4583167073 | Q160: 0.6039688266 | R160: 0.06779950801 | S160: 0.7603833866 | T160: 1.928022782 | U160: 1.140327207 | V160: 1.460410613 | W160: 1.905046529 | X160: 11.01928375 | Y160: -0.04674380165 | Z160: 3.917485966
G161: 364 | H161: 0.03542360203 | I161: 2.957352578 | J161: 1.3181455 | K161: 1.314092241 | L161: 0.0004565709694 | M161: 0.5213675214 | N161: 1.902512689 | O161: 0.07325223506 | P161: 0.4534280548 | Q161: 0.600349809 | R161: 0.06779950801 | S161: 0.7603833866 | T161: 1.926157413 | U161: 1.138568066 | V161: 1.460410613 | W161: 1.902512689 | X161: 10.98901099 | Y161: -0.04661538462 | Z161: 3.913225633
G162: 365 | H162: 0.03522976599 | I162: 2.950620105 | J162: 1.310943725 | K162: 1.306890606 | L162: 0.0004565709694 | M162: 0.5213675214 | N162: 1.899990428 | O162: 0.07325223506 | P162: 0.4486054008 | Q162: 0.596760496 | R162: 0.06779950801 | S162: 0.7603833866 | T162: 1.924301128 | U162: 1.136818565 | V162: 1.460410613 | W162: 1.899990428 | X162: 10.95890411 | Y162: -0.04648767123 | Z162: 3.908978512
G163: 366 | H163: 0.0350375166 | I163: 2.943924422 | J163: 1.303800901 | K163: 1.299747921 | L163: 0.0004565709694 | M163: 0.5213675214 | N163: 1.89747966 | O163: 0.07325223506 | P163: 0.4438476736 | Q163: 0.5932005634 | R163: 0.06779950801 | S163: 0.7603833866 | T163: 1.92245386 | U163: 1.135078624 | V163: 1.460410613 | W163: 1.89747966 | X163: 10.92896175 | Y163: -0.04636065574 | Z163: 3.90474452
G164: 367 | H164: 0.0348468366 | I164: 2.937265227 | J164: 1.296716385 | K164: 1.292663543 | L164: 0.0004565709694 | M164: 0.5213675214 | N164: 1.894980302 | O164: 0.07325223506 | P164: 0.4391538216 | Q164: 0.5896696914 | R164: 0.06779950801 | S164: 0.7603833866 | T164: 1.920615544 | U164: 1.133348164 | V164: 1.460410613 | W164: 1.894980302 | X164: 10.89918256 | Y164: -0.04623433243 | Z164: 3.900523575
G165: 368 | H165: 0.03465770893 | I165: 2.930642224 | J165: 1.289689545 | K165: 1.28563684 | L165: 0.0004565709694 | M165: 0.5213675214 | N165: 1.892492272 | O165: 0.07325223506 | P165: 0.4345228132 | Q165: 0.5861675646 | R165: 0.06779950801 | S165: 0.7603833866 | T165: 1.918786114 | U165: 1.131627109 | V165: 1.460410613 | W165: 1.892492272 | X165: 10.86956522 | Y165: -0.04610869565 | Z165: 3.896315596
G166: 369 | H166: 0.0344701168 | I166: 2.924055117 | J166: 1.282719756 | K166: 1.278667187 | L166: 0.0004565709694 | M166: 0.5213675214 | N166: 1.890015488 | O166: 0.07325223506 | P166: 0.429953636 | Q166: 0.5826938717 | R166: 0.06779950801 | S166: 0.7603833866 | T166: 1.916965505 | U166: 1.129915383 | V166: 1.460410613 | W166: 1.890015488 | X166: 10.8401084 | Y166: -0.04598373984 | Z166: 3.892120502
G167: 370 | H167: =(Iout*(Vout_nom^2)*2.5*Rsense*K_1)/(eff*(G167^2)*K_FQ)*us -> 0.03428404364 | I167: =(1*10^-9*(5*10^8*SQRT(fsw*kHz)+(1.09655978*10^10)*SQRT(ftyp)*SQRT(H167)))/SQRT(fsw*kHz) -> 2.917503617 | J167: =(b_1^3/(27*a_1^3))-(d_1^3/27)+SQRT((ftyp)^2*H167^2/(4*a_1^2*c_1^2*(fsw*kHz)^2))+(b_1^3*(ftyp)*H167/(27*a_1^4*c_1*(fsw*kHz))-(d_1^3*(ftyp)*H167/(27*a_1*c_1*(fsw*kHz)))+(b_1*d_1^2*(ftyp)*H167/(9*a_1^2*c_1*(fsw*kHz)))-(b_1^2*d_1*(ftyp)*H167/(9*a_1^3*c_1*(fsw*kHz)))) -> 1.275806402 | K167: =(b_1*d_1^2/(9*a_1))-(b_1^2*d_1/(9*a_1^2))+(ftyp*H167/(2*a_1*c_1*fsw*kHz)) -> 1.271753969 | L167: =(d_1^2/9)+(b_1^2/(9*a_1^2))-(2*b_1*d_1/(9*a_1)) -> 0.0004565709694 | M167: =((b_1*c_1*fsw*kHz)+(2*a_1*c_1*d_1*fsw*kHz))/(3*a_1*c_1*fsw*kHz) -> 0.5213675214 | N167: 1.887549868 | O167: =(b_2^3/(27*a_2^3))-(d_2^3/27) -> 0.07325223506 | P167: =(ftyp^2*H167^2/(4*a_2^2*c_2^2*(fsw*kHz)^2))+(b_2^3*ftyp*H167/(27*a_2^4*c_2*(fsw*kHz)))-(d_2^3*ftyp*H167/(27*a_2*c_2*(fsw*kHz)))+(b_2*d_2^2*ftyp*H167/(9*a_2^2*c_2*(fsw*kHz)))-(b_2^2*d_2*ftyp*H167/(9*a_2^3*c_2*(fsw*kHz))) -> 0.4254452969 | Q167: =(b_2*d_2^2/(9*a_2))-(b_2^2*d_2/(9*a_2^2))+(ftyp*H167/(2*a_2*c_2*(fsw*kHz))) -> 0.5792483059 | R167: =(d_2^2/9)+(b_2^2/(9*a_2^2))-(2*b_2*d_2/(9*a_2)) -> 0.06779950801 | S167: =(b_2*c_2*(fsw*kHz)+2*a_2*c_2*d_2*(fsw*kHz))/(3*a_2*c_2*(fsw*kHz)) -> 0.7603833866 | T167: 1.915153654 | U167: =c_3+(SQRT(ftyp)*SQRT(H167)/(SQRT(a_3)*SQRT(b_3)*SQRT(fsw*kHz))) -> 1.128212909 | V167: =(a_4*(fsw*kHz)*b_4/ftyp) -> 1.460410613 | W167: 1.887549868 | X167: =Pin_max/G167 -> 10.81081081 | Y167: =-X167*Rsense*1.414 -> -0.04585945946 | Z167: =MIN(6,MAX(0.5,Beta*G*($Y167-Voff_trim)/(MAX(0,MIN(4.5,W167)-Alpha1_A)+MAX(0,MIN(4.5,W167)-Alpha1_B)-Alpha1_C)+Alpha2)) -> 3.887938214
G168: 371 | H168: 0.03409947308 | I168: 2.910987435 | J168: 1.268948876 | K168: 1.264896577 | L168: 0.0004565709694 | M168: 0.5213675214 | N168: 1.885095332 | O168: 0.07325223506 | P168: 0.4209968213 | Q168: 0.5758305642 | R168: 0.06779950801 | S168: 0.7603833866 | T168: 1.913350496 | U168: 1.126519612 | V168: 1.460410613 | W168: 1.885095332 | X168: 10.78167116 | Y168: -0.04573584906 | Z168: 3.883768652
G169: 372 | H169: 0.03391638899 | I169: 2.904506286 | J169: 1.262146579 | K169: 1.258094412 | L169: 0.0004565709694 | M169: 0.5213675214 | N169: 1.882651801 | O169: 0.07325223506 | P169: 0.4166072526 | Q169: 0.5724403478 | R169: 0.06779950801 | S169: 0.7603833866 | T169: 1.91155597 | U169: 1.12483542 | V169: 1.460410613 | W169: 1.882651801 | X169: 10.75268817 | Y169: -0.04561290323 | Z169: 3.879611738
G170: =G169+1 -> 373 | H170: 0.03373477545 | I170: 2.898059888 | J170: 1.255398918 | K170: 1.251346883 | L170: 0.0004565709694 | M170: 0.5213675214 | N170: 1.880219196 | O170: 0.07325223506 | P170: 0.4122756524 | Q170: 0.5690773621 | R170: 0.06779950801 | S170: 0.7603833866 | T170: 1.909770013 | U170: 1.123160258 | V170: 1.460410613 | W170: 1.880219196 | X170: 10.72386059 | Y170: -0.04549061662 | Z170: 3.875467394
G171: =G170+1 -> 374 | H171: 0.03355461676 | I171: 2.891647963 | J171: 1.24870531 | K171: 1.244653406 | L171: 0.0004565709694 | M171: 0.5213675214 | N171: 1.877797439 | O171: 0.07325223506 | P171: 0.4080010994 | Q171: 0.5657413161 | R171: 0.06779950801 | S171: 0.7603833866 | T171: 1.907992563 | U171: 1.121494054 | V171: 1.460410613 | W171: 1.877797439 | X171: 10.69518717 | Y171: -0.04536898396 | Z171: 3.871335543
G172: 375 | H172: 0.03337589742 | I172: 2.885270236 | J172: 1.24206518 | K172: 1.238013405 | L172: 0.0004565709694 | M172: 0.5213675214 | N172: 1.875386452 | O172: 0.07325223506 | P172: 0.4037826896 | Q172: 0.5624319228 | R172: 0.06779950801 | S172: 0.7603833866 | T172: 1.90622356 | U172: 1.119836737 | V172: 1.460410613 | W172: 1.875386452 | X172: 10.66666667 | Y172: -0.045248 | Z172: 3.867216109
G173: 376 | H173: 0.03319860213 | I173: 2.878926432 | J173: 1.235477959 | K173: 1.231426313 | L173: 0.0004565709694 | M173: 0.5213675214 | N173: 1.872986161 | O173: 0.07325223506 | P173: 0.3996195356 | Q173: 0.5591488992 | R173: 0.06779950801 | S173: 0.7603833866 | T173: 1.904462943 | U173: 1.118188235 | V173: 1.460410613 | W173: 1.872986161 | X173: 10.63829787 | Y173: -0.04512765957 | Z173: 3.863109017
G174: 377 | H174: 0.0330227158 | I174: 2.872616282 | J174: 1.228943087 | K174: 1.224891568 | L174: 0.0004565709694 | M174: 0.5213675214 | N174: 1.870596488 | O174: 0.07325223506 | P174: 0.3955107664 | Q174: 0.5558919657 | R174: 0.06779950801 | S174: 0.7603833866 | T174: 1.902710653 | U174: 1.116548478 | V174: 1.460410613 | W174: 1.870596488 | X174: 10.61007958 | Y174: -0.04500795756 | Z174: 3.85901419
G175: 378 | H175: 0.03284822355 | I175: 2.866339519 | J175: 1.222460011 | K175: 1.218408618 | L175: 0.0004565709694 | M175: 0.5213675214 | N175: 1.868217358 | O175: 0.07325223506 | P175: 0.391455527 | Q175: 0.5526608468 | R175: 0.06779950801 | S175: 0.7603833866 | T175: 1.90096663 | U175: 1.114917397 | V175: 1.460410613 | W175: 1.868217358 | X175: 10.58201058 | Y175: -0.04488888889 | Z175: 3.854931555
G176: 379 | H176: 0.03267511069 | I176: 2.86009588 | J176: 1.216028183 | K176: 1.211976916 | L176: 0.0004565709694 | M176: 0.5213675214 | N176: 1.865848699 | O176: 0.07325223506 | P176: 0.3874529781 | Q176: 0.5494552702 | R176: 0.06779950801 | S176: 0.7603833866 | T176: 1.899230815 | U176: 1.113294924 | V176: 1.460410613 | W176: 1.865848699 | X176: 10.55408971 | Y176: -0.04477044855 | Z176: 3.850861039
G177: 380 | H177: 0.0325033627 | I177: 2.853885101 | J177: 1.209647067 | K177: 1.205595924 | L177: 0.0004565709694 | M177: 0.5213675214 | N177: 1.863490435 | O177: 0.07325223506 | P177: 0.3835022957 | Q177: 0.5462749675 | R177: 0.06779950801 | S177: 0.7603833866 | T177: 1.897503151 | U177: 1.11168099 | V177: 1.460410613 | W177: 1.863490435 | X177: 10.52631579 | Y177: -0.04465263158 | Z177: 3.846802567
G178: 381 | H178: 0.03233296529 | I178: 2.847706925 | J178: 1.203316129 | K178: 1.19926511 | L178: 0.0004565709694 | M178: 0.5213675214 | N178: 1.861142495 | O178: 0.07325223506 | P178: 0.3796026708 | Q178: 0.5431196736 | R178: 0.06779950801 | S178: 0.7603833866 | T178: 1.895783581 | U178: 1.110075528 | V178: 1.460410613 | W178: 1.861142495 | X178: 10.49868766 | Y178: -0.04453543307 | Z178: 3.842756068
G179: 382 | H179: 0.03216390432 | I179: 2.841561095 | J179: 1.197034846 | K179: 1.19298395 | L179: 0.0004565709694 | M179: 0.5213675214 | N179: 1.858804806 | O179: 0.07325223506 | P179: 0.3757533093 | Q179: 0.5399891271 | R179: 0.06779950801 | S179: 0.7603833866 | T179: 1.894072046 | U179: 1.108478472 | V179: 1.460410613 | W179: 1.858804806 | X179: 10.47120419 | Y179: -0.04441884817 | Z179: 3.83872147
G180: 383 | H180: 0.03199616586 | I180: 2.835447359 | J180: 1.190802699 | K180: 1.186751924 | L180: 0.0004565709694 | M180: 0.5213675214 | N180: 1.856477297 | O180: 0.07325223506 | P180: 0.3719534313 | Q180: 0.5368830699 | R180: 0.06779950801 | S180: 0.7603833866 | T180: 1.892368492 | U180: 1.106889755 | V180: 1.460410613 | W180: 1.856477297 | X180: 10.44386423 | Y180: -0.04430287206 | Z180: 3.834698701
G181: =G180+1 -> 384 | H181: 0.03182973615 | I181: 2.829365464 | J181: 1.184619178 | K181: 1.180568524 | L181: 0.0004565709694 | M181: 0.5213675214 | N181: 1.854159896 | O181: 0.07325223506 | P181: 0.3682022712 | Q181: 0.533801247 | R181: 0.06779950801 | S181: 0.7603833866 | T181: 1.890672861 | U181: 1.105309313 | V181: 1.460410613 | W181: 1.854159896 | X181: 10.41666667 | Y181: -0.0441875 | Z181: 3.830687692
G182: 385 | H182: 0.03166460161 | I182: 2.823315165 | J182: 1.178483777 | K182: 1.174433242 | L182: 0.0004565709694 | M182: 0.5213675214 | N182: 1.851852535 | O182: 0.07325223506 | P182: 0.3644990769 | Q182: 0.5307434072 | R182: 0.06779950801 | S182: 0.7603833866 | T182: 1.8889851 | U182: 1.103737081 | V182: 1.460410613 | W182: 1.851852535 | X182: 10.38961039 | Y182: -0.04407272727 | Z182: 3.826688371
G183: 386 | H183: 0.03150074884 | I183: 2.817296213 | J183: 1.172395999 | K183: 1.168345583 | L183: 0.0004565709694 | M183: 0.5213675214 | N183: 1.849555144 | O183: 0.07325223506 | P183: 0.3608431103 | Q183: 0.5277093022 | R183: 0.06779950801 | S183: 0.7603833866 | T183: 1.887305152 | U183: 1.102172995 | V183: 1.460410613 | W183: 1.849555144 | X183: 10.3626943 | Y183: -0.04395854922 | Z183: 3.822700671
G184: 387 | H184: 0.0313381646 | I184: 2.811308368 | J184: 1.166355352 | K184: 1.162305054 | L184: 0.0004565709694 | M184: 0.5213675214 | N184: 1.847267653 | O184: 0.07325223506 | P184: 0.3572336462 | Q184: 0.524698687 | R184: 0.06779950801 | S184: 0.7603833866 | T184: 1.885632963 | U184: 1.100616993 | V184: 1.460410613 | W184: 1.847267653 | X184: 10.33591731 | Y184: -0.04384496124 | Z184: 3.818724521
G185: 388 | H185: 0.03117683584 | I185: 2.805351387 | J185: 1.16036135 | K185: 1.156311169 | L185: 0.0004565709694 | M185: 0.5213675214 | N185: 1.844989995 | O185: 0.07325223506 | P185: 0.3536699726 | Q185: 0.5217113197 | R185: 0.06779950801 | S185: 0.7603833866 | T185: 1.883968481 | U185: 1.099069011 | V185: 1.460410613 | W185: 1.844989995 | X185: 10.30927835 | Y185: -0.04373195876 | Z185: 3.814759854
G186: 389 | H186: 0.03101674965 | I186: 2.799425034 | J186: 1.154413516 | K186: 1.150363451 | L186: 0.0004565709694 | M186: 0.5213675214 | N186: 1.842722102 | O186: 0.07325223506 | P186: 0.3501513899 | Q186: 0.5187469617 | R186: 0.06779950801 | S186: 0.7603833866 | T186: 1.882311651 | U186: 1.097528988 | V186: 1.460410613 | W186: 1.842722102 | X186: 10.28277635 | Y186: -0.04361953728 | Z186: 3.810806603
G187: 390 | H187: 0.03085789332 | I187: 2.793529073 | J187: 1.148511375 | K187: 1.144461426 | L187: 0.0004565709694 | M187: 0.5213675214 | N187: 1.840463908 | O187: 0.07325223506 | P187: 0.3466772115 | Q187: 0.5158053771 | R187: 0.06779950801 | S187: 0.7603833866 | T187: 1.880662422 | U187: 1.095996862 | V187: 1.460410613 | W187: 1.840463908 | X187: 10.25641026 | Y187: -0.04350769231 | Z187: 3.806864699
G189: VCOMP as a function of Load at Given line voltage
G190: %Full Load | H190: M1M2 | I190: VCOMP1 | J190: K1V2 | K190: K2V2 | L190: K3V2 | M190: K4V2 | N190: VCOMP2 | O190: K1V3 | P190: K2V3 | Q190: K3V3 | R190: K4V3 | S190: K5V3 | T190: VCOMP3 | U190: VCOMP4 | V190: VCOMP5 | W190: VCOMP | X190: IAC RMS | Y190: ISENSE_Pk | Z190: ICOMP
G191: 1 | H191: =(((G191/100)*Iout)*(Vout_nom^2)*2.5*Rsense*K_1)/(eff*(Vline^2)*K_FQ)*us -> 0.0009697284244 | I191: =(1*10^-9*(5*10^8*SQRT(fsw*kHz)+(1.09655978*10^10)*SQRT(ftyp)*SQRT(H191)))/SQRT(fsw*kHz) -> 0.9065801538 | J191: =(b_1^3/(27*a_1^3))-(d_1^3/27)+SQRT((ftyp)^2*H191^2/(4*a_1^2*c_1^2*(fsw*kHz)^2))+(b_1^3*(ftyp)*H191/(27*a_1^4*c_1*(fsw*kHz))-(d_1^3*(ftyp)*H191/(27*a_1*c_1*(fsw*kHz)))+(b_1*d_1^2*(ftyp)*H191/(9*a_1^2*c_1*(fsw*kHz)))-(b_1^2*d_1*(ftyp)*H191/(9*a_1^3*c_1*(fsw*kHz)))) -> 0.03804791202 | K191: =(b_1*d_1^2/(9*a_1))-(b_1^2*d_1/(9*a_1^2))+(ftyp*H191/(2*a_1*c_1*fsw*kHz)) -> 0.03401962872 | L191: =(d_1^2/9)+(b_1^2/(9*a_1^2))-(2*b_1*d_1/(9*a_1)) -> 0.0004565709694 | M191: =((b_1*c_1*fsw*kHz)+(2*a_1*c_1*d_1*fsw*kHz))/(3*a_1*c_1*fsw*kHz) -> 0.5213675214 | N191: =(J191+K191)^(1/3)+(L191/(J191^(1/3)))+M191 -> 0.9388718025 | O191: =(b_2^3/(27*a_2^3))-(d_2^3/27) -> 0.07325223506 | P191: =(ftyp^2*H191^2/(4*a_2^2*c_2^2*(fsw*kHz)^2))+(b_2^3*ftyp*H191/(27*a_2^4*c_2*(fsw*kHz)))-(d_2^3*ftyp*H191/(27*a_2*c_2*(fsw*kHz)))+(b_2*d_2^2*ftyp*H191/(9*a_2^2*c_2*(fsw*kHz)))-(b_2^2*d_2*ftyp*H191/(9*a_2^3*c_2*(fsw*kHz))) -> 0.0009564546129 | Q191: =(b_2*d_2^2/(9*a_2))-(b_2^2*d_2/(9*a_2^2))+(ftyp*H191/(2*a_2*c_2*(fsw*kHz))) -> -0.03764165264 | R191: =(d_2^2/9)+(b_2^2/(9*a_2^2))-(2*b_2*d_2/(9*a_2)) -> 0.06779950801 | S191: =(b_2*c_2*(fsw*kHz)+2*a_2*c_2*d_2*(fsw*kHz))/(3*a_2*c_2*(fsw*kHz)) -> 0.7603833866 | T191: =((O191+SQRT(P191)+Q191)^(1/3))+(R191/((O191+SQRT(P191)+Q191)^(1/3)))+S191 -> 1.332917193 | U191: =c_3+(SQRT(ftyp)*SQRT(H191)/(SQRT(a_3)*SQRT(b_3)*SQRT(fsw*kHz))) -> 0.6056539892 | V191: =(a_4*(fsw*kHz)*b_4/ftyp) -> 1.460410613 | W191: =IF(I191>=0.5,IF(I191<1,I191,IF(N191>=1,IF(N191<2,N191,IF(VCOMP3>=2,IF(T191<4.5,T191,IF(U191>=4.5,IF(U191<4.6,U191,V191)))))))) -> 0.9065801538 | X191: =Pin_max*G191/(Vline*100) -> 0.1818181818 | Y191: =-Rsense*X191*1.414 -> -0.0007712727273 | Z191: =MIN(6,MAX(0.5,Beta*G*($Y191-Voff_trim)/(MAX(0,MIN(4.5,W191)-Alpha1_A)+MAX(0,MIN(4.5,W191)-Alpha1_B)-Alpha1_C)+Alpha2)) -> 0.5
G192: 2 | H192: 0.001939456849 | I192: 1.074991168 | J192: 0.07407715598 | K192: 0.07004816971 | L192: 0.0004565709694 | M192: 0.5213675214 | N192: =(J192+K192)^(1/3)+(L192/(J192^(1/3)))+M192 -> 1.046754941 | O192: 0.07325223506 | P192: 0.00255779659 | Q192: -0.01968493572 | R192: 0.06779950801 | S192: 0.7603833866 | T192: =((O192+SQRT(P192)+Q192)^(1/3))+(R192/((O192+SQRT(P192)+Q192)^(1/3)))+S192 -> 1.374971052 | U192: 0.6494173044 | V192: 1.460410613 | W192: 1.046754941 | X192: 0.3636363636 | Y192: -0.001542545455 | Z192: 0.5
G193: 3 | H193: 0.002909185273 | I193: 1.204217484 | J193: 0.1101063999 | K193: 0.1060767107 | L193: 0.0004565709694 | M193: 0.5213675214 | N193: 1.122489606 | O193: 0.07325223506 | P193: 0.004804025933 | Q193: -0.00172821881 | R193: 0.06779950801 | S193: 0.7603833866 | T193: 1.410976738 | U193: 0.6829980773 | V193: 1.460410613 | W193: 1.122489606 | X193: 0.5454545455 | Y193: -0.002313818182 | Z193: 0.5
G194: 4 | H194: 0.003878913698 | I194: 1.313160308 | J194: 0.1461356439 | K194: 0.1421052517 | L194: 0.0004565709694 | M194: 0.5213675214 | N194: 1.182803853 | O194: 0.07325223506 | P194: 0.00769514264 | Q194: 0.0162284981 | R194: 0.06779950801 | S194: 0.7603833866 | T194: 1.442772977 | U194: 0.7113079784 | V194: 1.460410613 | W194: 1.182803853 | X194: 0.7272727273 | Y194: -0.003085090909 | Z194: 0.5
G195: 5 | H195: 0.004848642122 | I195: 1.409140862 | J195: 0.1821648879 | K195: 0.1781337927 | L195: 0.0004565709694 | M195: 0.5213675214 | N195: 1.23374828 | O195: 0.07325223506 | P195: 0.01123114671 | Q195: 0.03418521502 | R195: 0.06779950801 | S195: 0.7603833866 | T195: 1.471433505 | U195: 0.7362495019 | V195: 1.460410613 | W195: 1.23374828 | X195: 0.9090909091 | Y195: -0.003856363636 | Z195: 0.5
G196: 6 | H196: 0.005818370547 | I196: 1.495913916 | J196: 0.2181941318 | K196: 0.2141623337 | L196: 0.0004565709694 | M196: 0.5213675214 | N196: 1.278286412 | O196: 0.07325223506 | P196: 0.01541203815 | Q196: 0.05214193193 | R196: 0.06779950801 | S196: 0.7603833866 | T196: 1.49764798 | U196: 0.7587983628 | V196: 1.460410613 | W196: 1.278286412 | X196: 1.090909091 | Y196: -0.004627636364 | Z196: 0.5
G197: 7 | H197: 0.006788098971 | I197: 1.575709975 | J197: 0.2542233758 | K197: 0.2501908747 | L197: 0.0004565709694 | M197: 0.5213675214 | N197: 1.318117661 | O197: 0.07325223506 | P197: 0.02023781695 | Q197: 0.07009864885 | R197: 0.06779950801 | S197: 0.7603833866 | T197: 1.521889512 | U197: 0.7795341804 | V197: 1.460410613 | W197: 1.318117661 | X197: 1.272727273 | Y197: -0.005398909091 | Z197: 0.5
G198: 8 | H198: 0.007757827395 | I198: 1.649982335 | J198: 0.2902526197 | K198: 0.2862194156 | L198: 0.0004565709694 | M198: 0.5213675214 | N198: 1.354317851 | O198: 0.07325223506 | P198: 0.02570848311 | Q198: 0.08805536576 | R198: 0.06779950801 | S198: 0.7603833866 | T198: 1.544498779 | U198: 0.7988346088 | V198: 1.460410613 | W198: 1.354317851 | X198: 1.454545455 | Y198: -0.006170181818 | Z198: 0.5611921424
G199: 9 | H199: 0.00872755582 | I199: 1.719740461 | J199: 0.3262818637 | K199: 0.3222479566 | L199: 0.0004565709694 | M199: 0.5213675214 | N199: 1.387616242 | O199: 0.07325223506 | P199: 0.03182403664 | Q199: 0.1060120827 | R199: 0.06779950801 | S199: 0.7603833866 | T199: 1.565730396 | U199: 0.8169619675 | V199: 1.460410613 | W199: 1.387616242 | X199: 1.636363636 | Y199: -0.006941454545 | Z199: 0.6633088783
G200: 10 | H200: 0.009697284244 | I200: 1.785719337 | J200: 0.3623111077 | K200: 0.3582764976 | L200: 0.0004565709694 | M200: 0.5213675214 | N200: 1.418532672 | O200: 0.07325223506 | P200: 0.03858447754 | Q200: 0.1239687996 | R200: 0.06779950801 | S200: 0.7603833866 | T200: 1.585780366 | U200: 0.8341072497 | V200: 1.460410613 | W200: 1.418532672 | X200: 1.818181818 | Y200: -0.007712727273 | Z200: 0.7582197998
G201: 11 | H201: 0.01066701267 | I201: 1.848473817 | J201: 0.3983403516 | K201: 0.3943050386 | L201: 0.0004565709694 | M201: 0.5213675214 | N201: 1.447452291 | O201: 0.07325223506 | P201: 0.0459898058 | Q201: 0.1419255165 | R201: 0.06779950801 | S201: 0.7603833866 | T201: 1.604803237 | U201: 0.8504146397 | V201: 1.460410613 | W201: 1.447452291 | X201: 2 | Y201: -0.008484 | Z201: 0.8472959679
G202: 12 | H202: 0.01163674109 | I202: 1.908434967 | J202: 0.4343695956 | K202: 0.4303335796 | L202: 0.0004565709694 | M202: 0.5213675214 | N202: 1.474669334 | O202: 0.07325223506 | P202: 0.05404002142 | Q202: 0.1598822334 | R202: 0.06779950801 | S202: 0.7603833866 | T202: 1.622923331 | U202: 0.8659961546 | V202: 1.460410613 | W202: 1.474669334 | X202: 2.181818182 | Y202: -0.009255272727 | Z202: 0.931538449
G203: 13 | H203: 0.01260646952 | I203: 1.965945592 | J203: 0.4703988396 | K203: 0.4663621206 | L203: 0.0004565709694 | M203: 0.5213675214 | N203: 1.500414252 | O203: 0.07325223506 | P203: 0.06273512441 | Q203: 0.1778389503 | R203: 0.06779950801 | S203: 0.7603833866 | T203: 1.640242345 | U203: 0.8809408755 | V203: 1.460410613 | W203: 1.500414252 | X203: 2.363636364 | Y203: -0.01002654545 | Z203: 1.011701273
... 87 more rows
